{"text_format":"1","workbook":"xlsx","n_sheets":9,"sheets":["Tarifa","1.telephely","2.telephely","3.telephely","4.telephely","5.telephely","Adatfelvétel","Díjkalkuláció nyomtatása","Ajánlat+Telephelyi adatközlő"],"not_rendered":{"charts":0,"images":2,"macros":1,"external_links":1,"defined_names":2,"comments":0,"pivot_tables":0},"unopened":[],"bounds":{"document_bytes":16777216,"sheet_cells":100000,"rows_first":2000,"rows_last":500,"rows_between":2000,"halvings":0,"cell_chars":16384,"cell_head_chars":4096},"cells_cut":0,"cells_raw":0,"read":"whole","date_system":"1900"}

{"sheet":"Tarifa","index":0,"n_rows":787,"n_cols":48,"rows_kept":787,"cut":false,"hidden":true,"merged":[[0,5,1,5],[0,0,1,0],[0,1,1,1],[0,2,1,2],[0,3,1,3],[0,4,1,4],[0,12,1,12],[0,13,1,13],[0,6,1,6],[0,7,1,7],[0,8,1,8],[0,9,1,9],[0,10,1,10],[0,11,1,11]]}
[null,null,null,null,"Tűz és elemi károk","Betöréses lopás és rablás","Üzemszünet","Általános felelősség","Munkaadói felelősség","Bérlői felelősség","Termékfelelősség","Szolgáltatói felelősség","Környezetszennyezési","Bérbeadói"]
[null,null,null,null,null,null,null,null,null,null,null,null,null,null,null,null,null,null,"Felelősség limitek",null,null,null,null,null,null,3,"díjfiz ütem",null,null,"díjfiz mód",null,1]
[1," 631","Adatfeldolgozás, web-hoszting, világháló-portál szolgáltatás",null,3,2,4,2,2,2,2,0,2,3,20,{"$f":"VLOOKUP(O3,$A$3:$C$246,2)","v":" 310"},{"$f":"VLOOKUP(O3,$A$3:$C$246,3,FALSE)","v":"Bútorgyártás"},1,0,0,0,null,null,null,null,1,"éves",0.9,0.1,"postai utalás",1,0,null,null,null,null,null,null,"lejárat","2017-06-30"]
[2," 821","Adminisztratív, kiegészítő szolgáltatás",null,4,4,2,3,3,2,0,2,2,3,3,{"$f":"VLOOKUP(O4,$A$3:$C$246,2)","v":477813},{"$f":"VLOOKUP(O4,$A$3:$C$246,3,FALSE)","v":"Ajándéktárgy-kiskereskedelem"},2,"5 millió Ft","5 millió Ft","5 millió Ft",null,null,null,null,2,"féléves",0.94,0.06,"banki átutalás",0.97,0.03]
[3,477813,"Ajándéktárgy-kiskereskedelem",null,3,2,2,3,2,3,3,0,3,3,39,{"$f":"VLOOKUP(O5,$A$3:$C$246,2)","v":" 182"},{"$f":"VLOOKUP(O5,$A$3:$C$246,3,FALSE)","v":"Egyéb sokszorosítás"},3,"25 millió Ft","15 millió Ft","15 millió Ft",null,null,null,null,3,"negyedéves",0.98,0.02,"csoportos beszedés",0.97,0.03]
[4," 852","Alapfokú oktatás",null,4,3,4,3,3,3,2,4,3,4,39,{"$f":"VLOOKUP(O6,$A$3:$C$246,2)","v":" 182"},{"$f":"VLOOKUP(O6,$A$3:$C$246,3,FALSE)","v":"Egyéb sokszorosítás"},4,"50 millió Ft","25 millió Ft",null,null,null,null,null,4,"havi",1,0,"csoportos beszedés K&H Banknál vezetett bankszámláról",0.95,0.05]
[5," 663","Alapkezelés",null,3,5,2,1,1,1,0,0,2,2,14,{"$f":"VLOOKUP(O7,$A$3:$C$246,2)","v":" 643"},{"$f":"VLOOKUP(O7,$A$3:$C$246,3,FALSE)","v":"Befektetési alapok és hasonlók"},null,null,null,null,null,null,null,null,null,null,{"$f":"VLOOKUP(Z2,Z3:AB6,3,FALSE)","v":0.98},{"$f":"VLOOKUP(Z2,Z3:AC6,4,FALSE)","v":0.02},null,{"$f":"VLOOKUP(AF2,Z3:AE6,6,FALSE)","v":1},{"$f":"VLOOKUP(AF2,Z3:AF6,7,FALSE)","v":0}]
[6," 900","Alkotó-, művészeti, szórakoztató tevékenység",null,3,1,2,2,2,2,0,2,3,3,null,null,null,"Tűz",{"$f":"VLOOKUP(O3,$A$3:$L$246,5)","v":5},{"$f":"VLOOKUP(O4,$A$3:$L$246,5)","v":3},{"$f":"VLOOKUP(O5,$A$3:$L$246,5)","v":3},{"$f":"VLOOKUP(O6,$A$3:$L$246,5)","v":3},{"$f":"VLOOKUP(O7,$A$3:$L$246,5)","v":2},null,null,{"$f":"1-((1-AB7)+(1-IF(AB7<1,AE7,1)))","v":0.98},{"$f":"AC7+AF7","v":0.02},null,{"$f":"VLOOKUP(Z2,Z3:AB6,2,FALSE)","v":"negyedéves"},null,{"$f":"VLOOKUP(AF2,Z3:AE6,5,FALSE)","v":"postai utalás"}]
[7," 750","Állat-egészségügyi ellátás",null,4,2,3,3,4,3,0,4,4,3,null,null,null,null,{"$f":"HLOOKUP(S8,S10:X11,2)","v":2.7},{"$f":"HLOOKUP(T8,S10:X11,2)","v":1.95},{"$f":"HLOOKUP(U8,$S$10:$X$11,2)","v":1.95},{"$f":"HLOOKUP(V8,$S$10:$X$11,2)","v":1.95},{"$f":"HLOOKUP(W8,$S$10:$X$11,2)","v":1.8}]
[8,990911,"Állatkozmetika, kutyaiskola ",null,2,2,1,2,3,2,1,3,4,3,null,null,null,null,1,2,3,4,5,6]
[9," 014","Állattenyésztés",null,4,2,3,3,3,2,1,1,2,2,null,null,null,null,1.71,1.8,1.95,2.4300000000000002,2.7,3.06,null,null,"DES",{"$f":"'1.telephely'!C60","v":1},{"$f":"1-AB11","v":0},null,null,null,null,null,null,null,"lojalitás+DES max. 20%",null,null,{"$f":"1-AO11","v":0},{"$f":"AA15*AB11","v":1},{"$f":"IF(AO11<0.8,\"0,8\",AO11)","v":1}]
[10," 8621","Általános járóbeteg-ellátás",null,4,2,3,3,3,3,0,0,5,3,null,null,null,null,null,null,null,null,null,null,null,null,"Közp. DES",{"$f":"'1.telephely'!C61","v":1},{"$f":"1-AB12","v":0},null,null,null,null,null,null,null,"volumen+csomag+lojalitás+DES max. 50%",null,null,{"$f":"1-AO12","v":0},{"$f":"AP11*AE15*AF31","v":1},{"$f":"IF(AO12<0.5,\"0,5\",AO12)","v":1}]
[11," 281","Általános rendeltetésű gép gyártása",null,3,2,3,2,2,3,3,0,4,3,null,null,null,null,{"$f":"IF(U109=FALSE,\"Bp\",IF('1.telephely'!F5<2000,\"Bp\",\"Vidék\"))","v":"Bp"},{"$f":"IF(U110=FALSE,\"Bp\",IF('2.telephely'!F2<2000,\"Bp\",\"Vidék\"))","v":"Bp"},{"$f":"IF(U111=FALSE,\"Bp\",IF('3.telephely'!F2<2000,\"Bp\",\"Vidék\"))","v":"Bp"},{"$f":"IF(U112=FALSE,\"Bp\",IF('4.telephely'!F2<2000,\"Bp\",\"Vidék\"))","v":"Bp"},{"$f":"IF(U113=FALSE,\"Bp\",IF('5.telephely'!F2<2000,\"Bp\",\"Vidék\"))","v":"Bp"}]
[12," 4743","Audio-, videoberendezés kiskereskedelme",null,2,2,2,2,2,2,1,0,3,2,null,null,null,null,{"$f":"IF(S13=\"Bp\",1,Y17)","v":1},{"$f":"IF(T13=\"Bp\",1,Y17)","v":1},{"$f":"IF(U13=\"Bp\",1,Y17)","v":1},{"$f":"IF(V13=\"Bp\",1,Y17)","v":1},{"$f":"IF(W13=\"Bp\",1,Y17)","v":1}]
[13," 433","Befejező építés",null,2,3,2,5,4,5,5,1,4,3,null,null,null,null,{"$f":"VLOOKUP(O3,$A$3:$L$246,6)","v":2},{"$f":"VLOOKUP(O4,$A$3:$L$246,6)","v":2},{"$f":"VLOOKUP(O5,$A$3:$L$246,6)","v":1},{"$f":"VLOOKUP(O6,$A$3:$L$246,6)","v":1},{"$f":"VLOOKUP(O7,$A$3:$L$246,6)","v":2},null,null,null,{"$f":"VLOOKUP(AC15,AA16:AC18,3,FALSE)","v":1},"lojalitás",1,{"$f":"VLOOKUP(AC15,AA16:AD18,4,FALSE)","v":"Nincs"},{"$f":"IF(AE16=1,AH16,IF(AE17=1,AH17,IF(AE18=1,AH18)))","v":1},"csomag",{"$f":"1-AE15","v":0}]
[14," 643","Befektetési alapok és hasonlók",null,2,2,1,2,2,2,0,0,2,3,null,null,null,"Betlop",{"$f":"HLOOKUP(S15,S17:X18,2)","v":3.1},{"$f":"HLOOKUP(T15,S17:X18,2)","v":3.1},{"$f":"HLOOKUP(U15,$S$17:$X$18,2)","v":2.5},{"$f":"HLOOKUP(V15,$S$17:$X$18,2)","v":2.5},{"$f":"HLOOKUP(W15,$S$17:$X$18,2)","v":3.1},null,"Vidéki eng.",null,1,"Nincs",1,"Nincs",{"$f":"IF(AND($AV$29>=AF16,$AV$29<=AG16),1,0)","v":1},0,3,1,"Nincs"]
[15," 236","Beton-, gipsz-, cementtermék gyártása",null,2,1,3,2,3,2,2,0,4,2,null,null,null,null,1,2,3,4,5,6,0.8,null,2,"K&H Banknál vezetett vállalkozói bankszámlával rendelkezik",0.98,0.02,{"$f":"IF(AND($AV$29>=AF17,$AV$29<=AG17),1,0)","v":0},4,5,0.95,0.05]
[16," 662","Biztosítást, nyugdíjalapot kiegészítő tevékenység",null,2,2,2,2,2,2,0,0,2,2,null,null,null,null,2.5,3.1,4,4.2,5.2,11.2,null,null,3,"K&H Banknál felvett vállalkozói hitellel rendelkezik",0.95,0.05,{"$f":"IF(AND($AV$29>=AF18,$AV$29<=AG18),1,0)","v":0},6,20,0.9,0.1]
[17," 431","Bontás, építési terület előkészítése",null,3,3,3,2,2,0,0,4,4,3]
[18," 151","Bőr, szőrme kikészítése",null,3,3,3,2,2,2,2,0,3,2,null,null,null,null,null,null,null,null,null,null,null,null,"irodai",4,null,"vakolat",0.5,null,"vandalizmus",9]
[19," 4759","Bútor, világítási eszköz, egyéb háztartási cikk kiskereskedelme",null,4,3,2,3,3,3,2,0,3,3,null,null,null,null,null,{"$f":"VLOOKUP(O3,$A$3:$N$246,7)","v":5},{"$f":"VLOOKUP(O4,$A$3:$L$246,7)","v":2},{"$f":"VLOOKUP(O5,$A$3:$L$246,7)","v":3},{"$f":"VLOOKUP(O6,$A$3:$L$246,7)","v":3},{"$f":"VLOOKUP(O7,$A$3:$L$246,7)","v":1},null,null,"szállítmány",50,null,"tetőbeázás",0.08,null,"kül.üveg",50]
[20," 310","Bútorgyártás",null,5,2,5,2,4,2,4,1,3,3,null,null,null,"Üzemsz",null,{"$f":"HLOOKUP(T21,$S$23:$Y$24,2)","v":1.2},{"$f":"HLOOKUP(U21,$S$23:$Y$24,2)","v":0.6},{"$f":"HLOOKUP(V21,$S$23:$Y$24,2)","v":0.8},{"$f":"HLOOKUP(W21,$S$23:$Y$24,2)","v":0.8},{"$f":"HLOOKUP(X21,$S$23:$Y$24,2)","v":0.4}]
[21,477816,"Díszállat- és díszhal-kiskereskedelem",null,2,1,2,3,2,4,1,0,2,3,null,null,null,null,0,1,2,3,4,5,6,null,"csomag","betlop","irodai","üzemszü","száll","vakolat","tetőbeázás","vandalizmus","kül.üveg","áltfel","munkfel","termfel","bérlfel","szolgfel","bérbeadói","környezet","szálloda","gépjármű","eredetiség","szolg.tárgy","tanuló"]
[22," 4776","Dísznövény, vetőmag, műtrágya, hobbiállat-eledel kiskereskedelme",null,3,2,2,3,2,3,2,0,3,3,null,null,null,null,0,0.4,0.6,0.8,1.05,1.2,1.4,null,"1 telephely",{"$f":"IF('1.telephely'!$C$26=0,0,1)","v":0},{"$f":"IF('1.telephely'!$C$28=0,0,1)","v":0},{"$f":"IF('1.telephely'!$C$30=0,0,1)","v":0},{"$f":"IF('1.telephely'!$C$32=0,0,1)","v":0},{"$f":"IF('1.telephely'!$C$34=0,0,1)","v":0},{"$f":"IF('1.telephely'!$C$36=0,0,1)","v":0},{"$f":"IF('1.telephely'!$C$38=0,0,1)","v":0},{"$f":"IF('1.telephely'!$C$40=0,0,1)","v":0},{"$f":"IF('1.telephely'!$C$42=0,0,1)","v":0},{"$f":"IF('1.telephely'!$C$44=0,0,1)","v":0},{"$f":"IF('1.telephely'!$C$45=0,0,1)","v":0},{"$f":"IF('1.telephely'!$C$46=0,0,1)","v":0},{"$f":"IF('1.telephely'!$C$47=0,0,1)","v":0},{"$f":"IF('1.telephely'!$C$52=0,0,1)","v":0},{"$f":"IF('1.telephely'!$C$53=0,0,1)","v":0},{"$f":"IF('1.telephely'!$C$48=0,0,1)","v":0},{"$f":"IF('1.telephely'!$C$49=0,0,1)","v":0},{"$f":"IF('1.telephely'!$C$50=0,0,1)","v":0},{"$f":"IF('1.telephely'!$C$51=0,0,1)","v":0},{"$f":"IF('1.telephely'!$C$43=0,0,1)","v":0}]
[23," 741","Divat-, formatervezés",null,2,2,1,2,2,2,1,4,3,3,null,null,null,null,null,null,null,null,null,null,null,null,"2 telephely",{"$f":"IF('2.telephely'!$C$23=0,0,1)","v":0},{"$f":"IF('2.telephely'!$C$25=0,0,1)","v":0},{"$f":"IF('2.telephely'!$C$27=0,0,1)","v":0},{"$f":"IF('2.telephely'!$C$29=0,0,1)","v":0},{"$f":"IF('2.telephely'!$C$39=0,0,1)","v":0},{"$f":"IF('2.telephely'!$C$41=0,0,1)","v":0},{"$f":"IF('2.telephely'!$C$43=0,0,1)","v":0},{"$f":"IF('2.telephely'!$C$45=0,0,1)","v":0},{"$f":"IF('2.telephely'!$C$39=0,0,1)","v":0},{"$f":"IF('2.telephely'!$C$41=0,0,1)","v":0},{"$f":"IF('2.telephely'!$C$42=0,0,1)","v":0},{"$f":"IF('2.telephely'!$C$43=0,0,1)","v":0},{"$f":"IF('2.telephely'!$C$44=0,0,1)","v":0},{"$f":"IF('2.telephely'!$C$49=0,0,1)","v":0},{"$f":"IF('2.telephely'!$C$50=0,0,1)","v":0},{"$f":"IF('2.telephely'!$C$45=0,0,1)","v":0},{"$f":"IF('2.telephely'!$C$46=0,0,1)","v":0},{"$f":"IF('2.telephely'!$C$47=0,0,1)","v":0},{"$f":"IF('2.telephely'!$C$48=0,0,1)","v":0},{"$f":"IF('2.telephely'!$C$40=0,0,1)","v":0}]
[24,4726,"Dohányáru kiskereskedelem",null,4,6,2,2,3,2,2,0,2,3,null,null,null,null,{"$f":"VLOOKUP(S28,$X$31:$Y$34,2,FALSE)","v":"5 millió Ft"},{"$f":"VLOOKUP(T28,$X$31:$Y$34,2,FALSE)","v":"5 millió Ft"},{"$f":"VLOOKUP(U28,$X$31:$Y$34,2,FALSE)","v":"5 millió Ft"},{"$f":"VLOOKUP(V28,$X$31:$Y$34,2,FALSE)","v":"5 millió Ft"},{"$f":"VLOOKUP(W28,$X$31:$Y$34,2,FALSE)","v":"5 millió Ft"},null,null,null,"3 telephely",{"$f":"IF('3.telephely'!$C$23=0,0,1)","v":0},{"$f":"IF('3.telephely'!$C$25=0,0,1)","v":0},{"$f":"IF('3.telephely'!$C$27=0,0,1)","v":0},{"$f":"IF('3.telephely'!$C$29=0,0,1)","v":0},{"$f":"IF('3.telephely'!$C$39=0,0,1)","v":0},{"$f":"IF('3.telephely'!$C$41=0,0,1)","v":0},{"$f":"IF('3.telephely'!$C$43=0,0,1)","v":0},{"$f":"IF('3.telephely'!$C$45=0,0,1)","v":0},{"$f":"IF('3.telephely'!$C$39=0,0,1)","v":0},{"$f":"IF('3.telephely'!$C$41=0,0,1)","v":0},{"$f":"IF('3.telephely'!$C$42=0,0,1)","v":0},{"$f":"IF('3.telephely'!$C$43=0,0,1)","v":0},{"$f":"IF('3.telephely'!$C$44=0,0,1)","v":0},{"$f":"IF('3.telephely'!$C$49=0,0,1)","v":0},{"$f":"IF('3.telephely'!$C$50=0,0,1)","v":0},{"$f":"IF('3.telephely'!$C$45=0,0,1)","v":0},{"$f":"IF('3.telephely'!$C$46=0,0,1)","v":0},{"$f":"IF('3.telephely'!$C$47=0,0,1)","v":0},{"$f":"IF('3.telephely'!$C$48=0,0,1)","v":0},{"$f":"IF('3.telephely'!$C$40=0,0,1)","v":0}]
[25," 282","Egyéb általános rendeltetésű gép gyártása",null,3,2,3,2,2,3,3,0,4,3,null,null,null,null,{"$f":"VLOOKUP(O3,$A$3:$L$246,8)","v":2},{"$f":"VLOOKUP(O4,$A$3:$L$246,8)","v":3},{"$f":"VLOOKUP(O5,$A$3:$L$246,8)","v":2},{"$f":"VLOOKUP(O6,$A$3:$L$246,8)","v":2},{"$f":"VLOOKUP(O7,$A$3:$L$246,8)","v":2},null,null,null,"4 telephely",{"$f":"IF('4.telephely'!$C$23=0,0,1)","v":0},{"$f":"IF('4.telephely'!$C$25=0,0,1)","v":0},{"$f":"IF('4.telephely'!$C$27=0,0,1)","v":0},{"$f":"IF('4.telephely'!$C$29=0,0,1)","v":0},{"$f":"IF('4.telephely'!$C$39=0,0,1)","v":0},{"$f":"IF('4.telephely'!$C$41=0,0,1)","v":0},{"$f":"IF('4.telephely'!$C$43=0,0,1)","v":0},{"$f":"IF('4.telephely'!$C$45=0,0,1)","v":0},{"$f":"IF('4.telephely'!$C$39=0,0,1)","v":0},{"$f":"IF('4.telephely'!$C$41=0,0,1)","v":0},{"$f":"IF('4.telephely'!$C$42=0,0,1)","v":0},{"$f":"IF('4.telephely'!$C$43=0,0,1)","v":0},{"$f":"IF('4.telephely'!$C$44=0,0,1)","v":0},{"$f":"IF('4.telephely'!$C$49=0,0,1)","v":0},{"$f":"IF('4.telephely'!$C$50=0,0,1)","v":0},{"$f":"IF('4.telephely'!$C$45=0,0,1)","v":0},{"$f":"IF('4.telephely'!$C$46=0,0,1)","v":0},{"$f":"IF('4.telephely'!$C$47=0,0,1)","v":0},{"$f":"IF('4.telephely'!$C$48=0,0,1)","v":0},{"$f":"IF('4.telephely'!$C$40=0,0,1)","v":0}]
[26," 879","Egyéb bentlakásos ellátás",null,2,2,2,4,4,4,0,3,3,4,null,null,null,null,2,2,2,2,2,null,null,null,"5 telephely",{"$f":"IF('5.telephely'!$C$23=0,0,1)","v":0},{"$f":"IF('5.telephely'!$C$25=0,0,1)","v":0},{"$f":"IF('5.telephely'!$C$27=0,0,1)","v":0},{"$f":"IF('5.telephely'!$C$29=0,0,1)","v":0},{"$f":"IF('5.telephely'!$C$39=0,0,1)","v":0},{"$f":"IF('5.telephely'!$C$41=0,0,1)","v":0},{"$f":"IF('5.telephely'!$C$43=0,0,1)","v":0},{"$f":"IF('5.telephely'!$C$45=0,0,1)","v":0},{"$f":"IF('5.telephely'!$C$39=0,0,1)","v":0},{"$f":"IF('5.telephely'!$C$41=0,0,1)","v":0},{"$f":"IF('5.telephely'!$C$42=0,0,1)","v":0},{"$f":"IF('5.telephely'!$C$43=0,0,1)","v":0},{"$f":"IF('5.telephely'!$C$44=0,0,1)","v":0},{"$f":"IF('5.telephely'!$C$49=0,0,1)","v":0},{"$f":"IF('5.telephely'!$C$50=0,0,1)","v":0},{"$f":"IF('5.telephely'!$C$45=0,0,1)","v":0},{"$f":"IF('5.telephely'!$C$46=0,0,1)","v":0},{"$f":"IF('5.telephely'!$C$47=0,0,1)","v":0},{"$f":"IF('5.telephely'!$C$48=0,0,1)","v":0},{"$f":"IF('5.telephely'!$C$40=0,0,1)","v":0}]
[27," 108","Egyéb élelmiszer gyártása",null,3,2,3,2,3,2,4,1,3,2,null,null,null,null,{"$f":"HLOOKUP(S28,S30:W35,S27+1,FALSE)","v":1067},{"$f":"HLOOKUP(T28,S30:W35,T27+1,FALSE)","v":1593},{"$f":"HLOOKUP(U28,$S$30:$W$35,U27+1,FALSE)","v":1067},{"$f":"HLOOKUP(V28,$S$30:$W$35,V27+1,FALSE)","v":1067},{"$f":"HLOOKUP(W28,$S$30:$W$35,W27+1,FALSE)","v":1067},null,null,null,"össz:",{"$f":"IF(AB$24=1,1,IF(AB$25=1,1,IF(AB$26=1,1,IF(AB$27=1,1,IF(AB$28=1,1,0)))))","v":0},0,0,0,0,0,0,0,0,0,0,0,0,0,0,0,0,0,0,0,{"$f":"SUM(AB29:AU29)","v":0}]
[28," 783","Egyéb emberierőforrás-ellátás, -gazdálkodás",null,2,1,2,2,2,2,0,4,3,3,null,null,null,null,"Ált fel.",1,2,3,4]
[29," 259","Egyéb fémfeldolgozási termék gyártása",null,4,2,2,2,4,2,2,0,3,3,null,null,null,null,1,0,531,816,1062,1,0,null,{"$f":"IF(AND(('1.telephely'!$B$24+'2.telephely'!$B$21+'3.telephely'!$B$21+'4.telephely'!$B$21+'5.telephely'!$B$21)>=AB31,('1.telephely'!$B$24+'2.telephely'!$B$21+'3.telephely'!$B$21+'4.telephely'!$B$21+'5.telephely'!$B$21)<=AC31),1,0)","v":1},0,20000,1,"Nincs",{"$f":"IF(AA31=1,AD31,IF(AA32=1,AD32,IF(AA33=1,AD33,IF(AA34=1,AD34,IF(AA35=1,AD35,IF(AA36=1,AD36))))))","v":1},"volumen"]
[30," 475","Egyéb háztartási cikk kiskereskedelme",null,3,2,2,3,3,3,3,0,3,2,null,null,null,null,2,0,1067,1639,2133,2,"5 millió Ft",null,{"$f":"IF(AND(('1.telephely'!$B$24+'2.telephely'!$B$21+'3.telephely'!$B$21+'4.telephely'!$B$21+'5.telephely'!$B$21)>=AB32,('1.telephely'!$B$24+'2.telephely'!$B$21+'3.telephely'!$B$21+'4.telephely'!$B$21+'5.telephely'!$B$21)<=AC32),1,0)","v":0},20000.001,50000,0.9,0.1,{"$f":"1-AF31","v":0}]
[31," 869","Egyéb humán-egészségügyi ellátás",null,2,1,2,2,1,2,0,0,5,3,null,null,null,null,3,0,1593,2449,3186,3,"25 millió Ft",null,{"$f":"IF(AND(('1.telephely'!$B$24+'2.telephely'!$B$21+'3.telephely'!$B$21+'4.telephely'!$B$21+'5.telephely'!$B$21)>=AB33,('1.telephely'!$B$24+'2.telephely'!$B$21+'3.telephely'!$B$21+'4.telephely'!$B$21+'5.telephely'!$B$21)<=AC33),1,0)","v":0},50000.000999999997,75000,0.8,0.2]
[32," 639","Egyéb információs szolgáltatás",null,3,2,4,2,2,2,2,0,2,3,null,null,null,null,4,0,2390,3673,4779,4,"50 millió Ft",null,{"$f":"IF(AND(('1.telephely'!$B$24+'2.telephely'!$B$21+'3.telephely'!$B$21+'4.telephely'!$B$21+'5.telephely'!$B$21)>=AB34,('1.telephely'!$B$24+'2.telephely'!$B$21+'3.telephely'!$B$21+'4.telephely'!$B$21+'5.telephely'!$B$21)<=AC34),1,0)","v":0},75000.001000000004,150000,0.7,0.3]
[33," 829","Egyéb kiegészítő gazdasági tevékenység",null,3,4,0,5,5,2,0,0,2,3,null,null,null,null,5,0,3204,4925,6408,null,null,null,{"$f":"IF(AND(('1.telephely'!$B$24+'2.telephely'!$B$21+'3.telephely'!$B$21+'4.telephely'!$B$21+'5.telephely'!$B$21)>=AB35,('1.telephely'!$B$24+'2.telephely'!$B$21+'3.telephely'!$B$21+'4.telephely'!$B$21+'5.telephely'!$B$21)<=AC35),1,0)","v":0},150000.00099999999,300000,0.6,0.4]
[34," 949","Egyéb közösségi, társadalmi tevékenység",null,2,2,2,3,2,4,0,0,3,4,null,null,null,null,null,null,null,null,null,null,null,null,{"$f":"IF(AND(('1.telephely'!$B$24+'2.telephely'!$B$21+'3.telephely'!$B$21+'4.telephely'!$B$21+'5.telephely'!$B$21)>=AB36,('1.telephely'!$B$24+'2.telephely'!$B$21+'3.telephely'!$B$21+'4.telephely'!$B$21+'5.telephely'!$B$21)<=AC36),1,0)","v":0},300000.00099999999,500000,0.5,0.5]
[35," 477","Egyéb m.n.s. áru kiskereskedelme",null,3,3,3,3,2,3,2,0,3,3,null,null,null,null,{"$f":"VLOOKUP(S39,$X$31:$Y$34,2,FALSE)","v":"5 millió Ft"},{"$f":"VLOOKUP(T39,$X$31:$Y$34,2,FALSE)","v":"5 millió Ft"},{"$f":"VLOOKUP(U39,$X$31:$Y$34,2,FALSE)","v":"5 millió Ft"},{"$f":"VLOOKUP(V39,$X$31:$Y$34,2,FALSE)","v":"5 millió Ft"},{"$f":"VLOOKUP(W39,$X$31:$Y$34,2,FALSE)","v":"5 millió Ft"}]
[36," 855","Egyéb oktatás",null,4,4,4,4,4,4,3,1,3,4,null,null,null,null,{"$f":"VLOOKUP(O3,$A$3:$L$246,9)","v":4},{"$f":"VLOOKUP(O4,$A$3:$L$246,9)","v":2},{"$f":"VLOOKUP(O5,$A$3:$L$246,9)","v":2},{"$f":"VLOOKUP(O6,$A$3:$L$246,9)","v":2},{"$f":"VLOOKUP(O7,$A$3:$L$246,9)","v":2}]
[37," 649","Egyéb pénzügyi közvetítés",null,2,2,1,2,2,2,0,0,2,3,null,null,null,null,2,2,2,2,2,null,null,null,{"$f":"S27","v":2},{"$f":"T27","v":3},{"$f":"U27","v":2},{"$f":"V27","v":2},{"$f":"W27","v":2},null,{"$f":"S38","v":4},{"$f":"T38","v":2},{"$f":"U38","v":2},{"$f":"V38","v":2},{"$f":"W38","v":2}]
[38," 532","Egyéb postai, futárpostai tevékenység",null,2,2,1,2,4,2,0,1,3,3,null,null,null,null,{"$f":"HLOOKUP(S39,S41:W46,S38+1,FALSE)","v":3985},{"$f":"HLOOKUP(T39,S41:W46,T38+1,FALSE)","v":1775},{"$f":"HLOOKUP(U39,$S$41:$W$46,U38+1,FALSE)","v":1775},{"$f":"HLOOKUP(V39,$S$41:$W$46,V38+1,FALSE)","v":1775},{"$f":"HLOOKUP(W39,$S$41:$W$46,W38+1,FALSE)","v":1775},null,null,null,{"$f":"VLOOKUP(AA39,AA43:AC48,3)","v":747},{"$f":"VLOOKUP(AB39,AA43:AC48,3)","v":1115},{"$f":"VLOOKUP(AC39,AA43:AC48,3)","v":747},{"$f":"VLOOKUP(AD39,AA43:AC48,3)","v":747},{"$f":"VLOOKUP(AE39,AA43:AC48,3)","v":747},null,{"$f":"VLOOKUP(AG39,AG43:AI48,3)","v":2163},{"$f":"VLOOKUP(AH39,AG43:AI48,3)","v":1057},{"$f":"VLOOKUP(AI39,AG43:AI48,3)","v":1057},{"$f":"VLOOKUP(AJ39,AG43:AI48,3)","v":1057},{"$f":"VLOOKUP(AK39,AG43:AI48,3)","v":1057}]
[39," 182","Egyéb sokszorosítás",null,3,1,3,2,2,2,2,2,3,2,null,null,null,null,"Munkált.",1,2,3,4,null,null,null,{"$f":"'1.telephely'!B43*Tarifa!AA40","v":0},{"$f":"'2.telephely'!B40*Tarifa!AB40","v":0},{"$f":"'3.telephely'!B40*Tarifa!AC40","v":0},{"$f":"'4.telephely'!B40*Tarifa!AD40","v":0},{"$f":"'5.telephely'!B40*Tarifa!AE40","v":0},null,{"$f":"'1.telephely'!B43*AG40","v":0},{"$f":"'2.telephely'!B40*AH40","v":0},{"$f":"'3.telephely'!B41*Tarifa!AI40","v":0},{"$f":"'4.telephely'!B40*Tarifa!AJ40","v":0},{"$f":"'5.telephely'!B40*Tarifa!AK40","v":0}]
[40," 289","Egyéb speciális rendeltetésű gép gyártása",null,3,1,3,2,2,3,3,0,4,3,null,null,null,null,1,0,890,1368,1780,null,null,null,"Tanuló ált",1,2,null,null,null,"Tanuló munk.",1,2]
[41," 439","Egyéb speciális szaképítés",null,4,1,2,2,2,1,4,4,4,3,null,null,null,null,2,0,1775,2729,3550,null,null,null,0,0,0,null,"Össz:",null,0,0,0]
[42," 467","Egyéb szakosodott nagykereskedelem",null,3,2,3,3,3,3,3,0,3,3,null,null,null,null,3,0,2650,4074,5300,null,null,null,1,0,372,null,{"$f":"IF(OR(AA41=0,AG41=0),0,AA41+AG41)","v":0},null,1,0,434]
[43," 559","Egyéb szálláshely-szolgáltatás",null,3,2,3,3,1,3,2,2,2,2,null,null,null,null,4,0,3985,6126,7970,null,null,null,2,0,747,null,{"$f":"IF(OR(AB41=0,AH41=0),0,AB41+AH41)","v":0},null,2,0,1057]
[44," 960","Egyéb személyi szolgáltatás",null,2,2,2,3,4,4,0,3,3,3,null,null,null,null,5,0,5340,8209,10680,null,null,null,3,0,1115,null,{"$f":"IF(OR(AC41=0,AI41=0),0,AC41+AI41)","v":0},null,3,0,1302]
[45," 889","Egyéb szociális ellátás bentlakás nélkül",null,2,1,4,3,3,3,3,3,3,3,null,null,null,null,null,null,null,null,null,null,null,null,4,0,1673,null,{"$f":"IF(OR(AD41=0,AJ41=0),0,AD41+AJ41)","v":0},null,4,0,2163]
[46," 932","Egyéb szórakoztatás, szabadidős tevékenység",null,5,4,4,5,5,4,0,0,3,4,null,null,null,null,{"$f":"VLOOKUP(S50,$X$31:$Y$34,2,FALSE)","v":"5 millió Ft"},{"$f":"VLOOKUP(T50,$X$31:$Y$34,2,FALSE)","v":"5 millió Ft"},{"$f":"VLOOKUP(U50,$X$31:$Y$34,2,FALSE)","v":"5 millió Ft"},{"$f":"VLOOKUP(V50,$X$31:$Y$34,2,FALSE)","v":"5 millió Ft"},{"$f":"VLOOKUP(W50,$X$31:$Y$34,2,FALSE)","v":"5 millió Ft"},null,null,null,5,0,2243,null,{"$f":"IF(OR(AE41=0,AK41=0),0,AE41+AK41)","v":0},null,5,0,2884]
[47," 139","Egyéb textiláru gyártása",null,5,1,3,2,4,2,2,1,3,2,null,null,null,null,{"$f":"VLOOKUP(O3,$A$3:$L$246,11)","v":4},{"$f":"VLOOKUP(O4,$A$3:$L$246,11)","v":3},{"$f":"VLOOKUP($O5,$A$3:$L$246,11)","v":2},{"$f":"VLOOKUP($O6,$A$3:$L$246,11)","v":2},{"$f":"VLOOKUP($O7,$A$3:$L$246,11)","v":0}]
[48," 205","Egyéb vegyi termék gyártása",null,5,2,5,4,5,4,5,0,5,4,null,null,null,null,2,2,2,2,2]
[49," 279","Egyéb villamos berendezés gyártása",null,3,1,3,2,2,2,2,0,4,2,null,null,null,null,{"$f":"HLOOKUP(S50,S52:W58,S49+2,FALSE)","v":890},{"$f":"HLOOKUP(T50,S52:W58,T49+2,FALSE)","v":616},{"$f":"HLOOKUP(U50,$S$52:$W$58,U49+2,FALSE)","v":411},{"$f":"HLOOKUP(V50,$S$52:$W$58,V49+2,FALSE)","v":411},{"$f":"HLOOKUP(W50,$S$52:$W$58,W49+2,FALSE)","v":0},null,null,null,"Eredetiségvizsgálók",50000]
[50," 9491","Egyházi tevékenység",null,4,4,2,3,2,3,0,2,3,3,null,null,null,null,"Termék",1,2,3,4]
[51," 321","Ékszergyártás",null,2,2,2,2,2,2,0,0,2,2,null,null,null,null,0,0,0,0,0,null,null,null,{"$f":"VLOOKUP(AA54,$AF$54:$AG$56,2,FALSE)","v":"5 millió Ft"},{"$f":"VLOOKUP(AB54,$AF$54:$AG$56,2,FALSE)","v":"5 millió Ft"},{"$f":"VLOOKUP(AC54,$AF$54:$AG$56,2,FALSE)","v":"5 millió Ft"},{"$f":"VLOOKUP(AD54,$AF$54:$AG$56,2,FALSE)","v":"5 millió Ft"},{"$f":"VLOOKUP(AE54,$AF$54:$AG$56,2,FALSE)","v":"5 millió Ft"}]
[52," 261","Elektronikai alkatrész, áramköri kártya gyártása",null,3,3,3,1,1,2,2,0,4,2,null,null,null,null,1,0,205,411,499,null,null,null,2,2,2,2,2,1,0]
[53," 264","Elektronikus fogyasztási cikk gyártása",null,3,2,3,2,2,2,2,0,4,2,null,null,null,null,2,0,411,822,999,null,null,null,{"$f":"IF(AA54=1,0,IF(AA54=2,'1.telephely'!B49*Tarifa!AB57,IF(Tarifa!AA54=3,'1.telephely'!B49*Tarifa!AB58,0)))","v":0},{"$f":"IF(AB54=1,0,IF(AB54=2,'2.telephely'!B46*Tarifa!AB57,IF(Tarifa!AB54=3,'2.telephely'!B46*Tarifa!AB58,0)))","v":0},{"$f":"IF(AC54=1,0,IF(AC54=2,'3.telephely'!B46*Tarifa!AB57,IF(Tarifa!AC54=3,'3.telephely'!B46*Tarifa!AB58,0)))","v":0},{"$f":"IF(AD54=1,0,IF(AD54=2,'4.telephely'!B46*Tarifa!AB57,IF(Tarifa!AD54=3,'4.telephely'!B46*Tarifa!AB58,0)))","v":0},{"$f":"IF(AE54=1,0,IF(AE54=2,'5.telephely'!B46*Tarifa!AB57,IF(Tarifa!AE54=3,'5.telephely'!B46*Tarifa!AB58,0)))","v":0},2,"5 millió Ft"]
[54," 472","Élelmiszer, ital, dohányáru kiskereskedelme",null,4,2,2,2,3,2,2,0,2,3,null,null,null,null,3,0,616,1233,1498,null,null,null,"Gépjármű javítók",null,null,null,null,3,"15 millió Ft"]
[55," 463","Élelmiszer, ital, dohányáru nagykereskedelme",null,4,3,4,2,1,2,2,0,3,2,null,null,null,null,4,0,890,1781,2164,null,null,null,"5 millió Ft",0.35]
[56," 9001","Előadó-művészet",null,4,2,3,4,4,4,0,1,3,4,null,null,null,null,5,0,1223,2446,2973,null,null,null,"15 millió Ft",0.45]
[57," 711","Építészmérnöki tevékenység",null,4,2,2,4,4,4,0,0,4,4]
[58," 811","Építményüzemeltetés",null,2,2,3,3,4,3,0,2,3,3,null,null,null,null,{"$f":"VLOOKUP(S62,$X$31:$Y$34,2,FALSE)","v":"5 millió Ft"},{"$f":"VLOOKUP(T62,$X$31:$Y$34,2,FALSE)","v":"5 millió Ft"},{"$f":"VLOOKUP(U62,$X$31:$Y$34,2,FALSE)","v":"5 millió Ft"},{"$f":"VLOOKUP(V62,$X$31:$Y$34,2,FALSE)","v":"5 millió Ft"},{"$f":"VLOOKUP(W62,$X$31:$Y$34,2,FALSE)","v":"5 millió Ft"},null,null,null,"Szállodai"]
[59,475203,"Építőanyag- és szaniteráru-kereskedelem",null,4,3,3,3,3,3,3,0,3,3,null,null,null,null,{"$f":"VLOOKUP($O3,$A$3:$N$246,10)","v":2},{"$f":"VLOOKUP(O4,$A$3:$L$246,10)","v":3},{"$f":"VLOOKUP(O5,$A$3:$L$246,10)","v":2},{"$f":"VLOOKUP(O6,$A$3:$L$246,10)","v":2},{"$f":"VLOOKUP(O7,$A$3:$L$246,10)","v":2},null,null,null,2,2,2,2,2]
[60," 411","Épületépítési projekt szervezése",null,4,3,2,2,2,5,0,3,4,2,null,null,null,null,2,2,2,2,2,null,null,null,{"$f":"VLOOKUP(AA61,$AF$54:$AG$56,2,FALSE)","v":"5 millió Ft"},{"$f":"VLOOKUP(AB61,$AF$54:$AG$56,2,FALSE)","v":"5 millió Ft"},{"$f":"VLOOKUP(AC61,$AF$54:$AG$56,2,FALSE)","v":"5 millió Ft"},{"$f":"VLOOKUP(AD61,$AF$54:$AG$56,2,FALSE)","v":"5 millió Ft"},{"$f":"VLOOKUP(AE61,$AF$54:$AG$56,2,FALSE)","v":"5 millió Ft"}]
[61,475205,"Épületfa-kiskereskedelem",null,4,1,2,2,3,2,2,0,3,3,null,null,null,null,{"$f":"HLOOKUP(S62,S64:W70,S61+2,FALSE)","v":1195},{"$f":"HLOOKUP(T62,S64:W70,T61+2,FALSE)","v":1787},{"$f":"HLOOKUP(U62,$S$64:$W$70,U61+2,FALSE)","v":1195},{"$f":"HLOOKUP(V62,$S$64:$W$70,V61+2,FALSE)","v":1195},{"$f":"HLOOKUP(W62,$S$64:$W$70,W61+2,FALSE)","v":1195}]
[62," 432","Épületgépészeti szerelés",null,3,3,2,4,4,4,4,4,4,3,null,null,null,null,"Bérlői",1,2,3,4]
[63," 024","Erdészeti szolgáltatás",null,4,2,2,3,4,3,1,1,2,3,null,null,null,null,0,0,0,0,0]
[64," 021","Erdészeti, egyéb erdőgazdálkodási tevékenység",null,4,2,2,3,4,3,1,1,2,3,null,null,null,null,1,0,591,1183,1437]
[65,772903,"Esküvői ruha, jelmez, egyéb ruházati termék kölcsönzése",null,3,2,2,2,2,2,1,1,3,3,null,null,null,null,2,0,1195,2390,2905]
[66,561001,"Éttermi, cukrászdai szolgáltatás ",null,2,2,2,2,2,3,4,0,2,3,null,null,null,null,3,0,1787,3573,4343]
[67," 561","Éttermi, mozgó vendéglátás",null,2,2,2,2,2,3,3,1,2,2,null,null,null,null,4,0,2692,5385,6544]
[68," 012","Évelő növény termesztése",null,3,1,2,2,5,2,1,1,2,2,null,null,null,null,5,0,3586,7171,8716]
[69," 257","Evőeszköz, szerszám, általános fémáru gyártása",null,4,2,2,2,2,2,2,0,3,3]
[70," 162","Fa-, parafatermék, fonottáru gyártása",null,6,2,5,4,5,4,3,1,3,4,null,null,null,null,{"$f":"VLOOKUP(S74,$X$75:$Y$78,2,FALSE)","v":"5 millió Ft"},{"$f":"VLOOKUP(T74,$X$75:$Y$78,2,FALSE)","v":"5 millió Ft"},{"$f":"VLOOKUP(U74,$X$75:$Y$78,2,FALSE)","v":"5 millió Ft"},{"$f":"VLOOKUP(V74,$X$75:$Y$78,2,FALSE)","v":"5 millió Ft"},{"$f":"VLOOKUP(W74,$X$75:$Y$78,2,FALSE)","v":"5 millió Ft"}]
[71," 022","Fakitermelés",null,4,2,2,3,4,3,1,1,2,3,null,null,null,null,{"$f":"VLOOKUP(O3,$A$3:$N$246,12)","v":1},{"$f":"VLOOKUP(O4,$A$3:$N$246,12)","v":0},{"$f":"VLOOKUP(O5,$A$3:$N$246,12)","v":2},{"$f":"VLOOKUP(O6,$A$3:$N$246,12)","v":2},{"$f":"VLOOKUP(O7,$A$3:$N$246,12)","v":0}]
[72," 861","Fekvőbeteg-ellátás",null,3,3,4,5,5,3,0,0,5,3,null,null,null,null,2,2,2,2,2,null,null,null,"Értékelés módja"]
[73," 854","Felső szintű oktatás",null,4,4,4,4,4,4,4,4,3,4,null,null,null,null,{"$f":"HLOOKUP(S74,$S$76:$W$82,S73+2,FALSE)","v":430},{"$f":"HLOOKUP(T74,$S$76:$W$82,T73+2,FALSE)","v":0},{"$f":"HLOOKUP(U74,$S$76:$W$82,U73+2,FALSE)","v":620},{"$f":"HLOOKUP(V74,$S$76:$W$82,V73+2,FALSE)","v":620},{"$f":"HLOOKUP(W74,$S$76:$W$82,W73+2,FALSE)","v":0},1,0,null,"1.telephely",2]
[74," 256","Fém felületkezelése, megmunkálása",null,4,1,4,2,2,4,2,0,3,3,null,null,null,null,"Szolg.",1,2,3,4,2,"5 millió Ft",null,"2. telephely",1]
[75," 251","Fémszerkezet, -épületelem gyártása",null,4,2,2,2,5,2,2,0,3,3,null,null,null,null,0,0,0,0,0,3,"15 millió Ft",null,"3. telephely",2]
[76," 742","Fényképészet",null,2,1,2,3,2,3,0,2,3,3,null,null,null,null,1,0,430,635,731,4,"25 millió Ft",null,"4. telephely",2]
[77," 203","Festék, bevonóanyag gyártása",null,6,1,4,4,4,4,4,0,5,4,null,null,null,null,2,0,620,916,1053,null,null,null,"5. telephely",2]
[78," 591","Film-, video-, televízióműsor-gyártás",null,3,2,4,4,4,0,0,4,3,0,null,null,null,null,3,0,760,1123,1291]
[79," 5914","Filmvetítés",null,3,2,3,3,2,3,0,1,2,3,null,null,null,null,4,0,1060,1566,1801]
[80," 9602","Fodrászat, szépségápolás",null,4,2,4,3,3,3,3,4,3,3,null,null,null,null,5,0,1620,2393,2752]
[81," 8623","Fogorvosi járóbeteg-ellátás",null,2,1,2,2,2,2,0,0,5,3]
[82," 743","Fordítás, tolmácsolás",null,4,1,3,1,3,1,2,1,2,3,null,null,null,null,{"$f":"VLOOKUP(S86,$X$31:$Y$34,2,FALSE)","v":"5 millió Ft"},{"$f":"VLOOKUP(T86,$X$31:$Y$34,2,FALSE)","v":"5 millió Ft"},{"$f":"VLOOKUP(U86,$X$31:$Y$34,2,FALSE)","v":"5 millió Ft"},{"$f":"VLOOKUP(V86,$X$31:$Y$34,2,FALSE)","v":"5 millió Ft"},{"$f":"VLOOKUP(W86,$X$31:$Y$34,2,FALSE)","v":"5 millió Ft"}]
[83,"477808","Fotó-,optikai cikk- kiskereskedelem",null,2,2,2,2,2,2,1,0,3,3,null,null,null,null,{"$f":"VLOOKUP(O3,$A$3:$N$246,14)","v":3},{"$f":"VLOOKUP(O4,$A$3:$N$246,14)","v":3},{"$f":"VLOOKUP(O5,$A$3:$N$246,14)","v":2},{"$f":"VLOOKUP(O6,$A$3:$N$246,14)","v":2},{"$f":"VLOOKUP(O7,$A$3:$N$246,14)","v":3}]
[84," 161","Fűrészárugyártás",null,6,2,4,2,5,2,1,0,3,4,null,null,null,null,2,2,2,2,2]
[85," 252","Fűtési kazán, radiátor, fémtartály gyártása",null,4,1,2,4,4,5,2,0,3,3,null,null,null,null,{"$f":"HLOOKUP(S86,$S$88:$W$94,S85+2,FALSE)","v":684},{"$f":"HLOOKUP(T86,$S$88:$W$94,T85+2,FALSE)","v":684},{"$f":"HLOOKUP(U86,$S$88:$W$94,U85+2,FALSE)","v":558},{"$f":"HLOOKUP(V86,$S$88:$W$94,V85+2,FALSE)","v":558},{"$f":"HLOOKUP(W86,$S$88:$W$94,W85+2,FALSE)","v":684}]
[86," 453","Gépjárműalkatrész-kereskedelem",null,2,3,1,2,1,2,3,0,2,2,null,null,null,null,"Bérbeadói",1,2,3,4]
[87," 452","Gépjárműjavítás, -karbantartás",null,3,2,2,2,2,2,0,2,2,2,null,null,null,null,0,0,0,0,0]
[88," 292","Gépjármű-karosszéria, pótkocsi gyártása",null,4,2,3,2,2,4,0,0,4,3,null,null,null,null,1,0,258,439,516]
[89," 451","Gépjármű-kereskedelem",null,3,3,2,2,2,2,0,2,2,2,null,null,null,null,2,0,558,949,1116]
[90," 473","Gépjárműüzemanyag-kiskereskedelem",null,4,4,2,4,4,4,4,0,5,3,null,null,null,null,3,0,684,1163,1368]
[91," 253","Gőzkazán gyártása",null,4,1,2,4,4,5,2,0,3,3,null,null,null,null,4,0,1060,1802,2120]
[92," 221","Gumitermék gyártása",null,5,2,3,3,4,3,3,0,5,3,null,null,null,null,5,0,1620,2754,3240]
[93," 4773","Gyógyszer-kiskereskedelem",null,3,4,2,4,2,3,3,0,3,3]
[94," 103","Gyümölcs-, zöldségfeldolgozás, -tartósítás",null,2,2,2,2,2,2,3,0,3,2,null,null,null,null,{"$f":"VLOOKUP(S98,$X$75:$Y$78,2,FALSE)","v":"5 millió Ft"},{"$f":"VLOOKUP(T98,$X$75:$Y$78,2,FALSE)","v":"5 millió Ft"},{"$f":"VLOOKUP(U98,$X$75:$Y$78,2,FALSE)","v":"5 millió Ft"},{"$f":"VLOOKUP(V98,$X$75:$Y$78,2,FALSE)","v":"5 millió Ft"},{"$f":"VLOOKUP(W98,$X$75:$Y$78,2,FALSE)","v":"5 millió Ft"}]
[95," 031","Halászat",null,1,1,3,2,1,2,2,1,2,2,null,null,null,null,{"$f":"VLOOKUP(O3,$A$3:$N$246,13)","v":3},{"$f":"VLOOKUP(O4,$A$3:$N$246,13)","v":3},{"$f":"VLOOKUP(O5,$A$3:$N$246,13)","v":3},{"$f":"VLOOKUP(O6,$A$3:$N$246,13)","v":3},{"$f":"VLOOKUP(O7,$A$3:$N$246,13)","v":2}]
[96," 102","Halfeldolgozás, -tartósítás",null,3,2,3,3,3,3,3,0,3,3,null,null,null,null,2,2,2,2,2]
[97," 032","Halgazdálkodás",null,1,1,3,2,1,2,2,1,2,2,null,null,null,null,{"$f":"HLOOKUP(S98,$S$100:$W$106,S97+2,FALSE)","v":150},{"$f":"HLOOKUP(T98,$S$100:$W$106,T97+2,FALSE)","v":150},{"$f":"HLOOKUP(U98,$S$100:$W$106,U97+2,FALSE)","v":150},{"$f":"HLOOKUP(V98,$S$100:$W$106,V97+2,FALSE)","v":150},{"$f":"HLOOKUP(W98,$S$100:$W$106,W97+2,FALSE)","v":120}]
[98," 592","Hangfelvétel készítése, kiadása",null,3,2,2,2,2,2,0,3,2,3,null,null,null,null,"Környezet",1,2,3,4]
[99," 322","Hangszergyártás",null,4,2,4,2,3,2,4,0,2,2,null,null,null,null,0,0,0,0,0]
[100,475909,"Hangszer-kiskereskedelem ",null,2,2,2,3,3,3,1,0,2,2,null,null,null,null,1,0,60,89,102]
[101," 982","Háztartás szolgáltatása saját fogyasztásra",null,4,2,4,4,4,3,1,0,4,3,null,null,null,null,2,0,120,178,204]
[102," 981","Háztartás termék-előállítása, szolgáltatása saját fogyasztásra",null,4,2,4,4,4,3,1,0,4,3,null,null,null,null,3,0,150,222,255]
[103," 970","Háztartási alkalmazottat foglalkoztató magánháztartás",null,3,2,2,4,4,2,0,0,3,3,null,null,null,null,4,0,170,252,289]
[104," 464","Háztartási cikk nagykereskedelme",null,3,2,2,3,3,3,3,0,3,3,null,null,null,null,5,0,190,281,323]
[105," 275","Háztartási készülék gyártása",null,3,1,3,2,2,2,2,0,4,2]
[106," 263","Híradás-technikai berendezés gyártása",null,3,2,3,2,2,2,2,0,4,2,null,null,null,null,"Megyei jogú város"]
[107," 383","Hulladékanyag hasznosítása",null,4,1,2,2,2,1,0,0,0,4,null,null,null,null,5600,{"$f":"VLOOKUP('1.telephely'!$F$5,$S$109:$S$244,1,FALSE)","v":{"$error":"#N/A"}},{"$f":"ISNA(T109)","v":true}]
[108," 381","Hulladékgyűjtés",null,4,1,2,2,4,2,0,1,0,4,null,null,null,null,9400,{"$f":"VLOOKUP('2.telephely'!$F$2,$S$109:$S$244,1,FALSE)","v":{"$error":"#N/A"}},{"$f":"ISNA(T110)","v":true}]
[109," 101","Húsfeldolgozás, -tartósítás, húskészítmény gyártása",null,3,2,3,2,4,3,3,0,3,3,null,null,null,null,2400,{"$f":"VLOOKUP('3.telephely'!$F$2,$S$109:$S$244,1,FALSE)","v":{"$error":"#N/A"}},{"$f":"ISNA(T111)","v":true}]
[110," 873","Idősek, fogyatékosok bentlakásos ellátása",null,2,2,2,4,4,4,0,3,3,4,null,null,null,null,3300,{"$f":"VLOOKUP('4.telephely'!$F$2,$S$109:$S$244,1,FALSE)","v":{"$error":"#N/A"}},{"$f":"ISNA(T112)","v":true}]
[111," 881","Idősek, fogyatékosok szociális ellátása bentlakás nélkül",null,2,1,4,3,3,3,3,3,3,3,null,null,null,null,2030,{"$f":"VLOOKUP('5.telephely'!$F$2,$S$109:$S$244,1,FALSE)","v":{"$error":"#N/A"}},{"$f":"ISNA(T113)","v":true}]
[112," 4775","Illatszer-kiskereskedelem",null,4,2,3,3,3,3,3,0,3,3,null,null,null,null,6800]
[113," 474","Információs, híradás-technikai termék kiskereskedelme",null,3,3,2,2,2,1,2,0,3,2,null,null,null,null,7400]
[114," 620","Információ-technológiai szolgáltatás",null,3,2,4,2,2,2,2,0,3,3,null,null,null,null,6000]
[115," 465","Információtechnológiai, híradás-technikai termék nagykereskedelme",null,3,3,2,2,2,1,2,0,3,2,null,null,null,null,8800]
[116," 683","Ingatlanügynöki, -kezelési szolgáltatás",null,2,3,1,2,3,2,4,1,2,2,null,null,null,null,4400]
[117," 4719","Iparcikk jellegű bolti vegyes kiskereskedelem",null,3,2,3,3,3,3,3,0,2,3,null,null,null,null,3100]
[118," 332","Ipari gép, berendezés üzembe helyezése",null,3,2,2,3,4,3,4,4,4,3,null,null,null,null,7100]
[119," 331","Ipari gép, berendezés, eszköz javítása",null,3,2,1,3,4,3,4,4,4,3,null,null,null,null,8000]
[120," 851","Iskolai előkészítő oktatás",null,3,4,4,4,4,4,2,4,3,4,null,null,null,null,5000]
[121,110,"Italgyártás",null,3,3,3,3,4,3,3,1,3,3,null,null,null,null,9700]
[122,563,"Italszolgáltatás",null,2,3,2,2,2,3,3,1,2,2,null,null,null,null,2800]
[123," 8553","Járművezető-oktatás",null,3,1,2,2,4,2,0,1,3,4,null,null,null,null,8200]
[124," 324","Játékgyártás",null,3,1,3,2,2,2,4,0,2,2,null,null,null,null,8900]
[125," 4765","Játék-kiskereskedelem",null,3,3,3,3,2,3,3,0,3,2,null,null,null,null,4000]
[126," 691","Jogi tevékenység",null,2,3,2,2,2,2,0,5,2,3,null,null,null,null,4002]
[127," 553","Kempingszolgáltatás",null,3,2,3,3,1,3,2,2,3,2,null,null,null,null,4024]
[128," 233","Kerámia, agyag építőanyag gyártása",null,3,2,3,3,3,3,2,0,3,3,null,null,null,null,4025]
[129," 581","Kiadói tevékenység",null,4,2,1,2,2,2,0,0,3,3,null,null,null,null,4026]
[130," 823","Konferencia, kereskedelmi bemutató szervezése",null,4,1,2,2,2,2,0,2,2,3,null,null,null,null,4027]
[131," 4942","Költöztetés",null,4,2,3,3,4,3,1,1,3,3,null,null,null,null,4028]
[132," 237","Kőmegmunkálás",null,2,1,1,1,5,1,1,0,3,2,null,null,null,null,4029]
[133," 4761","Könyv-kiskereskedelem",null,2,2,2,2,2,2,1,0,3,2,null,null,null,null,4030]
[134," 910","Könyvtári, levéltári, múzeumi, egyéb kulturális tevékenység",null,4,2,3,3,3,3,0,1,3,3,null,null,null,null,4031]
[135," 143","Kötött, hurkolt cikk gyártása",null,5,1,4,2,2,2,2,0,3,2,null,null,null,null,4032]
[136," 853","Középfokú oktatás",null,4,4,4,4,4,4,3,1,3,4,null,null,null,null,4033]
[137," 841","Közigazgatás",null,4,2,4,4,4,4,2,5,4,3,null,null,null,null,4034]
[138," 422","Közműépítés",null,2,3,1,5,4,3,4,5,4,3,null,null,null,null,9000]
[139," 291","Közúti gépjármű gyártása",null,4,2,3,2,2,4,0,0,4,3,null,null,null,null,9021]
[140," 293","Közúti jármű alkatrészeinek gyártása",null,4,2,4,2,2,3,0,0,4,3,null,null,null,null,9022]
[141," 476","Kulturális, szabadidős cikk bolti kiskereskedelme",null,3,3,3,3,3,3,2,0,2,2,null,null,null,null,9023]
[142," 4772","Lábbeli-, bőráru-kiskereskedelem",null,2,3,2,2,2,2,2,0,3,3,null,null,null,null,9024]
[143," 152","Lábbeligyártás",null,4,1,4,1,2,1,3,0,3,2,null,null,null,null,9025]
[144," 412","Lakó- és nem lakó épület építése",null,3,3,1,5,5,4,4,0,4,2,null,null,null,null,9026]
[145," 429","M.n.s. egyéb építmény építése",null,2,2,2,5,4,4,5,3,4,3,null,null,null,null,9027]
[146," 329","M.n.s. egyéb feldolgozóipari tevékenység",null,4,2,3,2,2,1,4,0,2,2,null,null,null,null,9028]
[147," 9499","M.n.s. egyéb közösségi, társadalmi tevékenység",null,3,4,2,4,2,4,0,2,3,4,null,null,null,null,9029]
[148," 749","M.n.s. egyéb szakmai, tudományos, műszaki tevékenység",null,4,2,3,2,2,2,0,0,3,3,null,null,null,null,9030]
[149," 268","Mágneses, optikai információhordozó gyártása",null,3,3,3,2,2,1,2,0,3,2,null,null,null,null,9011]
[150," 106","Malomipari termék, keményítő gyártása",null,3,2,3,2,2,2,2,0,3,2,null,null,null,null,9012]
[151," 872","Mentális, szenvedélybeteg bentlakásos ellátása",null,5,2,4,4,5,4,0,5,3,4,null,null,null,null,9019]
[152,475206,"Mezőgazdasági eszközök, kiskereskedelme",null,3,3,3,3,3,3,3,0,3,3,null,null,null,null,5623]
[153," 462","Mezőgazdasági nyersanyag, élőállat nagykereskedelme",null,3,2,2,2,2,3,3,0,3,3,null,null,null,null,5671]
[154," 202","Mezőgazdasági vegyi termék gyártása",null,4,2,4,4,4,4,4,0,5,4,null,null,null,null,4063]
[155," 016","Mezőgazdasági, betakarítást követő szolgáltatás",null,3,2,2,2,4,2,2,1,2,2,null,null,null,null,4078]
[156," 283","Mezőgazdasági, erdészeti gép gyártása",null,3,1,3,2,2,2,2,0,4,3,null,null,null,null,4079]
[157," 641","Monetáris közvetítés",null,2,2,1,2,2,2,0,0,2,3,null,null,null,null,4225]
[158," 454","Motorkerékpár, -alkatrész kereskedelme, javítása",null,3,2,2,2,2,2,2,2,2,2,null,null,null,null,2407]
[159," 782","Munkaerőkölcsönzés",null,2,1,2,2,2,2,0,4,3,3,null,null,null,null,3304]
[160," 781","Munkaközvetítés",null,2,1,2,2,2,2,0,4,3,3,null,null,null,null,6806]
[161,477814,"Mutatványoskellékáru-kiskereskedelem  ",null,3,2,3,2,2,2,1,0,3,3,null,null,null,null,6008]
[162," 9102","Múzeumi tevékenység",null,2,2,2,4,3,4,0,1,3,3,null,null,null,null,6044]
[163," 222","Műanyag termék gyártása",null,5,2,5,3,4,3,2,0,5,3,null,null,null,null,3500]
[164," 712","Műszaki vizsgálat, elemzés",null,2,2,2,2,2,2,0,3,3,3,null,null,null,null,3501]
[165," 265","Műszer-, óragyártás",null,3,3,2,2,2,2,2,0,3,2,null,null,null,null,3508]
[166," 479","Nem bolti, piaci kiskereskedelem",null,2,3,2,2,2,2,2,0,2,2,null,null,null,null,3510]
[167," 011","Nem évelő növény termesztése",null,3,1,2,2,5,2,1,1,2,2,null,null,null,null,3515]
[168," 471","Nem szakosodott bolti vegyes kiskereskedelem",null,3,2,2,3,3,3,3,0,2,3,null,null,null,null,3516]
[169," 9104","Növény-, állatkert, természetvédelmi terület működtetése",null,4,3,2,5,4,5,0,1,3,3,null,null,null,null,3517]
[170," 013","Növényi szaporítóanyag termesztése",null,3,1,2,2,5,2,1,1,2,2,null,null,null,null,3518]
[171," 104","Növényi, állati olaj gyártása",null,3,1,3,2,2,2,2,0,3,2,null,null,null,null,3519]
[172," 181","Nyomdai tevékenység",null,3,1,3,2,2,2,2,2,3,2,null,null,null,null,3521]
[173," 856","Oktatást kiegészítő tevékenység",null,3,4,4,4,4,4,2,4,3,4,null,null,null,null,3524]
[174," 267","Optikai eszköz gyártása",null,3,1,2,2,2,3,2,0,3,2,null,null,null,null,3525]
[175," 325","Orvosi eszköz gyártása",null,3,2,3,2,2,3,0,0,3,2,null,null,null,null,3526]
[176,551002,"Panzió szolgáltatás",null,2,3,2,2,2,2,2,1,2,2,null,null,null,null,3527]
[177,960903,"Partnerközvetítés, társkeresés ",null,2,1,1,3,2,3,0,3,3,3,null,null,null,null,3528]
[178," 107","Pékáru, tésztafélék gyártása",null,3,2,3,2,3,2,3,0,3,2,null,null,null,null,3529]
[179," 661","Pénzügyi kiegészítő tevékenység (kivéve: biztosítás, nyugdíjalap)",null,3,5,2,1,1,1,0,0,2,2,null,null,null,null,3530]
[180," 732","Piac-, közvélemény-kutatás",null,2,1,2,2,2,2,0,3,3,3,null,null,null,null,3531]
[181," 234","Porcelán, kerámiatermék gyártása",null,3,2,3,2,3,2,3,0,3,3,null,null,null,null,3532]
[182," 531","Postai tevékenység (egyetemes kötelezettséggel)",null,2,2,1,2,4,2,0,1,3,3,null,null,null,null,3533]
[183," 601","Rádióműsor-szolgáltatás",null,3,2,2,2,2,2,0,3,2,2,null,null,null,null,3534]
[184," 521","Raktározás, tárolás",null,4,4,3,2,3,2,1,1,3,3,null,null,null,null,3535]
[185," 731","Reklám",null,4,4,2,3,3,3,0,3,3,3,null,null,null,null,8808]
[186," 562","Rendezvényi étkeztetés és egyéb vendéglátás",null,4,4,4,5,4,5,5,0,3,3,null,null,null,null,8809]
[187," 141","Ruházat gyártása (kivéve: szőrmeruházat)",null,4,2,4,2,2,2,2,0,3,2,null,null,null,null,8831]
[188," 4771","Ruházat kiskereskedelem",null,4,4,3,4,3,4,4,0,3,3,null,null,null,null,4246]
[189,952911,"Ruházati és egyéb konfekcionált termékek javítása",null,2,2,1,2,1,2,1,1,4,2,null,null,null,null,4405]
[190," 681","Saját tulajdonú ingatlan adásvétele",null,2,2,2,3,3,3,0,0,2,2,null,null,null,null,4412]
[191," 682","Saját tulajdonú, bérelt ingatlan bérbeadása, üzemeltetése",null,2,2,2,3,2,3,0,3,2,2,null,null,null,null,4431]
[192," 323","Sportszergyártás",null,4,2,3,2,3,2,4,0,2,2,null,null,null,null,4432]
[193," 4764","Sportszer-kiskereskedelem",null,3,3,3,3,2,3,2,0,2,2,null,null,null,null,4433]
[194," 931","Sporttevékenység",null,4,2,4,4,3,4,0,2,3,4,null,null,null,null,4481]
[195," 8622","Szakorvosi járóbeteg-ellátás",null,2,1,2,3,3,3,0,0,5,3,null,null,null,null,4551]
[196," 942","Szakszervezeti tevékenység",null,2,2,2,2,2,4,0,0,3,4,null,null,null,null,7621]
[197," 551","Szállodai szolgáltatás",null,2,2,2,2,2,2,2,1,2,2,null,null,null,null,7622]
[198," 951","Számítógép, kommunikációs eszköz javítása",null,3,2,2,2,2,2,2,2,4,2,null,null,null,null,7623]
[199," 4741","Számítógép, periféria, szoftver kiskereskedelme",null,3,3,2,3,2,2,1,0,3,2,null,null,null,null,7624]
[200," 262","Számítógép, perifériás egység gyártása",null,3,3,3,2,2,2,2,0,4,2,null,null,null,null,7625]
[201," 692","Számviteli, könyvvizsgálói, adószakértői tevékenység",null,2,2,2,1,2,1,0,4,2,3,null,null,null,null,7626]
[202," 952","Személyi, háztartási cikk javítása",null,3,2,2,2,2,2,2,2,4,2,null,null,null,null,7627]
[203," 370","Szennyvíz gyűjtése, kezelése",null,2,2,4,2,2,2,0,0,0,4,null,null,null,null,7628]
[204," 284","Szerszámgépgyártás",null,3,1,3,2,2,2,2,0,4,3,null,null,null,null,7629]
[205," 582","Szoftverkiadás",null,2,1,2,2,1,2,3,3,3,3,null,null,null,null,7630]
[206," 142","Szőrmecikk gyártása",null,3,3,3,2,2,1,2,0,3,2,null,null,null,null,7631]
[207," 812","Takarítás",null,2,1,1,2,3,2,0,2,4,3,null,null,null,null,7632]
[208," 109","Takarmány gyártása",null,3,1,3,2,3,2,4,0,3,2,null,null,null,null,7633]
[209," 4753","Takaró, szőnyeg, fal-, padlóburkoló kiskereskedelme",null,2,1,2,3,3,3,2,0,3,3,null,null,null,null,7634]
[210,855203,"Táncoktatás",null,3,1,2,4,3,4,0,4,3,4,null,null,null,null,7635]
[211," 842","Társadalmi közszolgáltatás",null,2,2,3,4,4,4,0,5,3,3,null,null,null,null,7636]
[212," 722","Társadalomtudományi, humán kutatás, fejlesztés",null,2,2,2,2,2,2,0,0,3,3,null,null,null,null,7691]
[213," 105","Tejfeldolgozás",null,3,1,3,2,3,2,2,0,3,2,null,null,null,null,7693]
[214," 822","Telefoninformáció",null,4,4,2,3,3,2,0,2,2,3,null,null,null,null,3102]
[215," 602","Televízióműsor összeállítása, szolgáltatása",null,3,2,4,4,2,4,0,4,2,4,null,null,null,null,3104]
[216,869005,"Természetgyógyászati ellátás",null,2,2,2,2,2,2,2,0,5,3,null,null,null,null,3109]
[217," 721","Természettudományi, műszaki kutatás, fejlesztés",null,4,2,3,3,3,4,0,0,3,3,null,null,null,null,3121]
[218," 990","Területen kívüli szervezet",null,4,4,4,4,4,4,0,0,3,3,null,null,null,null,3141]
[219," 9313","Testedzési szolgáltatás",null,3,2,3,4,4,4,1,5,3,4,null,null,null,null,9407]
[220," 9601","Textil, szőrme mosása, tisztítása",null,3,2,4,4,4,4,1,1,4,3,null,null,null,null,9408]
[221," 133","Textilkikészítés",null,5,1,4,2,2,2,2,0,3,2,null,null,null,null,9494]
[222," 4751","Textil-kiskereskedelem",null,3,2,2,3,2,3,1,0,3,2,null,null,null,null,6710]
[223," 131","Textilszálak fonása",null,5,1,3,2,2,1,2,0,3,2,null,null,null,null,6720]
[224," 132","Textilszövés",null,5,1,3,2,2,1,2,0,3,2,null,null,null,null,6721]
[225," 204","Tisztítószer, testápolási cikk gyártása",null,4,2,4,2,4,2,4,0,5,4,null,null,null,null,6722]
[226," 4762","Újság-, papíráru-kiskereskedelem",null,3,3,2,3,2,3,2,0,3,2,null,null,null,null,6723]
[227," 552","Üdülési, egyéb átmeneti szálláshely-szolgáltatás",null,3,3,3,2,2,2,2,2,2,2,null,null,null,null,6724]
[228," 461","Ügynöki nagykereskedelem",null,3,3,3,2,2,2,2,0,3,2,null,null,null,null,6725]
[229," 231","Üveg, üvegtermék gyártása",null,3,1,3,2,3,2,2,0,3,3,null,null,null,null,6726]
[230," 701","Üzletvezetés",null,2,2,2,2,2,2,0,4,2,3,null,null,null,null,6727]
[231," 702","Üzletviteli tanácsadás",null,2,2,2,2,2,2,0,4,2,3,null,null,null,null,6728]
[232," 017","Vadgazdálkodás, vadgazdálkodási szolgáltatás",null,3,2,2,2,4,2,2,1,2,2,null,null,null,null,6729]
[233," 023","Vadon termő egyéb erdei termék gyűjtése",null,4,2,2,3,4,3,1,1,2,3,null,null,null,null,6753]
[234," 642","Vagyonkezelés (holding)",null,2,2,1,2,2,2,0,0,2,3,null,null,null,null,6757]
[235," 941","Vállalkozói, szakmai érdekképviselet",null,2,2,2,2,2,4,0,0,3,4,null,null,null,null,6771]
[236," 4752","Vasáru-, festék-, üveg-kiskereskedelem",null,4,2,2,4,2,4,4,0,3,3,null,null,null,null,6791]
[237," 015","Vegyes gazdálkodás",null,3,2,2,2,4,2,2,1,2,2,null,null,null,null,8019]
[238," 469","Vegyestermékkörű nagykereskedelem",null,4,3,3,3,1,3,2,0,3,3,null,null,null,null,5008]
[239," 206","Vegyi szál gyártása",null,5,2,5,4,5,4,5,0,5,4,null,null,null,null,9707]
[240," 273","Vezeték, kábel, szerelvény gyártása",null,3,1,3,2,2,3,2,0,4,2,null,null,null,null,9719]
[241," 611","Vezetékes távközlés",null,2,4,2,4,5,4,4,1,4,3,null,null,null,null,8411]
[242," 271","Villamos motor, áramfejlesztő, áramelosztó, -szabályozó készülék gyártása",null,4,4,2,2,2,2,2,0,4,2,null,null,null,null,8412]
[243," 274","Villamos világítóeszköz gyártása",null,4,2,3,2,2,2,2,0,4,2]
[244," 360","Víztermelés, -kezelés, -ellátás",null,3,1,0,4,4,4,0,0,0,4]
[]
[]
[]
[]
[]
[]
[]
[]
[]
[]
[]
[]
[]
[]
[]
[]
[]
[]
[]
[]
[]
[]
[]
[]
[]
[]
[]
[]
[]
[]
[]
[]
[]
[]
[]
[]
[]
[]
[]
[]
[]
[]
[]
[]
[]
[]
[]
[]
[]
[]
[]
[]
[]
[]
[]
[]
[]
[]
[]
[]
[]
[]
[]
[]
[]
[]
[]
[]
[]
[]
[]
[]
[]
[]
[]
[]
[]
[]
[]
[]
[]
[]
[]
[]
[]
[]
[]
[]
[]
[]
[]
[]
[]
[]
[]
[]
[]
[]
[]
[]
[]
[]
[]
[]
[]
[]
[]
[]
[]
[]
[]
[]
[]
[]
[]
[]
[]
[]
[]
[]
[]
[]
[]
[]
[]
[]
[]
[]
[]
[]
[]
[]
[]
[]
[]
[]
[]
[]
[]
[]
[]
[]
[]
[]
[]
[]
[]
[]
[]
[]
[]
[]
[]
[]
[]
[]
[]
[]
[]
[]
[]
[]
[]
[]
[]
[]
[]
[]
[]
[]
[]
[]
[]
[]
[]
[]
[]
[]
[]
[]
[]
[]
[]
[]
[]
[]
[]
[]
[]
[]
[]
[]
[]
[]
[]
[]
[]
[]
[]
[]
[]
[]
[]
[]
[]
[]
[]
[]
[]
[]
[]
[]
[]
[]
[]
[]
[]
[]
[]
[]
[]
[]
[]
[]
[]
[]
[]
[]
[]
[]
[]
[]
[]
[]
[]
[]
[]
[]
[]
[]
[]
[]
[]
[]
[]
[]
[]
[]
[]
[]
[]
[]
[]
[]
[]
[]
[]
[]
[]
[]
[]
[]
[]
[]
[]
[]
[]
[]
[]
[]
[]
[]
[]
[]
[]
[]
[]
[]
[]
[]
[]
[]
[]
[]
[]
[]
[]
[]
[]
[]
[]
[]
[]
[]
[]
[]
[]
[]
[]
[]
[]
[]
[]
[]
[]
[]
[]
[]
[]
[]
[]
[]
[]
[]
[]
[]
[]
[]
[]
[]
[]
[]
[]
[]
[]
[]
[]
[]
[]
[]
[]
[]
[]
[]
[]
[]
[]
[]
[]
[]
[]
[]
[]
[]
[]
[]
[]
[]
[]
[]
[]
[]
[]
[]
[]
[]
[]
[]
[]
[]
[]
[]
[]
[]
[]
[]
[]
[]
[]
[]
[]
[]
[]
[]
[]
[]
[]
[]
[]
[]
[]
[]
[]
[]
[]
[]
[]
[]
[]
[]
[]
[]
[]
[]
[]
[]
[]
[]
[]
[]
[]
[]
[]
[]
[]
[]
[]
[]
[]
[]
[]
[]
[]
[]
[]
[]
[]
[]
[]
[]
[]
[]
[]
[]
[]
[]
[]
[]
[]
[]
[]
[]
[]
[]
[]
[]
[]
[]
[]
[]
[]
[]
[]
[]
[]
[]
[]
[]
[]
[]
[]
[]
[]
[]
[]
[]
[]
[]
[]
[]
[]
[]
[]
[]
[]
[]
[]
[]
[]
[]
[]
[]
[]
[]
[]
[]
[]
[]
[]
[]
[]
[]
[]
[]
[]
[]
[]
[]
[]
[]
[]
[]
[]
[]
[]
[]
[]
[]
[]
[]
[]
[]
[]
[]
[]
[]
[]
[]
[]
[]
[]
[]
[]
[]
[]
[]
[]
[]
[]
[]
[]
[]
[]
[]
[]
[]
[]
[]
[]
[]
[]
[]
[]
[]
[]
[]
[]
[]
[]
[]
[null,null,null,null,null,null,null,null,null,null,null,null,null,null,null,null,null,null,null,null,null,null,null,null,null,null,null,2]

{"sheet":"1.telephely","index":1,"n_rows":67,"n_cols":7,"rows_kept":67,"cut":false,"hidden":false,"merged":[[5,3,5,4],[19,7,19,10],[20,3,21,3],[20,4,21,4],[0,0,2,6],[3,3,3,5],[4,3,4,4],[8,0,8,1],[8,3,8,4],[8,5,8,6],[10,7,11,10],[12,7,16,10],[17,3,18,3],[17,7,17,10],[18,7,18,10],[64,1,64,2],[20,5,21,5],[20,7,20,10],[24,8,24,10],[54,0,54,1],[58,1,58,2],[63,1,63,2],[22,7,22,10]]}
["KVB-13 díjkalkuláció"]
[]
[]
["Telephely megnevezése",null,null,"Telephely és kockázatviselés helye"]
["Tevékenység megnevezése",null,null,"Telephely irányítószám"]
["Kódja",{"$f":"VLOOKUP(Tarifa!O3,Tarifa!A3:L246,2)","v":" 310"},null,"Település címe"]
[]
[]
["Alapadatok",null,null,"Felelősségbiztosítási limitek",null,"Felelősségbiztosítási záradék limitek"]
["Éves árbevétel (e Ft)",0,null,"Általános és épülethasználói felelősségbiztosítás",null,"Tanuló baleseti és felelősségbiztosítás","5 millió Ft"]
["Alkalmazottak száma (fő)",0,null,"Munkáltatói felelősségbiztosítás",null,"Szálloda üzemeltetői, szállásadói felelősségbiztosítás"]
["Éves forgalom (e Ft)",0,null,"Termékfelelősség biztosítás",null,"Gépjárműjavítók felelősségbiztosítása"]
["Éves bérleti díj (e Ft)",0,null,"Bérlői felelősségbiztosítás",null,"Gépjármű eredetiségvizsgálatot végzők felelősségbiztosítása","5 millió Ft"]
["Éves bérbeadásból származó forgalom (e Ft)",0,null,"Szolgáltatói felelősségbiztosítás",null,"Szolgáltatás tárgyában okozott károk biztosítása","5 millió Ft"]
[null,null,null,"Bérbeadói felelősségbiztosítás"]
["Tárgyi eszközk értékelésének módja",null,null,"Környezetszennyezési felelősségbiztosítás"]
[]
[null,"Biztosított vagyontárgyak biztosítási összege (e Ft)","Díj ","Betöréses lopás és rablás biztosítás"]
["Épület, építmény",0]
["Egyéb tárgyi eszközök",0,null,null,false]
["Saját készletek",0,null,null,false]
["Idegen készletek",0]
["Készpénz",0,null,null,false,"Díjkategória besorolás"]
["Összesen",{"$f":"IF(OR(B19>0,B20>0),SUM(B19:B23),0)","v":0},{"$f":"IF(B24+'2.telephely'!B21+'3.telephely'!B21+'4.telephely'!B21+'5.telephely'!B21>500000,\"A vállalkozás teljes vagyonértéke nem haladja meg a 500 millió Ft-ot!\",B24*Tarifa!S9)","v":0},null,null,{"$f":"Tarifa!S8","v":5}]
[null,null,null,null,"Vidéki díjengedmény"]
["Betöréses lopás és rablás biztosítás (e Ft)",null,{"$f":"IF(C24=0,0,((IF(E20=TRUE,B20,0))+(IF(E21=TRUE,SUM(B21:B22),0))+(IF(E23=TRUE,B23,0)))*Tarifa!S16*Tarifa!S14)","v":0},null,{"$f":"IF(Tarifa!S13=\"Vidék\",\"Igen\",\"-\")","v":"-"},{"$f":"Tarifa!S15","v":2}]
[]
["Irodai és kereskedelmi elektronikus berendezések, eszközök biztosítása (e Ft)",0,{"$f":"IF(B28>10000,0,(IF(C24=0,0,IF(E28=TRUE,B28*Tarifa!AB20,0))))","v":0},null,false]
[]
["Üzemszünet biztosítás ",{"$f":"B10","v":0},{"$f":"IF(C24=0,0,IF(E30=TRUE,B30*Tarifa!T22,0))","v":0},null,false,{"$f":"Tarifa!T21","v":5}]
[]
["Szállítmány biztosítás ",0,{"$f":"IF(B32>2000,0,(IF(C24=0,0,IF(E32=TRUE,B32*Tarifa!AB21,0))))","v":0},null,false]
[]
["Vakolat károk biztosítása ",{"$f":"B19","v":0},{"$f":"IF(C24=0,0,IF(E34=TRUE,B34*Tarifa!AE20,0))","v":0},null,false]
[]
["Tetőbeázási károk biztosítása ",{"$f":"B19","v":0},{"$f":"IF(C24=0,0,IF(E36=TRUE,B36*Tarifa!AE21,0))","v":0},null,false]
[]
["Vandalizmus károk biztosítása (e Ft)",0,{"$f":"IF(B38>(B24*0.1),0,(IF(C24=0,0,IF(E38=TRUE,B38*Tarifa!AH20,0))))","v":0},null,false]
[]
["Különleges üvegek üvegtörés biztosítása (e Ft)",0,{"$f":"IF(C24=0,0,IF(E40=TRUE,B40*Tarifa!AH21,0))","v":0},null,false]
[]
["Általános és\népülethasználói\nfelelősségbiztosítás (fő)",{"$f":"B11","v":0},{"$f":"IF(C24=0,0,IF(E42=TRUE,B42*Tarifa!S29,0))","v":0},null,false,{"$f":"Tarifa!S27","v":2}]
["Tanuló baleseti és felelősségbiztosítás (fő)",0,{"$f":"IF(C24=0,0,IF(C42>0,IF(E43=TRUE,Tarifa!AE44,0),0))","v":0},null,false,{"$f":"Tarifa!AA39","v":2},{"$f":"Tarifa!AG39","v":4}]
["Munkáltatói\nfelelősségbiztosítás",{"$f":"B11","v":0},{"$f":"IF(C24=0,0,IF(C42>0,IF(E44=TRUE,B44*Tarifa!S40,0),0))","v":0},null,false,{"$f":"Tarifa!S38","v":4}]
["Termékfelelősség\nbiztosítás ",{"$f":"B12","v":0},{"$f":"IF(C24=0,0,IF(C42>0,IF(E45=TRUE,((B45*Tarifa!S51)/1000),0),0))","v":0},null,false,{"$f":"Tarifa!S49","v":4}]
["Bérlői\nfelelősségbiztosítás ",{"$f":"B13","v":0},{"$f":"IF(C24=0,0,IF(C42>0,IF(E46=TRUE,((B46*Tarifa!S63)/1000),0),0))","v":0},null,false,{"$f":"Tarifa!S61","v":2}]
["Szolgáltatói\nfelelősségbiztosítás ",{"$f":"B12","v":0},{"$f":"IF(C24=0,0,IF(C42>0,IF(E47=TRUE,((B47*Tarifa!S75)/1000),0),0))","v":0},null,false,{"$f":"Tarifa!S73","v":1}]
["Szálloda üzemeltetői, szállásadói felelősségbiztosítása",null,{"$f":"IF(E48=FALSE,0,C47)","v":0},null,false]
["Gépjárműjavítók felelősségbiztosítása",{"$f":"B12","v":0},{"$f":"IF(C47=0,0,IF(E49=FALSE,0,Tarifa!AA55))","v":0},null,false]
["Gépjármű-eredetiségvizsgálatot végzők felelősségbiztosítása",null,{"$f":"IF(C47=0,0,IF(E50=FALSE,0,Tarifa!AB51))","v":0},null,false]
["Szolgáltatás tárgyában okozott károk biztosítása",null,{"$f":"IF(E51=FALSE,0,C47)","v":0},null,false]
["Bérbeadói felelősségbiztosítás",{"$f":"B14","v":0},{"$f":"IF(C24=0,0,IF(C42>0,IF(E52=TRUE,((B52*Tarifa!S87)/1000),0),0))","v":0},null,false,{"$f":"Tarifa!S85","v":3}]
["Környezetszennyezési felelősségbiztosítás",{"$f":"B12","v":0},{"$f":"IF(C24=0,0,IF(C42>0,IF(E53=TRUE,((B12*Tarifa!S99)/1000),0),0))","v":0},null,false,{"$f":"Tarifa!S97","v":3}]
[]
["Éves díj 1. telephelyre ",null,{"$f":"C24+C26+C28+C30+C32+C34+C36+C38+C40+C42+C43+C44+C45+C46+C47+C48+C49+C50+C51+C52+C53","v":0}]
[]
["Volumen engedmény",{"$f":"VLOOKUP(1,Tarifa!AA31:AE36,5,FALSE)","v":"Nincs"}]
["Csomag engedmény",{"$f":"VLOOKUP(1,Tarifa!AE16:AI18,5,FALSE)","v":"Nincs"}]
["Lojalitás engedmény"]
["Díjeltérítési szorzó szerinti engedmény",null,1]
["Központi díjeltérítési szorzó szerinti engedmény",null,1]
[]
["Általános adatok"]
["Díjfizetés gyakorisága"]
["Díjfizetés módja"]
[]
["Fizetendő éves biztosítási díj ",{"$f":"IF(AND(Tarifa!AC8=\"havi\",ROUND((C55+'2.telephely'!C52+'3.telephely'!C52+'4.telephely'!C52+'5.telephely'!C52)*Tarifa!Z8*Tarifa!AP12*Tarifa!AB12,0)<24000),24000,IF(AND(Tarifa!AC8<>\"havi\",ROUND((C55+'2.telephely'!C52+'3.telephely'!C52+'4.telephely'!C52+'5.telephely'!C52)*Tarifa!Z8*Tarifa!AP12*Tarifa!AB12,0)<12000),12000,ROUND((C55+'2.telephely'!C52+'3.telephely'!C52+'4.telephely'!C52+'5.telephely'!C52)*Tarifa!Z8*Tarifa!AP12*Tarifa!AB12,0)))","v":12000}]

{"sheet":"2.telephely","index":2,"n_rows":52,"n_cols":7,"rows_kept":52,"cut":false,"hidden":false,"merged":[[51,0,51,1],[0,3,0,5],[1,3,1,4],[5,0,5,1],[5,3,5,4],[5,5,5,6],[14,3,15,3],[14,4,15,4],[17,3,18,3],[50,0,50,1],[2,3,2,4]]}
["Telephely megnevezése",null,null,"Telephely és kockázatviselés helye"]
["Tevékenység megnevezése",null,null,"Telephely irányítószám"]
["Kódja",{"$f":"VLOOKUP(Tarifa!O4,Tarifa!A3:L246,2)","v":477813},null,"Település címe"]
[]
[]
["Alapadatok",null,null,"Felelősségbiztosítási limitek",null,"Felelősségbiztosítási záradék limitek"]
["Éves árbevétel (e Ft)",0,null,"Általános és épülethasználói felelősségbiztosítás",null,"Tanuló baleseti és felelősségbiztosítás","5 millió Ft"]
["Alkalmazottak száma (fő)",0,null,"Munkáltatói felelősségbiztosítás",null,"Szálloda üzemeltetői, szállásadói felelősségbiztosítás"]
["Éves forgalom (e Ft)",0,null,"Termékfelelősség biztosítás",null,"Gépjárműjavítók felelősségbiztosítása"]
["Éves bérleti díj (e Ft)",0,null,"Bérlői felelősségbiztosítás",null,"Gépjármű eredetiségvizsgálatot végzők felelősségbiztosítása","5 millió Ft"]
["Éves bérbeadásból származó forgalom (e Ft)",0,null,"Szolgáltatói felelősségbiztosítás",null,"Szolgáltatás tárgyában okozott károk biztosítása","5 millió Ft"]
[null,null,null,"Bérbeadói felelősségbiztosítás"]
["Tárgyi eszközk értékelésének módja",null,null,"Környezetszennyezési felelősségbiztosítás"]
[]
[null,"Biztosítási összeg (e Ft)","Díj ","Betöréses lopás és rablás biztosítás"]
["Épület, építmény",0]
["Egyéb tárgyi eszközök",0,null,null,false]
["Saját készletek",0,null,null,false]
["Idegen készletek",0]
["Készpénz",0,null,null,false,"Díjkategória besorolás"]
["Összesen",{"$f":"IF(OR(B16>0,B17>0),SUM(B16:B20),0)","v":0},{"$f":"IF('1.telephely'!B24+'2.telephely'!B21+'3.telephely'!B21+'4.telephely'!B21+'5.telephely'!B21>500000,\"A vállalkozás teljes vagyonértéke nem haladja meg a 500 millió Ft-ot!\",B21*Tarifa!T9)","v":0},null,null,{"$f":"Tarifa!T8","v":3}]
[null,null,null,null,"Vidéki díjengedmény"]
["Betöréses lopás és rablás biztosítás (e Ft)",null,{"$f":"IF(C21=0,0,((IF(E17=TRUE,B17,0))+(IF(E18=TRUE,SUM(B18:B19),0))+(IF(E20=TRUE,B20,0)))*Tarifa!T16*Tarifa!T14)","v":0},null,{"$f":"IF(Tarifa!T13=\"Vidék\",\"Igen\",\"-\")","v":"-"},{"$f":"Tarifa!T15","v":2}]
[]
["Irodai és kereskedelmi elektronikus berendezések, eszközök biztosítása (e Ft)",0,{"$f":"IF(B25>10000,0,(IF(C21=0,0,IF(E25=TRUE,B25*Tarifa!AB20,0))))","v":0},null,false]
[]
["Üzemszünet biztosítás (e Ft)",{"$f":"B7","v":0},{"$f":"IF(C21=0,0,IF(E27=TRUE,B27*Tarifa!U22,0))","v":0},null,false,{"$f":"Tarifa!U21","v":2}]
[]
["Szállítmány biztosítás (e Ft)",0,{"$f":"IF(B29>2000,0,(IF(C21=0,0,IF(E29=TRUE,B29*Tarifa!AB21,0))))","v":0},null,false]
[]
["Vakolat károk biztosítása (e Ft)",{"$f":"B16","v":0},{"$f":"IF(C21=0,0,IF(E31=TRUE,B31*Tarifa!AE20,0))","v":0},null,false]
[]
["Tetőbeázási károk biztosítása (e Ft)",{"$f":"B16","v":0},{"$f":"IF(C21=0,0,IF(E33=TRUE,B33*Tarifa!AE21,0))","v":0},null,false]
[]
["Vandalizmus károk biztosítása (e Ft)",0,{"$f":"IF(B35>(B21*0.1),0,(IF(C21=0,0,IF(E35=TRUE,B35*Tarifa!AH20,0))))","v":0},null,false]
[]
["Különleges üvegek üvegtörés biztosítása (e Ft)",0,{"$f":"IF(C21=0,0,IF(E37=TRUE,B37*Tarifa!AH21,0))","v":0},null,false]
[]
["Általános és\népülethasználói\nfelelősségbiztosítás (fő)",{"$f":"B8","v":0},{"$f":"IF(C21=0,0,IF(E39=TRUE,B39*Tarifa!T29,0))","v":0},null,false,{"$f":"Tarifa!T27","v":3}]
["Tanuló baleseti és felelősségbiztosítás (fő)",null,{"$f":"IF(C21=0,0,IF(C39>0,IF(E40=TRUE,Tarifa!AE45,0),0))","v":0},null,false,{"$f":"Tarifa!AB39","v":3},{"$f":"Tarifa!AH39","v":2}]
["Munkáltatói\nfelelősségbiztosítás",{"$f":"B8","v":0},{"$f":"IF(C21=0,0,IF(C39>0,IF(E41=TRUE,B41*Tarifa!T40,0),0))","v":0},null,false,{"$f":"Tarifa!T38","v":2}]
["Termékfelelősség\nbiztosítás ",{"$f":"B9","v":0},{"$f":"IF(C21=0,0,IF(C39>0,IF(E42=TRUE,((B42*Tarifa!T51)/1000),0),0))","v":0},null,false,{"$f":"Tarifa!T49","v":3}]
["Bérlői\nfelelősségbiztosítás ",{"$f":"B10","v":0},{"$f":"IF(C21=0,0,IF(C39>0,IF(E43=TRUE,((B43*Tarifa!T63)/1000),0),0))","v":0},null,false,{"$f":"Tarifa!T61","v":3}]
["Szolgáltatói\nfelelősségbiztosítás ",{"$f":"B9","v":0},{"$f":"IF(C21=0,0,IF(C39>0,IF(E44=TRUE,((B44*Tarifa!T75)/1000),0),0))","v":0},null,false,{"$f":"Tarifa!T73","v":0}]
["Szálloda üzemeltetői, szállásadói felelősségbiztosítása",null,{"$f":"IF(E45=FALSE,0,C44)","v":0},null,false]
["Gépjárműjavítók felelősségbiztosítása",{"$f":"B9","v":0},{"$f":"IF(C44=0,0,IF(E46=FALSE,0,Tarifa!AB55))","v":0},null,false]
["Gépjármű-eredetiségvizsgálatot végzők felelősségbiztosítása",null,{"$f":"IF(C44=0,0,IF(E47=FALSE,0,Tarifa!AB51))","v":0},null,false]
["Szolgáltatás tárgyában okozott károk biztosítása",null,{"$f":"IF(E48=FALSE,0,C44)","v":0},null,false]
["Bérbeadói felelősségbiztosítás",{"$f":"B11","v":0},{"$f":"IF(C21=0,0,IF(C39>0,IF(E49=TRUE,((B49*Tarifa!T87)/1000),0),0))","v":0},null,false,{"$f":"Tarifa!T85","v":3}]
["Környezetszennyezési felelősségbiztosítás",{"$f":"B9","v":0},{"$f":"IF(C21=0,0,IF(C39>0,IF(E50=TRUE,((B9*Tarifa!T99)/1000),0),0))","v":0},null,false,{"$f":"Tarifa!T97","v":3}]
[]
["Éves díj 2. telephelyre ",null,{"$f":"C21+C23+C25+C27+C29+C31+C33+C35+C37+C39+C40+C41+C42+C43+C44+C45+C46+C47+C48+C49+C50","v":0}]

{"sheet":"3.telephely","index":3,"n_rows":52,"n_cols":7,"rows_kept":52,"cut":false,"hidden":false,"merged":[[51,0,51,1],[0,3,0,5],[1,3,1,4],[5,0,5,1],[5,3,5,4],[5,5,5,6],[14,3,15,3],[14,4,15,4],[17,2,18,2],[17,3,18,3],[2,3,2,4]]}
["Telephely megnevezése",null,null,"Telephely és kockázatviselés helye"]
["Tevékenység megnevezése",null,null,"Telephely irányítószám"]
["Kódja",{"$f":"VLOOKUP(Tarifa!O5,Tarifa!A3:L246,2)","v":" 182"},null,"Település címe"]
[]
[]
["Alapadatok",null,null,"Felelősségbiztosítási limitek",null,"Felelősségbiztosítási záradék limitek"]
["Éves árbevétel (e Ft)",0,null,"Általános és épülethasználói felelősségbiztosítás",null,"Tanuló baleseti és felelősségbiztosítás","5 millió Ft"]
["Alkalmazottak száma",0,null,"Munkáltatói felelősségbiztosítás",null,"Szálloda üzemeltetői, szállásadói felelősségbiztosítás"]
["Éves forgalom (e Ft)",0,null,"Termékfelelősség biztosítás",null,"Gépjárműjavítók felelősségbiztosítása"]
["Éves bérleti díj (e Ft)",0,null,"Bérlői felelősségbiztosítás",null,"Gépjármű eredetiségvizsgálatot végzők felelősségbiztosítása","5 millió Ft"]
["Éves bérbeadásból származó forgalom (e Ft)",0,null,"Szolgáltatói felelősségbiztosítás",null,"Szolgáltatás tárgyában okozott károk biztosítása","5 millió Ft"]
[null,null,null,"Bérbeadói felelősségbiztosítás"]
["Tárgyi eszközk értékelésének módja",null,null,"Környezetszennyezési felelősségbiztosítás"]
[]
[null,"Biztosítási összeg (e Ft)","Díj ","Betöréses lopás és rablás biztosítás"]
["Épület, építmény",0]
["Egyéb tárgyi eszközök",0,null,null,false]
["Saját készletek",0,null,null,false]
["Idegen készletek",0]
["Készpénz",0,null,null,false,"Díjkategória besorolás"]
["Összesen",{"$f":"IF(OR(B16>0,B17>0),SUM(B16:B20),0)","v":0},{"$f":"IF('1.telephely'!B24+'2.telephely'!B21+'3.telephely'!B21+'4.telephely'!B21+'5.telephely'!B21>500000,\"A vállalkozás teljes vagyonértéke nem haladja meg a 500 millió Ft-ot!\",B21*Tarifa!U9)","v":0},null,null,{"$f":"Tarifa!U8","v":3}]
[null,null,null,null,"Vidéki díjengedmény"]
["Betöréses lopás és rablás biztosítás (e Ft)",null,{"$f":"IF(C21=0,0,((IF(E17=TRUE,B17,0))+(IF(E18=TRUE,SUM(B18:B19),0))+(IF(E20=TRUE,B20,0)))*Tarifa!U16*Tarifa!U14)","v":0},null,{"$f":"IF(Tarifa!U13=\"Vidék\",\"Igen\",\"-\")","v":"-"},{"$f":"Tarifa!U15","v":1}]
[]
["Irodai és kereskedelmi elektronikus berendezések, eszközök biztosítása (e Ft)",0,{"$f":"IF(B25>10000,0,(IF(C21=0,0,IF(E25=TRUE,B25*Tarifa!AB20,0))))","v":0},null,false]
[]
["Üzemszünet biztosítás (e Ft)",{"$f":"B7","v":0},{"$f":"IF(C21=0,0,IF(E27=TRUE,B27*Tarifa!V22,0))","v":0},null,false,{"$f":"Tarifa!V21","v":3}]
[]
["Szállítmány biztosítás (e Ft)",0,{"$f":"IF(B29>2000,0,(IF(C21=0,0,IF(E29=TRUE,B29*Tarifa!AB21,0))))","v":0},null,false]
[]
["Vakolat károk biztosítása (e Ft)",{"$f":"B16","v":0},{"$f":"IF(C21=0,0,IF(E31=TRUE,B31*Tarifa!AE20,0))","v":0},null,false]
[]
["Tetőbeázási károk biztosítása (e Ft)",{"$f":"B16","v":0},{"$f":"IF(C21=0,0,IF(E33=TRUE,B33*Tarifa!AE21,0))","v":0},null,false]
[]
["Vandalizmus károk biztosítása (e Ft)",0,{"$f":"IF(B35>(B21*0.1),0,(IF(C21=0,0,IF(E35=TRUE,B35*Tarifa!AH20,0))))","v":0},null,false]
[]
["Különleges üvegek üvegtörés biztosítása (e Ft)",0,{"$f":"IF(C21=0,0,IF(E37=TRUE,B37*Tarifa!AH21,0))","v":0},null,false]
[]
["Általános és\népülethasználói\nfelelősségbiztosítás (fő)",{"$f":"B8","v":0},{"$f":"IF(C21=0,0,IF(E39=TRUE,B39*Tarifa!U29,0))","v":0},null,false,{"$f":"Tarifa!U27","v":2}]
["Tanuló baleseti és felelősségbiztosítás (fő)",0,{"$f":"IF(C21=0,0,IF(C39>0,IF(E40=TRUE,Tarifa!AE46,0),0))","v":0},null,false,{"$f":"Tarifa!AC39","v":2},{"$f":"Tarifa!AI39","v":2}]
["Munkáltatói\nfelelősségbiztosítás",{"$f":"B8","v":0},{"$f":"IF(C21=0,0,IF(C39>0,IF(E41=TRUE,B41*Tarifa!U40,0),0))","v":0},null,false,{"$f":"Tarifa!U38","v":2}]
["Termékfelelősség\nbiztosítás ",{"$f":"B9","v":0},{"$f":"IF(C21=0,0,IF(C39>0,IF(E42=TRUE,((B42*Tarifa!U51)/1000),0),0))","v":0},null,false,{"$f":"Tarifa!U49","v":2}]
["Bérlői\nfelelősségbiztosítás ",{"$f":"B10","v":0},{"$f":"IF(C21=0,0,IF(C39>0,IF(E43=TRUE,((B43*Tarifa!U63)/1000),0),0))","v":0},null,false,{"$f":"Tarifa!U61","v":2}]
["Szolgáltatói\nfelelősségbiztosítás ",{"$f":"B9","v":0},{"$f":"IF(C21=0,0,IF(C39>0,IF(E44=TRUE,((B44*Tarifa!U75)/1000),0),0))","v":0},null,false,{"$f":"Tarifa!U73","v":2}]
["Szálloda üzemeltetői, szállásadói felelősségbiztosítása",null,{"$f":"IF(E45=FALSE,0,C44)","v":0},null,false]
["Gépjárműjavítók felelősségbiztosítása",{"$f":"B9","v":0},{"$f":"IF(C44=0,0,IF(E46=FALSE,0,Tarifa!AC55))","v":0},null,false]
["Gépjármű-eredetiségvizsgálatot végzők felelősségbiztosítása",null,{"$f":"IF(C44=0,0,IF(E47=FALSE,0,Tarifa!AB51))","v":0},null,false]
["Szolgáltatás tárgyában okozott károk biztosítása",null,{"$f":"IF(E48=FALSE,0,C44)","v":0},null,false]
["Bérbeadói felelősségbiztosítás",{"$f":"B11","v":0},{"$f":"IF(C21=0,0,IF(C39>0,IF(E49=TRUE,((B49*Tarifa!U87)/1000),0),0))","v":0},null,false,{"$f":"Tarifa!U85","v":2}]
["Környezetszennyezési felelősségbiztosítás",{"$f":"B9","v":0},{"$f":"IF(C21=0,0,IF(C39>0,IF(E50=TRUE,((B9*Tarifa!U99)/1000),0),0))","v":0},null,false,{"$f":"Tarifa!U97","v":3}]
[]
["Éves díj 3. telephelyre ",null,{"$f":"C21+C23+C25+C27+C29+C31+C33+C35+C37+C39+C40+C41+C42+C43+C44+C45+C46+C47+C48+C49+C50","v":0}]

{"sheet":"4.telephely","index":4,"n_rows":52,"n_cols":7,"rows_kept":52,"cut":false,"hidden":false,"merged":[[0,3,0,5],[1,3,1,4],[5,0,5,1],[5,3,5,4],[5,5,5,6],[2,3,2,4],[51,0,51,1],[14,3,15,3],[17,3,18,3],[17,4,18,4],[17,5,18,5]]}
["Telephely megnevezése",null,null,"Telephely és kockázatviselés helye"]
["Tevékenység megnevezése",null,null,"Telephely irányítószám"]
["Kódja",{"$f":"VLOOKUP(Tarifa!O6,Tarifa!A3:L246,2)","v":" 182"},null,"Település címe"]
[]
[]
["Alapadatok",null,null,"Felelősségbiztosítási limitek",null,"Felelősségbiztosítási záradék limitek"]
["Éves árbevétel (e Ft)",0,null,"Általános és épülethasználói felelősségbiztosítás",null,"Tanuló baleseti és felelősségbiztosítás","5 millió Ft"]
["Alkalmazottak száma (fő)",0,null,"Munkáltatói felelősségbiztosítás",null,"Szálloda üzemeltetői, szállásadói felelősségbiztosítás"]
["Éves forgalom (e Ft)",0,null,"Termékfelelősség biztosítás",null,"Gépjárműjavítók felelősségbiztosítása"]
["Éves bérleti díj (e Ft)",0,null,"Bérlői felelősségbiztosítás",null,"Gépjármű eredetiségvizsgálatot végzők felelősségbiztosítása","5 millió Ft"]
["Éves bérbeadásból származó forgalom (e Ft)",0,null,"Szolgáltatói felelősségbiztosítás",null,"Szolgáltatás tárgyában okozott károk biztosítása","5 millió Ft"]
[null,null,null,"Bérbeadói felelősségbiztosítás"]
["Tárgyi eszközk értékelésének módja",null,null,"Környezetszennyezési felelősségbiztosítás"]
[]
[null,"Biztosított vagyontárgyak biztosítási összege (e Ft)","Díj ","Betöréses lopás és rablás biztosítás"]
["Épület, építmény",0]
["Egyéb tárgyi eszközök",0,null,null,false]
["Saját készletek",0,null,null,false]
["Idegen készletek",0]
["Készpénz",0,null,null,false,"Díjkategória besorolás"]
["Összesen",{"$f":"IF(OR(B16>0,B17>0),SUM(B16:B20),0)","v":0},{"$f":"IF('1.telephely'!B24+'2.telephely'!B21+'3.telephely'!B21+'4.telephely'!B21+'5.telephely'!B21>500000,\"A vállalkozás teljes vagyonértéke nem haladja meg a 500 millió Ft-ot!\",B21*Tarifa!V9)","v":0},null,null,{"$f":"Tarifa!V8","v":3}]
[null,null,null,null,"Vidéki díjengedmény"]
["Betöréses lopás és rablás biztosítás (e Ft)",null,{"$f":"IF(C21=0,0,((IF(E17=TRUE,B17,0))+(IF(E18=TRUE,SUM(B18:B19),0))+(IF(E20=TRUE,B20,0)))*Tarifa!V16*Tarifa!V14)","v":0},null,{"$f":"IF(Tarifa!V13=\"Vidék\",\"Igen\",\"-\")","v":"-"},{"$f":"Tarifa!V15","v":1}]
[]
["Irodai és kereskedelmi elektronikus berendezések, eszközök biztosítása (e Ft)",0,{"$f":"IF(B25>10000,0,(IF(C21=0,0,IF(E25=TRUE,B25*Tarifa!AB20,0))))","v":0},null,false]
[]
["Üzemszünet biztosítás (e Ft)",{"$f":"B7","v":0},{"$f":"IF(C21=0,0,IF(E27=TRUE,B27*Tarifa!W22,0))","v":0},null,false,{"$f":"Tarifa!W21","v":3}]
[]
["Szállítmány biztosítás (e Ft)",0,{"$f":"IF(B29>2000,0,(IF(C21=0,0,IF(E29=TRUE,B29*Tarifa!AB21,0))))","v":0},null,false]
[]
["Vakolat károk biztosítása (e Ft)",{"$f":"B16","v":0},{"$f":"IF(C21=0,0,IF(E31=TRUE,B31*Tarifa!AE20,0))","v":0},null,false]
[]
["Tetőbeázási károk biztosítása (e Ft)",{"$f":"B16","v":0},{"$f":"IF(C21=0,0,IF(E33=TRUE,B33*Tarifa!AE21,0))","v":0},null,false]
[]
["Vandalizmus károk biztosítása (e Ft)",0,{"$f":"IF(B35>(B21*0.1),0,(IF(C21=0,0,IF(E35=TRUE,B35*Tarifa!AH20,0))))","v":0},null,false]
[]
["Különleges üvegek üvegtörés biztosítása (e Ft)",0,{"$f":"IF(C21=0,0,IF(E37=TRUE,B37*Tarifa!AH21,0))","v":0},null,false]
[]
["Általános és\népülethasználói\nfelelősségbiztosítás (fő)",{"$f":"B8","v":0},{"$f":"IF(C21=0,0,IF(E39=TRUE,B39*Tarifa!V29,0))","v":0},null,false,{"$f":"Tarifa!V27","v":2}]
["Tanuló baleseti és felelősségbiztosítás (fő)",0,{"$f":"IF(C21=0,0,IF(C39>0,IF(E40=TRUE,Tarifa!AE47,0),0))","v":0},null,false,{"$f":"Tarifa!AD39","v":2},{"$f":"Tarifa!AJ39","v":2}]
["Munkáltatói\nfelelősségbiztosítás",{"$f":"B8","v":0},{"$f":"IF(C21=0,0,IF(C39>0,IF(E41=TRUE,B41*Tarifa!V40,0),0))","v":0},null,false,{"$f":"Tarifa!V38","v":2}]
["Termékfelelősség\nbiztosítás ",{"$f":"B9","v":0},{"$f":"IF(C21=0,0,IF(C39>0,IF(E42=TRUE,((B42*Tarifa!V51)/1000),0),0))","v":0},null,false,{"$f":"Tarifa!V49","v":2}]
["Bérlői\nfelelősségbiztosítás ",{"$f":"B10","v":0},{"$f":"IF(C21=0,0,IF(C39>0,IF(E43=TRUE,((B43*Tarifa!V63)/1000),0),0))","v":0},null,false,{"$f":"Tarifa!V61","v":2}]
["Szolgáltatói\nfelelősségbiztosítás ",{"$f":"B9","v":0},{"$f":"IF(C21=0,0,IF(C39>0,IF(E44=TRUE,((B44*Tarifa!V75)/1000),0),0))","v":0},null,false,{"$f":"Tarifa!V73","v":2}]
["Szálloda üzemeltetői, szállásadói felelősségbiztosítása",null,{"$f":"IF(E45=FALSE,0,C44)","v":0},null,false]
["Gépjárműjavítók felelősségbiztosítása",{"$f":"B9","v":0},{"$f":"IF(C44=0,0,IF(E46=FALSE,0,Tarifa!AD55))","v":0},null,false]
["Gépjármű-eredetiségvizsgálatot végzők felelősségbiztosítása",null,{"$f":"IF(C44=0,0,IF(E47=FALSE,0,Tarifa!AB51))","v":0},null,false]
["Szolgáltatás tárgyában okozott károk biztosítása",null,{"$f":"IF(E48=FALSE,0,C44)","v":0},null,false]
["Bérbeadói felelősségbiztosítás",{"$f":"B11","v":0},{"$f":"IF(C21=0,0,IF(C39>0,IF(E49=TRUE,((B49*Tarifa!V87)/1000),0),0))","v":0},null,false,{"$f":"Tarifa!V85","v":2}]
["Környezetszennyezési felelősségbiztosítás",{"$f":"B9","v":0},{"$f":"IF(C21=0,0,IF(C39>0,IF(E50=TRUE,((B9*Tarifa!V99)/1000),0),0))","v":0},null,false,{"$f":"Tarifa!V97","v":3}]
[]
["Éves díj 4. telephelyre ",null,{"$f":"C21+C23+C25+C27+C29+C31+C33+C35+C37+C39+C40+C41+C42+C43+C44+C45+C46+C47+C48+C49+C50","v":0}]

{"sheet":"5.telephely","index":5,"n_rows":52,"n_cols":7,"rows_kept":52,"cut":false,"hidden":false,"merged":[[51,0,51,1],[0,3,0,5],[1,3,1,4],[5,0,5,1],[5,3,5,4],[5,5,5,6],[14,3,15,3],[17,3,18,3],[17,4,18,4],[17,5,18,5],[2,3,2,4]]}
["Telephely megnevezése",null,null,"Telephely és kockázatviselés helye"]
["Tevékenység megnevezése",null,null,"Telephely irányítószám"]
["Kódja",{"$f":"VLOOKUP(Tarifa!O7,Tarifa!A3:L246,2)","v":" 643"},null,"Település címe"]
[]
[]
["Alapadatok",null,null,"Felelősségbiztosítási limitek",null,"Felelősségbiztosítási záradék limitek"]
["Éves árbevétel (e Ft)",0,null,"Általános és épülethasználói felelősségbiztosítás",null,"Tanuló baleseti és felelősségbiztosítás","5 millió Ft"]
["Alkalmazottak száma (fő)",0,null,"Munkáltatói felelősségbiztosítás",null,"Szálloda üzemeltetői, szállásadói felelősségbiztosítás"]
["Éves forgalom (e Ft)",0,null,"Termékfelelősség biztosítás",null,"Gépjárműjavítók felelősségbiztosítása"]
["Éves bérleti díj (e Ft)",0,null,"Bérlői felelősségbiztosítás",null,"Gépjármű eredetiségvizsgálatot végzők felelősségbiztosítása","5 millió Ft"]
["Éves bérbeadásból származó forgalom (e Ft)",0,null,"Szolgáltatói felelősségbiztosítás",null,"Szolgáltatás tárgyában okozott károk biztosítása","5 millió Ft"]
[null,null,null,"Bérbeadói felelősségbiztosítás"]
["Tárgyi eszközk értékelésének módja",null,null,"Környezetszennyezési felelősségbiztosítás"]
[]
[null,"Biztosított vagyontárgyak biztosítási összege (e Ft)","Díj ","Betöréses lopás és rablás biztosítás"]
["Épület, építmény",0]
["Egyéb tárgyi eszközök",0,null,null,false]
["Saját készletek",0,null,null,false]
["Idegen készletek",0]
["Készpénz",0,null,null,false,"Díjkategória besorolás"]
["Összesen",{"$f":"IF(OR(B16>0,B17>0),SUM(B16:B20),0)","v":0},{"$f":"IF('1.telephely'!B24+'2.telephely'!B21+'3.telephely'!B21+'4.telephely'!B21+'5.telephely'!B21>500000,\"A vállalkozás teljes vagyonértéke nem haladja meg a 500 millió Ft-ot!\",B21*Tarifa!W9)","v":0},null,null,{"$f":"Tarifa!W8","v":2}]
[null,null,null,null,"Vidéki díjengedmény"]
["Betöréses lopás és rablás biztosítás (e Ft)",null,{"$f":"IF(C21=0,0,((IF(E17=TRUE,B17,0))+(IF(E18=TRUE,SUM(B18:B19),0))+(IF(E20=TRUE,B20,0)))*Tarifa!W16*Tarifa!W14)","v":0},null,{"$f":"IF(Tarifa!W13=\"Vidék\",\"Igen\",\"-\")","v":"-"},{"$f":"Tarifa!W15","v":2}]
[]
["Irodai és kereskedelmi elektronikus berendezések, eszközök biztosítása (e Ft)",0,{"$f":"IF(B25>10000,0,(IF(C21=0,0,IF(E25=TRUE,B25*Tarifa!AB20,0))))","v":0},null,false]
[]
["Üzemszünet biztosítás (e Ft)",{"$f":"B7","v":0},{"$f":"IF(C21=0,0,IF(E27=TRUE,B27*Tarifa!X22,0))","v":0},null,false,{"$f":"Tarifa!X21","v":1}]
[]
["Szállítmány biztosítás (e Ft)",0,{"$f":"IF(B29>2000,0,(IF(C21=0,0,IF(E29=TRUE,B29*Tarifa!AB21,0))))","v":0},null,false]
[]
["Vakolat károk biztosítása (e Ft)",{"$f":"B16","v":0},{"$f":"IF(C21=0,0,IF(E31=TRUE,B31*Tarifa!AE20,0))","v":0},null,false]
[]
["Tetőbeázási károk biztosítása (e Ft)",{"$f":"B16","v":0},{"$f":"IF(C21=0,0,IF(E33=TRUE,B33*Tarifa!AE21,0))","v":0},null,false]
[]
["Vandalizmus károk biztosítása (e Ft)",0,{"$f":"IF(B35>(B21*0.1),0,(IF(C21=0,0,IF(E35=TRUE,B35*Tarifa!AH20,0))))","v":0},null,false]
[]
["Különleges üvegek üvegtörés biztosítása (e Ft)",0,{"$f":"IF(C21=0,0,IF(E37=TRUE,B37*Tarifa!AH21,0))","v":0},null,false]
[]
["Általános és\népülethasználói\nfelelősségbiztosítás (fő)",{"$f":"B8","v":0},{"$f":"IF(C21=0,0,IF(E39=TRUE,B39*Tarifa!W29,0))","v":0},null,false,{"$f":"Tarifa!W27","v":2}]
["Tanuló baleseti és felelősségbiztosítás (fő)",0,{"$f":"IF(C21=0,0,IF(C39>0,IF(E40=TRUE,Tarifa!AE48,0),0))","v":0},null,false,{"$f":"Tarifa!AE39","v":2},{"$f":"Tarifa!AK39","v":2}]
["Munkáltatói\nfelelősségbiztosítás",{"$f":"B8","v":0},{"$f":"IF(C21=0,0,IF(C39>0,IF(E41=TRUE,B41*Tarifa!W40,0),0))","v":0},null,false,{"$f":"Tarifa!W38","v":2}]
["Termékfelelősség\nbiztosítás ",{"$f":"B9","v":0},{"$f":"IF(C21=0,0,IF(C39>0,IF(E42=TRUE,((B42*Tarifa!W51)/1000),0),0))","v":0},null,false,{"$f":"Tarifa!W49","v":0}]
["Bérlői\nfelelősségbiztosítás ",{"$f":"B10","v":0},{"$f":"IF(C21=0,0,IF(C39>0,IF(E43=TRUE,((B43*Tarifa!V63)/1000),0),0))","v":0},null,false,{"$f":"Tarifa!W61","v":2}]
["Szolgáltatói\nfelelősségbiztosítás ",{"$f":"B9","v":0},{"$f":"IF(C21=0,0,IF(C39>0,IF(E44=TRUE,((B44*Tarifa!W75)/1000),0),0))","v":0},null,false,{"$f":"Tarifa!W73","v":0}]
["Szálloda üzemeltetői, szállásadói felelősségbiztosítása",null,{"$f":"IF(E45=FALSE,0,C44)","v":0},null,false]
["Gépjárműjavítók felelősségbiztosítása",{"$f":"B9","v":0},{"$f":"IF(C44=0,0,IF(E46=FALSE,0,Tarifa!AE55))","v":0},null,false]
["Gépjármű-eredetiségvizsgálatot végzők felelősségbiztosítása",null,{"$f":"IF(C44=0,0,IF(E47=FALSE,0,Tarifa!AB51))","v":0},null,false]
["Szolgáltatás tárgyában okozott károk biztosítása",null,{"$f":"IF(E48=FALSE,0,C44)","v":0},null,false]
["Bérbeadói felelősségbiztosítás",{"$f":"B11","v":0},{"$f":"IF(C21=0,0,IF(C39>0,IF(E49=TRUE,((B49*Tarifa!W87)/1000),0),0))","v":0},null,false,{"$f":"Tarifa!W85","v":3}]
["Környezetszennyezési felelősségbiztosítás",{"$f":"B9","v":0},{"$f":"IF(C21=0,0,IF(C39>0,IF(E50=TRUE,((B9*Tarifa!W99)/1000),0),0))","v":0},null,false,{"$f":"Tarifa!W97","v":2}]
[]
["Éves díj 5. telephelyre ",null,{"$f":"C21+C23+C25+C27+C29+C31+C33+C35+C37+C39+C40+C41+C42+C43+C44+C45+C46+C47+C48+C49+C50","v":0}]

{"sheet":"Adatfelvétel","index":6,"n_rows":74,"n_cols":34,"rows_kept":74,"cut":false,"hidden":false,"merged":[[15,14,15,31],[34,8,34,13],[35,8,35,13],[36,8,36,20],[10,16,10,23],[33,8,33,20],[16,14,16,31],[17,14,17,18],[18,14,18,29],[19,14,19,29],[20,14,20,29],[23,8,23,11],[11,16,11,21],[24,8,24,20],[25,8,25,20],[30,8,30,11],[59,34,59,37],[64,8,64,20],[31,8,31,20],[32,8,32,20],[69,8,69,20],[70,8,70,20],[71,8,71,20],[72,8,72,20],[73,9,73,20],[37,1,37,7],[37,8,37,20],[56,11,57,31],[59,16,59,23],[68,8,68,20],[65,8,65,20],[67,8,67,11],[8,16,8,23],[9,16,9,30],[4,16,4,23],[3,16,3,23],[5,16,5,23],[6,16,6,23],[7,16,7,23]]}
[]
[null,"Adatfelvétel"]
[]
[null,"Biztosításközvetítő azonosítója"]
[null,"Biztosításközvetítő nyilvántartási száma"]
[null,"Biztosításközvetítő neve"]
[null,"Biztosításközvetítő képviselője (cég esetén)"]
[null,"Biztosításközvetítő telefonszáma"]
[null,"Jogi forma"]
[null,"Állandó lakóhely/székhely"]
[null,"Ajánlat felvételének helye"]
[null,"Dátuma",null,null,null,null,null,null,null,null,null,null,null,null,null,null,{"$f":"TODAY()","v":"2017-03-28"},null,null,null,null,null,{"$f":"IF(Q12>Tarifa!AN3,\"Lejárt kalkulátor, kérem töltse le a legfrissebb verziót!\",\" \")","v":" "}]
[]
[null,"Szerződő azonosításához szükséges adatok"]
[]
[null,"Név ( szervezet megnevezése )"]
[null,"Születéskori név ( leánykori név )"]
[null,"Születés dátuma ( éééé.hh.nn)"]
[null,"Születés helye "]
[null,"Anya neve"]
[null,"Szervezet adószáma"]
[]
[null,"Lakóhely / szervezet székhelyének címe"]
[null,null,"Irányítószám"]
[null,null,"Helység"]
[null,null,"Út/utca/tér/stb"]
[]
[null,"Kapcsolat tartásához szükséges adatok"]
[]
[null,"Levelezési cím ( ha eltér a lakhely/székhely címétől )"]
[null,null,"Irányítószám"]
[null,null,"Helység"]
[null,null,"Út/utca/tér/stb"]
[null,"Kapcsolattartó neve"]
[null,"Telefonszám"]
[null,"Mobil szám"]
[null,"E-mail"]
[null,"Fax"]
[]
[null,"Ügyfélkapcsolattartó kijelöléséhez szükséges adatok"]
[]
[null,"Éves árbevétel 200 millió Ft felett",null,null,null,null,null,null,null,null,null,null,null,null,null,null,null,null,null,null,null,null,null,null,null,null,null,null,null,null,null,null,null,false]
[null,"Állandó alkalmazottak száma 10 fő felett",null,null,null,null,null,null,null,null,null,null,null,null,null,null,null,null,null,null,null,null,null,null,null,null,null,null,null,null,null,null,null,false]
[]
[null,"Csak mezőgazdasági ügyfelek esetén"]
[]
[null,"Szántó/erdő terület 50 ha felett",null,null,null,null,null,null,null,null,null,null,null,null,null,null,null,null,null,null,null,null,null,null,null,null,null,null,null,null,null,null,null,false]
[null,"Kertészeti kultúra 5 ha felett",null,null,null,null,null,null,null,null,null,null,null,null,null,null,null,null,null,null,null,null,null,null,null,null,null,null,null,null,null,null,null,false]
[null,"Számosállatainak száma 30 felett",null,null,null,null,null,null,null,null,null,null,null,null,null,null,null,null,null,null,null,null,null,null,null,null,null,null,null,null,null,null,null,false]
[]
[null,"Kockázati besoroláshoz szükséges adatok a 45/1996. (XII.29) PM rendelet alapján"]
[]
[null,"Mérleg főösszege 1,5 milliárd forint felett?",null,null,null,null,null,null,null,null,null,null,null,null,null,null,null,null,null,null,null,null,null,null,null,null,null,null,null,null,null,null,null,false]
[null,"Üzelti forgalom (nettó) 3 milliárd forint felett?",null,null,null,null,null,null,null,null,null,null,null,null,null,null,null,null,null,null,null,null,null,null,null,null,null,null,null,null,null,null,null,false]
[null,"Átlagos alkalmazotti létszám 1000 fő felett?",null,null,null,null,null,null,null,null,null,null,null,null,null,null,null,null,null,null,null,null,null,null,null,null,null,null,null,null,null,null,null,false]
[]
[null,"Kockázatviselés kezdete",null,null,null,null,null,null,null,null,null,{"$f":"IF(Q60<TODAY()+1,\"A kockázatviselés kezdete nem lehet a holnapi nap 0:00-nál korábbi!\",\" \")","v":"A kockázatviselés kezdete nem lehet a holnapi nap 0:00-nál korábbi!"}]
[]
[]
[null,"Kockázatviselés kezdete ( éééé.hh.nn )"]
[]
[]
[null,"Zálogjogosult adatai"]
[]
[null,"Neve"]
[null,"Adószáma"]
[null,"Címe"]
[null,null,"Irányítószám"]
[null,null,"Helység"]
[null,null,"Út/utca/tér/stb"]
[null,"Hitel összege"]
[null,"Hitel lejárata"]
[null,"Hitelszám"]
[null,"Kárkifizetési korlátozás"]

{"sheet":"Díjkalkuláció nyomtatása","index":7,"n_rows":107,"n_cols":27,"rows_kept":107,"cut":false,"hidden":false,"merged":[[19,6,19,7],[19,15,19,16],[86,1,86,4],[86,10,86,13],[19,24,19,25],[25,1,25,4],[25,10,25,13],[25,19,25,22],[40,19,40,22],[57,3,57,4],[80,15,80,16],[101,1,101,4],[101,10,101,13],[40,1,40,4],[40,10,40,13],[80,6,80,7]]}
[]
[null,"Díjkalkuláció a K&H vállalkozói biztosításhoz ",null,null,null,null,null,null,null,null,"Díjkalkuláció a K&H vállalkozói biztosításhoz (3. telephely)",null,null,null,null,null,null,null,null,"Díjkalkuláció a K&H vállalkozói biztosításhoz (5.telephely)"]
[]
[null,"vállalkozói biztosítás kalkulációs adatai",null,null,null,null,null,null,null,null,"vállalkozói biztosítás kalkulációs adatai",null,null,null,null,null,null,null,null,"vállalkozói biztosítás kalkulációs adatai"]
[]
[null,"tevékenység megnevezése",null,null,null,{"$f":"Tarifa!Q3","v":"Bútorgyártás"},null,null,null,null,"tevékenység megnevezése",null,null,null,{"$f":"Tarifa!Q5","v":"Egyéb sokszorosítás"},null,null,null,null,"tevékenység megnevezése",null,null,null,{"$f":"Tarifa!Q7","v":"Befektetési alapok és hasonlók"}]
[null,"tevékenység kódja",null,null,null,{"$f":"'1.telephely'!B6","v":" 310"},null,null,null,null,"tevékenység kódja",null,null,null,{"$f":"'3.telephely'!$B$3","v":" 182"},null,null,null,null,"tevékenység kódja",null,null,null,{"$f":"'5.telephely'!$B$3","v":" 643"}]
[null,"telephely irányítószáma",null,null,null,{"$f":"'1.telephely'!F5","v":0},null,null,null,null,"telephely irányítószáma",null,null,null,{"$f":"'3.telephely'!$F$2","v":0},null,null,null,null,"telephely irányítószáma",null,null,null,{"$f":"'5.telephely'!$F$2","v":0}]
[]
[null,"telephely éves árbevétele (e Ft)",null,null,null,{"$f":"'1.telephely'!B10","v":0},null,null,null,null,"telephely éves árbevétele (e Ft)",null,null,null,{"$f":"'3.telephely'!$B$7","v":0},null,null,null,null,"telephely éves árbevétele (e Ft)",null,null,null,{"$f":"'5.telephely'!$B$7","v":0}]
[null,"éves forgalom (e Ft)",null,null,null,{"$f":"'1.telephely'!B12","v":0},null,null,null,null,"éves forgalom (e Ft)",null,null,null,{"$f":"'3.telephely'!$B$9","v":0},null,null,null,null,"éves forgalom (e Ft)",null,null,null,{"$f":"'5.telephely'!$B$9","v":0}]
[null,"alkalmazottak száma (fő)",null,null,null,{"$f":"'1.telephely'!B11","v":0},null,null,null,null,"alkalmazottak száma (fő)",null,null,null,{"$f":"'3.telephely'!$B$8","v":0},null,null,null,null,"alkalmazottak száma (fő)",null,null,null,{"$f":"'5.telephely'!$B$8","v":0}]
[null,"éves bérleti díj (e Ft)",null,null,null,{"$f":"'1.telephely'!B13","v":0},null,null,null,null,"éves bérleti díj (e Ft)",null,null,null,{"$f":"'3.telephely'!$B$10","v":0},null,null,null,null,"éves bérleti díj (e Ft)",null,null,null,{"$f":"'5.telephely'!$B$10","v":0}]
[null,"bérbeadásból származó forgalom (e Ft)",null,null,null,{"$f":"'1.telephely'!B14","v":0},null,null,null,null,"bérbeadásból származó forgalom (e Ft)",null,null,null,{"$f":"'3.telephely'!$B$11","v":0},null,null,null,null,"bérbeadásból származó forgalom (e Ft)",null,null,null,{"$f":"'5.telephely'!$B$11","v":0}]
[]
[null,"alapbiztosítás keretében biztosított vagyontárgyak",null,null,null,null,null,null,null,null,"alapbiztosítás keretében biztosított vagyontárgyak",null,null,null,null,null,null,null,null,"alapbiztosítás keretében biztosított vagyontárgyak"]
[null,"épület, építmény (e Ft)",null,null,{"$f":"'1.telephely'!B19","v":0},null,null,null,null,null,"épület, építmény (e Ft)",null,null,{"$f":"'3.telephely'!$B$16","v":0},null,null,null,null,null,"épület, építmény (e Ft)",null,null,{"$f":"'5.telephely'!$B$16","v":0}]
[null,"egyéb tárgyi eszközök (e Ft)",null,null,{"$f":"'1.telephely'!B20","v":0},null,null,null,null,null,"egyéb tárgyi eszközök (e Ft)",null,null,{"$f":"'3.telephely'!$B$17","v":0},null,null,null,null,null,"egyéb tárgyi eszközök (e Ft)",null,null,{"$f":"'5.telephely'!$B$17","v":0}]
[null,"készletek (e Ft)",null,null,{"$f":"'1.telephely'!B21+'1.telephely'!B22","v":0},null,null,null,null,null,"készletek (e Ft)",null,null,{"$f":"'3.telephely'!$B$18","v":0},null,null,null,null,null,"készletek (e Ft)",null,null,{"$f":"'5.telephely'!$B$18","v":0}]
[null,"készpénz (e Ft)",null,null,{"$f":"'1.telephely'!B23","v":0},null,"biztosítási összeg vagy kártérítési limit",null,"biztosítási díj",null,"készpénz (e Ft)",null,null,{"$f":"'3.telephely'!$B$19","v":0},null,"biztosítási összeg vagy kártérítési limit",null,"biztosítási díj",null,"készpénz (e Ft)",null,null,{"$f":"'5.telephely'!$B$19","v":0},null,"biztosítási összeg vagy kártérítési limit",null,"biztosítási díj"]
[null,"alapbiztosítás",null,null,null,null,null,null,null,null,"alapbiztosítás",null,null,null,null,null,null,null,null,"alapbiztosítás"]
[null,"tűz és elemi károk",null,null,null,null,{"$f":"IF('1.telephely'!C24>0,'1.telephely'!B24,\"Nem biztosított\")","v":"Nem biztosított"},null,{"$f":"'1.telephely'!C24","v":0},null,"tűz és elemi károk",null,null,null,null,{"$f":"IF('3.telephely'!C21>0,'3.telephely'!$B$21,\"Nem biztosított\")","v":"Nem biztosított"},null,{"$f":"'3.telephely'!$C$21","v":0},null,"tűz és elemi károk",null,null,null,null,{"$f":"IF('5.telephely'!C21>0,'5.telephely'!$B$21,\"Nem biztosított\")","v":"Nem biztosított"},null,{"$f":"'5.telephely'!$C$21","v":0}]
[]
[null,"kiegészítő biztosítások",null,null,null,null,null,null,null,null,"kiegészítő biztosítások",null,null,null,null,null,null,null,null,"kiegészítő biztosítások"]
[null,"betöréses lopás és rablás biztosítás ",null,null,null,null,{"$f":"IF('1.telephely'!C26=0,\"Nem biztosított\",((IF('1.telephely'!E20=TRUE,'1.telephely'!B20,0))+(IF('1.telephely'!E21=TRUE,SUM('1.telephely'!B21:'1.telephely'!B22),0))+(IF('1.telephely'!E23=TRUE,'1.telephely'!B23,0))))","v":"Nem biztosított"},null,{"$f":"'1.telephely'!C26","v":0},null,"betöréses lopás és rablás biztosítás ",null,null,null,null,{"$f":"IF('3.telephely'!C23=0,\"Nem biztosított\",((IF('3.telephely'!$E$17=TRUE,'3.telephely'!$B$17,0))+(IF('3.telephely'!$E$18=TRUE,SUM('3.telephely'!$B$18:'3.telephely'!$B$19),0))+(IF('3.telephely'!$E$20=TRUE,'3.telephely'!$B$20,0))))","v":"Nem biztosított"},null,{"$f":"'3.telephely'!$C$23","v":0},null,"betöréses lopás és rablás biztosítás ",null,null,null,null,{"$f":"IF('5.telephely'!C23=0,\"Nem biztosított\",((IF('5.telephely'!$E$17=TRUE,'5.telephely'!$B$17,0))+(IF('5.telephely'!$E$18=TRUE,SUM('5.telephely'!$B$18:'5.telephely'!$B$19),0))+(IF('5.telephely'!$E$20=TRUE,'5.telephely'!$B$20,0))))","v":"Nem biztosított"},null,{"$f":"'5.telephely'!$C$23","v":0}]
[null,"irodai és kereskedelmi elektronikus berendezések, eszközök ",null,null,null,null,{"$f":"IF('1.telephely'!C28>0,'1.telephely'!B28,\"Nem biztosított\")","v":"Nem biztosított"},null,{"$f":"'1.telephely'!C28","v":0},null,"irodai és kereskedelmi elektronikus berendezések, eszközök ",null,null,null,null,{"$f":"IF('3.telephely'!C25>0,'3.telephely'!$B$25,\"Nem biztosított\")","v":"Nem biztosított"},null,{"$f":"'3.telephely'!$C$25","v":0},null,"irodai és kereskedelmi elektronikus berendezések, eszközök ",null,null,null,null,{"$f":"IF('5.telephely'!C25>0,'5.telephely'!$B$25,\"Nem biztosított\")","v":"Nem biztosított"},null,{"$f":"'5.telephely'!$C$25","v":0}]
[null,"üzemszünet biztosítás ",null,null,null,null,{"$f":"IF('1.telephely'!C30>0,\"Szerződési feltételek szerint\",\"Nem biztosított\")","v":"Nem biztosított"},null,{"$f":"'1.telephely'!C30","v":0},null,"üzemszünet biztosítás ",null,null,null,null,{"$f":"IF('3.telephely'!$C$27>0,\"Szerződési feltételek szerint\",\"Nem biztosított\")","v":"Nem biztosított"},null,{"$f":"'3.telephely'!$C$27","v":0},null,"üzemszünet biztosítás ",null,null,null,null,{"$f":"IF('5.telephely'!$C$27>0,\"Szerződési feltételek szerint\",\"Nem biztosított\")","v":"Nem biztosított"},null,{"$f":"'5.telephely'!$C$27","v":0}]
[null,"szállítmány biztosítás ",null,null,null,null,{"$f":"IF('1.telephely'!C32>0,'1.telephely'!B32,\"Nem biztosított\")","v":"Nem biztosított"},null,{"$f":"'1.telephely'!C32","v":0},null,"szállítmány biztosítás ",null,null,null,null,{"$f":"IF('3.telephely'!C29>0,'3.telephely'!$B$29,\"Nem biztosított\")","v":"Nem biztosított"},null,{"$f":"'3.telephely'!$C$29","v":0},null,"szállítmány biztosítás ",null,null,null,null,{"$f":"IF('5.telephely'!C29>0,'5.telephely'!$B$29,\"Nem biztosított\")","v":"Nem biztosított"},null,{"$f":"'5.telephely'!$C$29","v":0}]
[null,"vakolat károk biztosítása ",null,null,null,null,{"$f":"IF('1.telephely'!C34>0,\"Szerződési feltételek szerint\",\"Nem biztosított\")","v":"Nem biztosított"},null,{"$f":"'1.telephely'!C34","v":0},null,"vakolat károk biztosítása ",null,null,null,null,{"$f":"IF('3.telephely'!$C$31>0,\"Szerződési feltételek szerint\",\"Nem biztosított\")","v":"Nem biztosított"},null,{"$f":"'3.telephely'!$C$31","v":0},null,"vakolat károk biztosítása ",null,null,null,null,{"$f":"IF('5.telephely'!$C$31>0,\"Szerződési feltételek szerint\",\"Nem biztosított\")","v":"Nem biztosított"},null,{"$f":"'5.telephely'!$C$31","v":0}]
[null,"tetőbeázási károk biztosítása",null,null,null,null,{"$f":"IF('1.telephely'!C36>0,\"Szerződési feltételek szerint\",\"Nem biztosított\")","v":"Nem biztosított"},null,{"$f":"'1.telephely'!C36","v":0},null,"tetőbeázási károk biztosítása",null,null,null,null,{"$f":"IF('3.telephely'!$C$33>0,\"Szerződési feltételek szerint\",\"Nem biztosított\")","v":"Nem biztosított"},null,{"$f":"'3.telephely'!$C$33","v":0},null,"tetőbeázási károk biztosítása",null,null,null,null,{"$f":"IF('5.telephely'!$C$33>0,\"Szerződési feltételek szerint\",\"Nem biztosított\")","v":"Nem biztosított"},null,{"$f":"'5.telephely'!$C$33","v":0}]
[null,"vandalizmus károk biztosítása ",null,null,null,null,{"$f":"IF('1.telephely'!C38>0,'1.telephely'!B38,\"Nem biztosított\")","v":"Nem biztosított"},null,{"$f":"'1.telephely'!C38","v":0},null,"vandalizmus károk biztosítása ",null,null,null,null,{"$f":"IF('3.telephely'!C35>0,'3.telephely'!$B$35,\"Nem biztosított\")","v":"Nem biztosított"},null,{"$f":"'3.telephely'!$C$35","v":0},null,"vandalizmus károk biztosítása ",null,null,null,null,{"$f":"IF('5.telephely'!C35>0,'5.telephely'!$B$35,\"Nem biztosított\")","v":"Nem biztosított"},null,{"$f":"'5.telephely'!$C$35","v":0}]
[null,"különleges üvegek üvegtörés biztosítása ",null,null,null,null,{"$f":"IF('1.telephely'!C40>0,'1.telephely'!B40,\"Nem biztosított\")","v":"Nem biztosított"},null,{"$f":"'1.telephely'!C40","v":0},null,"különleges üvegek üvegtörés biztosítása ",null,null,null,null,{"$f":"IF('3.telephely'!C37>0,'3.telephely'!$B$37,\"Nem biztosított\")","v":"Nem biztosított"},null,{"$f":"'3.telephely'!$C$37","v":0},null,"különleges üvegek üvegtörés biztosítása ",null,null,null,null,{"$f":"IF('5.telephely'!C37>0,'5.telephely'!$B$37,\"Nem biztosított\")","v":"Nem biztosított"},null,{"$f":"'5.telephely'!$C$37","v":0}]
[null,"általános és\népülethasználói\nfelelősségbiztosítás ",null,null,null,null,{"$f":"IF('1.telephely'!C42>0,Tarifa!S26,\"Nem biztosított\")","v":"Nem biztosított"},null,{"$f":"'1.telephely'!C42","v":0},null,"általános és\népülethasználói\nfelelősségbiztosítás ",null,null,null,null,{"$f":"IF('3.telephely'!$C$39>0,Tarifa!U26,\"Nem biztosított\")","v":"Nem biztosított"},null,{"$f":"'3.telephely'!$C$39","v":0},null,"általános és\népülethasználói\nfelelősségbiztosítás ",null,null,null,null,{"$f":"IF('5.telephely'!$C$39>0,Tarifa!W26,\"Nem biztosított\")","v":"Nem biztosított"},null,{"$f":"'5.telephely'!$C$39","v":0}]
[null,"tanuló baleseti és felelősségbiztosítás ",null,null,null,null,{"$f":"IF('1.telephely'!C43>0,\"5 millió Ft\",\"Nem biztosított\")","v":"Nem biztosított"},null,{"$f":"'1.telephely'!C43","v":0},null,"tanuló baleseti és felelősségbiztosítás ",null,null,null,null,{"$f":"IF('3.telephely'!$C$40>0,\"5 millió Ft\",\"Nem biztosított\")","v":"Nem biztosított"},null,{"$f":"'3.telephely'!$C$40","v":0},null,"tanuló baleseti és felelősségbiztosítás ",null,null,null,null,{"$f":"IF('5.telephely'!$C$40>0,\"5 millió Ft\",\"Nem biztosított\")","v":"Nem biztosított"},null,{"$f":"'5.telephely'!$C$40","v":0}]
[null,"munkáltatói\nfelelősségbiztosítás ",null,null,null,null,{"$f":"IF('1.telephely'!C44>0,Tarifa!S37,\"Nem biztosított\")","v":"Nem biztosított"},null,{"$f":"'1.telephely'!C44","v":0},null,"munkáltatói\nfelelősségbiztosítás ",null,null,null,null,{"$f":"IF('3.telephely'!$C$41>0,Tarifa!U37,\"Nem biztosított\")","v":"Nem biztosított"},null,{"$f":"'3.telephely'!$C$41","v":0},null,"munkáltatói\nfelelősségbiztosítás ",null,null,null,null,{"$f":"IF('5.telephely'!$C$41>0,Tarifa!W37,\"Nem biztosított\")","v":"Nem biztosított"},null,{"$f":"'5.telephely'!$C$41","v":0}]
[null,"termékfelelősség\nbiztosítás ",null,null,null,null,{"$f":"IF('1.telephely'!C45>0,Tarifa!S48,\"Nem biztosított\")","v":"Nem biztosított"},null,{"$f":"'1.telephely'!C45","v":0},null,"termékfelelősség\nbiztosítás ",null,null,null,null,{"$f":"IF('3.telephely'!$C$42>0,Tarifa!U48,\"Nem biztosított\")","v":"Nem biztosított"},null,{"$f":"'3.telephely'!$C$42","v":0},null,"termékfelelősség\nbiztosítás ",null,null,null,null,{"$f":"IF('5.telephely'!$C$42>0,Tarifa!W48,\"Nem biztosított\")","v":"Nem biztosított"},null,{"$f":"'5.telephely'!$C$42","v":0}]
[null,"bérlői\nfelelősségbiztosítás",null,null,null,null,{"$f":"IF('1.telephely'!C46>0,Tarifa!S60,\"Nem biztosított\")","v":"Nem biztosított"},null,{"$f":"'1.telephely'!C46","v":0},null,"bérlői\nfelelősségbiztosítás",null,null,null,null,{"$f":"IF('3.telephely'!$C$43>0,Tarifa!U60,\"Nem biztosított\")","v":"Nem biztosított"},null,{"$f":"'3.telephely'!$C$43","v":0},null,"bérlői\nfelelősségbiztosítás",null,null,null,null,{"$f":"IF('5.telephely'!$C$43>0,Tarifa!W60,\"Nem biztosított\")","v":"Nem biztosított"},null,{"$f":"'5.telephely'!$C$43","v":0}]
[null,"szolgáltatói\nfelelősségbiztosítás",null,null,null,null,{"$f":"IF('1.telephely'!C47>0,Tarifa!S72,\"Nem biztosított\")","v":"Nem biztosított"},null,{"$f":"'1.telephely'!C47","v":0},null,"szolgáltatói\nfelelősségbiztosítás",null,null,null,null,{"$f":"IF('3.telephely'!$C$44>0,Tarifa!U72,\"Nem biztosított\")","v":"Nem biztosított"},null,{"$f":"'3.telephely'!$C$44","v":0},null,"szolgáltatói\nfelelősségbiztosítás",null,null,null,null,{"$f":"IF('5.telephely'!$C$44>0,Tarifa!W72,\"Nem biztosított\")","v":"Nem biztosított"},null,{"$f":"'5.telephely'!$C$44","v":0}]
[null,"szálloda üzemeltetői, szállásadói felelősségbiztosítása",null,null,null,null,{"$f":"IF('1.telephely'!C48>0,Tarifa!AA62,\"Nem biztosított\")","v":"Nem biztosított"},null,{"$f":"'1.telephely'!C48","v":0},null,"szálloda üzemeltetői, szállásadói felelősségbiztosítása",null,null,null,null,{"$f":"IF('3.telephely'!$C$45>0,Tarifa!AC62,\"Nem biztosított\")","v":"Nem biztosított"},null,{"$f":"'3.telephely'!$C$45","v":0},null,"szálloda üzemeltetői, szállásadói felelősségbiztosítása",null,null,null,null,{"$f":"IF('5.telephely'!$C$45>0,Tarifa!AE62,\"Nem biztosított\")","v":"Nem biztosított"},null,{"$f":"'5.telephely'!$C$45","v":0}]
[null,"gépjárműjavítók felelősségbiztosítása",null,null,null,null,{"$f":"IF('1.telephely'!C49>0,Tarifa!AA53,\"Nem biztosított\")","v":"Nem biztosított"},null,{"$f":"'1.telephely'!C49","v":0},null,"gépjárműjavítók felelősségbiztosítása",null,null,null,null,{"$f":"IF('3.telephely'!$C$46>0,Tarifa!AC53,\"Nem biztosított\")","v":"Nem biztosított"},null,{"$f":"'3.telephely'!$C$46","v":0},null,"gépjárműjavítók felelősségbiztosítása",null,null,null,null,{"$f":"IF('5.telephely'!$C$46>0,Tarifa!AE53,\"Nem biztosított\")","v":"Nem biztosított"},null,{"$f":"'5.telephely'!$C$46","v":0}]
[null,"gépjármű-eredetiségvizsgálatot végzők felelősségbiztosítása",null,null,null,null,{"$f":"IF('1.telephely'!C50>0,\"5 millió Ft\",\"Nem biztosított\")","v":"Nem biztosított"},null,{"$f":"'1.telephely'!C50","v":0},null,"gépjármű-eredetiségvizsgálatot végzők felelősségbiztosítása",null,null,null,null,{"$f":"IF('3.telephely'!$C$47>0,\"5 millió Ft\",\"Nem biztosított\")","v":"Nem biztosított"},null,{"$f":"'3.telephely'!$C$47","v":0},null,"gépjármű-eredetiségvizsgálatot végzők felelősségbiztosítása",null,null,null,null,{"$f":"IF('5.telephely'!$C$47>0,\"5 millió Ft\",\"Nem biztosított\")","v":"Nem biztosított"},null,{"$f":"'5.telephely'!$C$47","v":0}]
[null,"szolgáltatás tárgyában okozott károk biztosítása",null,null,null,null,{"$f":"IF('1.telephely'!C51>0,\"5 millió Ft\",\"Nem biztosított\")","v":"Nem biztosított"},null,{"$f":"'1.telephely'!C51","v":0},null,"szolgáltatás tárgyában okozott károk biztosítása",null,null,null,null,{"$f":"IF('3.telephely'!$C$48>0,\"5 millió Ft\",\"Nem biztosított\")","v":"Nem biztosított"},null,{"$f":"'3.telephely'!$C$48","v":0},null,"szolgáltatás tárgyában okozott károk biztosítása",null,null,null,null,{"$f":"IF('5.telephely'!$C$48>0,\"5 millió Ft\",\"Nem biztosított\")","v":"Nem biztosított"},null,{"$f":"'5.telephely'!$C$48","v":0}]
[null,"bérbeadói felelősségbiztosítás",null,null,null,null,{"$f":"IF('1.telephely'!C52>0,Tarifa!S84,\"Nem biztosított\")","v":"Nem biztosított"},null,{"$f":"'1.telephely'!C52","v":0},null,"bérbeadói felelősségbiztosítás",null,null,null,null,{"$f":"IF('3.telephely'!$C$49>0,Tarifa!U84,\"Nem biztosított\")","v":"Nem biztosított"},null,{"$f":"'3.telephely'!$C$49","v":0},null,"bérbeadói felelősségbiztosítás",null,null,null,null,{"$f":"IF('5.telephely'!$C$49>0,Tarifa!W84,\"Nem biztosított\")","v":"Nem biztosított"},null,{"$f":"'5.telephely'!$C$49","v":0}]
[null,"környezetszennyezési felelősségbiztosítás",null,null,null,null,{"$f":"IF('1.telephely'!C53>0,Tarifa!S96,\"Nem biztosított\")","v":"Nem biztosított"},null,{"$f":"'1.telephely'!C53","v":0},null,"környezetszennyezési felelősségbiztosítás",null,null,null,null,{"$f":"IF('3.telephely'!$C$50>0,Tarifa!U96,\"Nem biztosított\")","v":"Nem biztosított"},null,{"$f":"'3.telephely'!$C$50","v":0},null,"környezetszennyezési felelősségbiztosítás",null,null,null,null,{"$f":"IF('5.telephely'!$C$50>0,Tarifa!W96,\"Nem biztosított\")","v":"Nem biztosított"},null,{"$f":"'5.telephely'!$C$50","v":0}]
[]
[null,"éves díj 1. telephelyre:",null,null,null,null,null,null,{"$f":"'1.telephely'!C55","v":0},null,"éves díj 3. telephelyre:",null,null,null,null,null,null,{"$f":"'3.telephely'!$C$52","v":0},null,"éves díj 5. telephelyre:",null,null,null,null,null,null,{"$f":"'5.telephely'!$C$52","v":0}]
[]
[null,"kedvezmények",null,null,null,"általános adatok"]
[null,"volumen engedmény",null,null,{"$f":"'1.telephely'!B57","v":"Nincs"},"díjfizetés gyakorisága",null,{"$f":"Tarifa!AC8","v":"negyedéves"}]
[null,"csomag engedmény",null,null,{"$f":"'1.telephely'!B58","v":"Nincs"},"díjfizetés módja",null,{"$f":"Tarifa!AE8","v":"postai utalás"}]
[null,"lojalitás engedmény",null,null,{"$f":"Tarifa!AD15","v":"Nincs"}]
[null,"díjfizetés engedmény",null,null,{"$f":"Tarifa!AA8","v":0.02}]
[null,"díjeltérítési szorzó engedmény",null,null,{"$f":"Tarifa!AC11","v":0}]
[]
[null,"Fizetendő éves biztosítási díj",null,null,null,{"$f":"'1.telephely'!B67","v":12000}]
[]
[]
[null,null,null,{"$f":"TODAY()","v":"2017-03-28"}]
[]
[null,"Jelen kalkuláció nem minosül hivatalos ajánlattételnek, az kizárólag tájékoztató jellegű!"]
[]
[]
[null,"Díjkalkuláció a K&H vállalkozói biztosításhoz (2. telephely)",null,null,null,null,null,null,null,null,"Díjkalkuláció a K&H vállalkozói biztosításhoz (4.telephely)"]
[]
[null,"vállalkozói biztosítás kalkulációs adatai",null,null,null,null,null,null,null,null,"vállalkozói biztosítás kalkulációs adatai"]
[]
[null,"tevékenység megnevezése",null,null,null,{"$f":"Tarifa!$Q$4","v":"Ajándéktárgy-kiskereskedelem"},null,null,null,null,"tevékenység megnevezése",null,null,null,{"$f":"Tarifa!Q6","v":"Egyéb sokszorosítás"}]
[null,"tevékenység kódja",null,null,null,{"$f":"'2.telephely'!$B$3","v":477813},null,null,null,null,"tevékenység kódja",null,null,null,{"$f":"'4.telephely'!$B$3","v":" 182"}]
[null,"telephely irányítószáma",null,null,null,{"$f":"'2.telephely'!$F$2","v":0},null,null,null,null,"telephely irányítószáma",null,null,null,{"$f":"'4.telephely'!$F$2","v":0}]
[]
[null,"telephely éves árbevétele (e Ft)",null,null,null,{"$f":"'2.telephely'!$B$7","v":0},null,null,null,null,"telephely éves árbevétele (e Ft)",null,null,null,{"$f":"'4.telephely'!$B$7","v":0}]
[null,"éves forgalom (e Ft)",null,null,null,{"$f":"'2.telephely'!$B$9","v":0},null,null,null,null,"éves forgalom (e Ft)",null,null,null,{"$f":"'4.telephely'!$B$9","v":0}]
[null,"alkalmazottak száma (fő)",null,null,null,{"$f":"'2.telephely'!$B$8","v":0},null,null,null,null,"alkalmazottak száma (fő)",null,null,null,{"$f":"'4.telephely'!$B$8","v":0}]
[null,"éves bérleti díj (e Ft)",null,null,null,{"$f":"'2.telephely'!$B$10","v":0},null,null,null,null,"éves bérleti díj (e Ft)",null,null,null,{"$f":"'4.telephely'!$B$10","v":0}]
[null,"bérbeadásból származó forgalom (e Ft)",null,null,null,{"$f":"'2.telephely'!$B$11","v":0},null,null,null,null,"bérbeadásból származó forgalom (e Ft)",null,null,null,{"$f":"'4.telephely'!$B$11","v":0}]
[]
[null,"alapbiztosítás keretében biztosított vagyontárgyak",null,null,null,null,null,null,null,null,"alapbiztosítás keretében biztosított vagyontárgyak"]
[null,"épület, építmény (e Ft)",null,null,{"$f":"'2.telephely'!$B$16","v":0},null,null,null,null,null,"épület, építmény (e Ft)",null,null,{"$f":"'4.telephely'!$B$16","v":0}]
[null,"egyéb tárgyi eszközök (e Ft)",null,null,{"$f":"'2.telephely'!$B$17","v":0},null,null,null,null,null,"egyéb tárgyi eszközök (e Ft)",null,null,{"$f":"'4.telephely'!$B$17","v":0}]
[null,"készletek (e Ft)",null,null,{"$f":"'2.telephely'!$B$18","v":0},null,null,null,null,null,"készletek (e Ft)",null,null,{"$f":"'4.telephely'!$B$18","v":0}]
[null,"készpénz (e Ft)",null,null,{"$f":"'2.telephely'!$B$19","v":0},null,"biztosítási összeg vagy kártérítési limit",null,"biztosítási díj",null,"készpénz (e Ft)",null,null,{"$f":"'4.telephely'!$B$19","v":0},null,"biztosítási összeg vagy kártérítési limit",null,"biztosítási díj"]
[null,"alapbiztosítás",null,null,null,null,null,null,null,null,"alapbiztosítás"]
[null,"tűz és elemi károk",null,null,null,null,{"$f":"IF('2.telephely'!$C$21>0,'2.telephely'!$B$21,\"Nem biztosított\")","v":"Nem biztosított"},null,{"$f":"'2.telephely'!$C$21","v":0},null,"tűz és elemi károk",null,null,null,null,{"$f":"IF('4.telephely'!C21>0,'4.telephely'!$B$21,\"Nem biztosított\")","v":"Nem biztosított"},null,{"$f":"'4.telephely'!$C$21","v":0}]
[]
[null,"kiegészítő biztosítások",null,null,null,null,null,null,null,null,"kiegészítő biztosítások"]
[null,"betöréses lopás és rablás biztosítás ",null,null,null,null,{"$f":"IF('2.telephely'!C23=0,\"Nem biztosított\",((IF('2.telephely'!$E$17=TRUE,'2.telephely'!$B$17,0))+(IF('2.telephely'!$E$18=TRUE,SUM('2.telephely'!$B$18:'2.telephely'!$B$19),0))+(IF('2.telephely'!$E$20=TRUE,'2.telephely'!$B$20,0))))","v":"Nem biztosított"},null,{"$f":"'2.telephely'!$C$23","v":0},null,"betöréses lopás és rablás biztosítás ",null,null,null,null,{"$f":"IF('4.telephely'!C23=0,\"Nem biztosított\",((IF('4.telephely'!$E$17=TRUE,'4.telephely'!$B$17,0))+(IF('4.telephely'!$E$18=TRUE,SUM('4.telephely'!$B$18:'4.telephely'!$B$19),0))+(IF('4.telephely'!$E$20=TRUE,'4.telephely'!$B$20,0))))","v":"Nem biztosított"},null,{"$f":"'4.telephely'!$C$23","v":0}]
[null,"irodai és kereskedelmi elektronikus berendezések, eszközök ",null,null,null,null,{"$f":"IF('2.telephely'!$C$25>0,'2.telephely'!$C$23,\"Nem biztosított\")","v":"Nem biztosított"},null,{"$f":"'2.telephely'!$C$25","v":0},null,"irodai és kereskedelmi elektronikus berendezések, eszközök ",null,null,null,null,{"$f":"IF('4.telephely'!C25>0,'4.telephely'!$B$25,\"Nem biztosított\")","v":"Nem biztosított"},null,{"$f":"'4.telephely'!$C$25","v":0}]
[null,"üzemszünet biztosítás ",null,null,null,null,{"$f":"IF('2.telephely'!$C$27>0,\"Szerződési feltételek szerint\",\"Nem biztosított\")","v":"Nem biztosított"},null,{"$f":"'2.telephely'!$C$27","v":0},null,"üzemszünet biztosítás ",null,null,null,null,{"$f":"IF('4.telephely'!$C$27>0,\"Szerződési feltételek szerint\",\"Nem biztosított\")","v":"Nem biztosított"},null,{"$f":"'4.telephely'!$C$27","v":0}]
[null,"szállítmány biztosítás ",null,null,null,null,{"$f":"IF('2.telephely'!$C$29>0,'2.telephely'!$B$29,\"Nem biztosított\")","v":"Nem biztosított"},null,{"$f":"'2.telephely'!$C$29","v":0},null,"szállítmány biztosítás ",null,null,null,null,{"$f":"IF('4.telephely'!C29>0,'4.telephely'!$B$29,\"Nem biztosított\")","v":"Nem biztosított"},null,{"$f":"'4.telephely'!$C$29","v":0}]
[null,"vakolat károk biztosítása ",null,null,null,null,{"$f":"IF('2.telephely'!$C$31>0,\"Szerződési feltételek szerint\",\"Nem biztosított\")","v":"Nem biztosított"},null,{"$f":"'2.telephely'!$C$31","v":0},null,"vakolat károk biztosítása ",null,null,null,null,{"$f":"IF('4.telephely'!$C$31>0,\"Szerződési feltételek szerint\",\"Nem biztosított\")","v":"Nem biztosított"},null,{"$f":"'4.telephely'!$C$31","v":0}]
[null,"tetőbeázási károk biztosítása",null,null,null,null,{"$f":"IF('2.telephely'!$C$33>0,\"Szerződési feltételek szerint\",\"Nem biztosított\")","v":"Nem biztosított"},null,{"$f":"'2.telephely'!$C$33","v":0},null,"tetőbeázási károk biztosítása",null,null,null,null,{"$f":"IF('4.telephely'!$C$33>0,\"Szerződési feltételek szerint\",\"Nem biztosított\")","v":"Nem biztosított"},null,{"$f":"'4.telephely'!$C$33","v":0}]
[null,"vandalizmus károk biztosítása ",null,null,null,null,{"$f":"IF('2.telephely'!$C$35>0,'2.telephely'!$B$35,\"Nem biztosított\")","v":"Nem biztosított"},null,{"$f":"'2.telephely'!$C$35","v":0},null,"vandalizmus károk biztosítása ",null,null,null,null,{"$f":"IF('4.telephely'!C35>0,'4.telephely'!$B$35,\"Nem biztosított\")","v":"Nem biztosított"},null,{"$f":"'4.telephely'!$C$35","v":0}]
[null,"különleges üvegek üvegtörés biztosítása ",null,null,null,null,{"$f":"IF('2.telephely'!$C$37>0,'2.telephely'!B37,\"Nem biztosított\")","v":"Nem biztosított"},null,{"$f":"'2.telephely'!$C$37","v":0},null,"különleges üvegek üvegtörés biztosítása ",null,null,null,null,{"$f":"IF('4.telephely'!C37>0,'4.telephely'!$B$37,\"Nem biztosított\")","v":"Nem biztosított"},null,{"$f":"'4.telephely'!$C$37","v":0}]
[null,"általános és\népülethasználói\nfelelősségbiztosítás ",null,null,null,null,{"$f":"IF('2.telephely'!$C$39>0,Tarifa!J89,\"Nem biztosított\")","v":"Nem biztosított"},null,{"$f":"'2.telephely'!$C$39","v":0},null,"általános és\népülethasználói\nfelelősségbiztosítás ",null,null,null,null,{"$f":"IF('4.telephely'!$C$39>0,Tarifa!V26,\"Nem biztosított\")","v":"Nem biztosított"},null,{"$f":"'4.telephely'!$C$39","v":0}]
[null,"tanuló baleseti és felelősségbiztosítás ",null,null,null,null,{"$f":"IF('2.telephely'!$C$40>0,\"5 millió Ft\",\"Nem biztosított\")","v":"Nem biztosított"},null,{"$f":"'2.telephely'!$C$40","v":0},null,"tanuló baleseti és felelősségbiztosítás ",null,null,null,null,{"$f":"IF('4.telephely'!$C$40>0,\"5 millió Ft\",\"Nem biztosított\")","v":"Nem biztosított"},null,{"$f":"'4.telephely'!$C$40","v":0}]
[null,"munkáltatói\nfelelősségbiztosítás ",null,null,null,null,{"$f":"IF('2.telephely'!$C$41>0,Tarifa!$T$37,\"Nem biztosított\")","v":"Nem biztosított"},null,{"$f":"'2.telephely'!$C$41","v":0},null,"munkáltatói\nfelelősségbiztosítás ",null,null,null,null,{"$f":"IF('4.telephely'!$C$41>0,Tarifa!V37,\"Nem biztosított\")","v":"Nem biztosított"},null,{"$f":"'4.telephely'!$C$41","v":0}]
[null,"termékfelelősség\nbiztosítás ",null,null,null,null,{"$f":"IF('2.telephely'!$C$42>0,Tarifa!$T$48,\"Nem biztosított\")","v":"Nem biztosított"},null,{"$f":"'2.telephely'!$C$42","v":0},null,"termékfelelősség\nbiztosítás ",null,null,null,null,{"$f":"IF('4.telephely'!$C$42>0,Tarifa!V48,\"Nem biztosított\")","v":"Nem biztosított"},null,{"$f":"'4.telephely'!$C$42","v":0}]
[null,"bérlői\nfelelősségbiztosítás",null,null,null,null,{"$f":"IF('2.telephely'!$C$43>0,Tarifa!$T$60,\"Nem biztosított\")","v":"Nem biztosított"},null,{"$f":"'2.telephely'!$C$43","v":0},null,"bérlői\nfelelősségbiztosítás",null,null,null,null,{"$f":"IF('4.telephely'!$C$43>0,Tarifa!V60,\"Nem biztosított\")","v":"Nem biztosított"},null,{"$f":"'4.telephely'!$C$43","v":0}]
[null,"szolgáltatói\nfelelősségbiztosítás",null,null,null,null,{"$f":"IF('2.telephely'!$C$44>0,Tarifa!$T$72,\"Nem biztosított\")","v":"Nem biztosított"},null,{"$f":"'2.telephely'!$C$44","v":0},null,"szolgáltatói\nfelelősségbiztosítás",null,null,null,null,{"$f":"IF('4.telephely'!$C$44>0,Tarifa!V72,\"Nem biztosított\")","v":"Nem biztosított"},null,{"$f":"'4.telephely'!$C$44","v":0}]
[null,"szálloda üzemeltetői, szállásadói felelősségbiztosítása",null,null,null,null,{"$f":"IF('2.telephely'!$C$45>0,Tarifa!$AB$62,\"Nem biztosított\")","v":"Nem biztosított"},null,{"$f":"'2.telephely'!$C$45","v":0},null,"szálloda üzemeltetői, szállásadói felelősségbiztosítása",null,null,null,null,{"$f":"IF('4.telephely'!$C$45>0,Tarifa!AD62,\"Nem biztosított\")","v":"Nem biztosított"},null,{"$f":"'4.telephely'!$C$45","v":0}]
[null,"gépjárműjavítók felelősségbiztosítása",null,null,null,null,{"$f":"IF('2.telephely'!$C$46>0,Tarifa!$AB$53,\"Nem biztosított\")","v":"Nem biztosított"},null,{"$f":"'2.telephely'!$C$46","v":0},null,"gépjárműjavítók felelősségbiztosítása",null,null,null,null,{"$f":"IF('4.telephely'!$C$46>0,Tarifa!AD53,\"Nem biztosított\")","v":"Nem biztosított"},null,{"$f":"'4.telephely'!$C$46","v":0}]
[null,"gépjármű-eredetiségvizsgálatot végzők felelősségbiztosítása",null,null,null,null,{"$f":"IF('2.telephely'!$C$47>0,\"5 millió Ft\",\"Nem biztosított\")","v":"Nem biztosított"},null,{"$f":"'2.telephely'!$C$47","v":0},null,"gépjármű-eredetiségvizsgálatot végzők felelősségbiztosítása",null,null,null,null,{"$f":"IF('4.telephely'!$C$47>0,\"5 millió Ft\",\"Nem biztosított\")","v":"Nem biztosított"},null,{"$f":"'4.telephely'!$C$47","v":0}]
[null,"szolgáltatás tárgyában okozott károk biztosítása",null,null,null,null,{"$f":"IF('2.telephely'!$C$48>0,\"5 millió Ft\",\"Nem biztosított\")","v":"Nem biztosított"},null,{"$f":"'2.telephely'!$C$48","v":0},null,"szolgáltatás tárgyában okozott károk biztosítása",null,null,null,null,{"$f":"IF('4.telephely'!$C$48>0,\"5 millió Ft\",\"Nem biztosított\")","v":"Nem biztosított"},null,{"$f":"'4.telephely'!$C$48","v":0}]
[null,"bérbeadói felelősségbiztosítás",null,null,null,null,{"$f":"IF('2.telephely'!$C$49>0,Tarifa!$T$84,\"Nem biztosított\")","v":"Nem biztosított"},null,{"$f":"'2.telephely'!$C$49","v":0},null,"bérbeadói felelősségbiztosítás",null,null,null,null,{"$f":"IF('4.telephely'!$C$49>0,Tarifa!V84,\"Nem biztosított\")","v":"Nem biztosított"},null,{"$f":"'4.telephely'!$C$49","v":0}]
[null,"környezetszennyezési felelősségbiztosítás",null,null,null,null,{"$f":"IF('2.telephely'!$C$50>0,Tarifa!$T$96,\"Nem biztosított\")","v":"Nem biztosított"},null,{"$f":"'2.telephely'!$C$50","v":0},null,"környezetszennyezési felelősségbiztosítás",null,null,null,null,{"$f":"IF('4.telephely'!$C$50>0,Tarifa!V96,\"Nem biztosított\")","v":"Nem biztosított"},null,{"$f":"'4.telephely'!$C$50","v":0}]
[]
[null,"éves díj 2. telephelyre:",null,null,null,null,null,null,{"$f":"'2.telephely'!$C$52","v":0},null,"éves díj 4. telephelyre:",null,null,null,null,null,null,{"$f":"'4.telephely'!$C$52","v":0}]

{"sheet":"Ajánlat+Telephelyi adatközlő","index":8,"n_rows":581,"n_cols":11,"rows_kept":581,"cut":false,"hidden":false,"merged":[[209,2,209,3],[257,2,257,3],[73,5,73,6],[123,2,123,3],[136,5,136,6],[143,6,143,7],[80,2,80,3],[227,3,227,4],[190,2,190,3],[80,6,80,7],[134,5,134,9],[74,9,74,10],[335,9,335,10],[334,8,334,9],[334,5,334,6],[341,6,341,7],[202,8,202,9],[202,5,202,6],[209,6,209,7],[268,5,268,6],[269,9,269,10],[275,6,275,7],[29,0,29,3],[71,5,71,9],[30,0,30,10],[37,7,39,10],[44,0,53,10],[6,4,6,5],[460,0,522,5],[535,0,536,10],[580,0,587,10],[552,1,552,4],[460,6,526,10],[550,5,550,6],[23,0,24,10],[29,5,29,10],[9,7,9,10],[26,1,26,4],[27,0,27,1],[26,8,26,10],[55,0,55,1],[55,2,55,3],[73,8,73,9],[393,6,459,10],[393,0,459,5],[136,8,136,9],[5,4,5,10],[378,0,378,1],[389,2,389,3],[28,0,28,1],[246,0,246,1],[312,0,312,1],[37,3,37,4],[38,3,38,4],[39,3,39,4],[117,0,117,1],[180,0,180,1],[323,2,323,3],[7,4,7,5]]}
["előzetes díjkalkuláció a K&H vállalkozó biztosítás megkötésére",null,null,null,null,null,null,null,null,"K&H Biztosító Zrt."]
[null,null,null,null,null,null,null,null,null,"1095 Budapest, Lechner Ödön fasor 9."]
["biztosításközvetítő neve:",null,null,{"$f":"Adatfelvétel!Q6","v":0}]
["biztosításközvetítő K&H-s nyilvántartási száma:",null,null,null,{"$f":"Adatfelvétel!Q4","v":0},null,null,"telefonszám:",{"$f":"Adatfelvétel!Q8","v":0}]
["Szerzodo (Biztosított) adatai („ügyfél adatlap biztosítási szerzodés megkötéséhez” nyomtatvány adattartalmával egyenértékű adatok)"]
["név (szervezet rövid neve):",null,null,null,{"$f":"Adatfelvétel!O16","v":0}]
["születéskori név (leánykori név):",null,null,null,{"$f":"Adatfelvétel!O17","v":0}]
["anyja neve:",null,null,null,{"$f":"Adatfelvétel!O20","v":0}]
["születési dátum:",null,null,{"$f":"IF(Adatfelvétel!O18=0,\" \",Adatfelvétel!O18)","v":" "},"születés helye:",{"$f":"Adatfelvétel!O19","v":0},null,"szervezet adószáma:",null,{"$f":"Adatfelvétel!O21","v":0}]
["lakóhely / szervezet székhelyének címe:",null,null,null,{"$f":"Adatfelvétel!I24","v":0},{"$f":"Adatfelvétel!I25","v":0},null,{"$f":"Adatfelvétel!I26","v":0}]
["kapcsolattartáshoz szükséges adatok"]
["ha a levelezési cím nem a lakóhely / szervezet székhelye, akkor más levelezési cím:"]
["kapcsolattartó neve:",null,null,{"$f":"Adatfelvétel!I34","v":0}]
["telefonszám:",null,null,{"$f":"Adatfelvétel!I35","v":0},null,null,"mobil telefonszám:",null,{"$f":"Adatfelvétel!I36","v":0}]
["e-mail cím:",null,null,{"$f":"Adatfelvétel!I37","v":0},null,null,"fax:",{"$f":"Adatfelvétel!I38","v":0}]
["ügyfélkapcsolattartó kijelöléséhez szükséges adatok:"]
["Éves árbevétel 200 millió forint felett?",null,null,null,{"$f":"IF(Adatfelvétel!AH42=TRUE,\"igen\",\"nem\")","v":"nem"},null,null,"Állandó alkalmazottak száma 10 fő felett?",null,null,{"$f":"IF(Adatfelvétel!AH43=TRUE,\"igen\",\"nem\")","v":"nem"}]
["csak mezogazdasági ügyfelek esetén:"]
["Szántó/erdo terület 50 ha felett?",null,null,null,{"$f":"IF(Adatfelvétel!AH47=TRUE,\"igen\",\"nem\")","v":"nem"},null,null,"Kertészeti kultúra 5 ha felett?",null,null,{"$f":"IF(Adatfelvétel!AH48=TRUE,\"igen\",\"nem\")","v":"nem"}]
["Számosállatainak száma 30 felett?",null,null,null,{"$f":"IF(Adatfelvétel!AH49=TRUE,\"igen\",\"nem\")","v":"nem"}]
["kockázati besoroláshoz szükséges adatok a 45/1996. (XII.29.) PM rendelet alapján"]
["Mérleg főösszege 1,5 milliárd forint",null,null,null,{"$f":"IF(Adatfelvétel!AH53=TRUE,\"igen\",\"nem\")","v":"nem"},null,null,"Üzleti forgalom (nettó) 3 milliárd forint felett?",null,null,{"$f":"IF(Adatfelvétel!AH54=TRUE,\"igen\",\"nem\")","v":"nem"}]
["Átlagos alkalmazotti létszám 1000 fő felett?",null,null,null,{"$f":"IF(Adatfelvétel!AH55=TRUE,\"igen\",\"nem\")","v":"nem"}]
["Felhívjuk szíves figyelmét, hogy - eltérő rendelkezés hiányában - a jelen ajánlaton közölt Szerződő (Biztosított) adatait a többi, társaságunknál hatályos szerződés vonatkozásában is figyelembe vesszük, illetve alkalmazzuk."]
[]
["zálogjogosult adatai"]
["neve",{"$f":"Adatfelvétel!I65","v":0},null,null,null,"címe",{"$f":"Adatfelvétel!I68","v":0},{"$f":"Adatfelvétel!I69","v":0},{"$f":"Adatfelvétel!I70","v":0}]
["zálogjogosult adószáma",null,null,{"$f":"Adatfelvétel!I66","v":0},null,"hitelszám",null,{"$f":"Adatfelvétel!I73","v":0}]
["hitel összege",null,null,{"$f":"Adatfelvétel!I71","v":0},null,"hitel lejárata",null,{"$f":"IF(Adatfelvétel!I72=0,\" \",Adatfelvétel!I72)","v":" "}]
["Kárkifizetési korlátozás: Kijelentem, hogy ",null,null,null,{"$f":"Adatfelvétel!J74","v":0},"forintot meghaladó kár esetén a Biztosító szolgáltatására a "]
["kárkifizetéskor fennálló hitelösszeg és járulékainak erejéig a kötvényen (fedezetet igazoló dokumentumon) megjelölt kölcsönnyújtó hitelintézet javára zálogjog kerül bejegyzésre. Hozzájárulok ahhoz, hogy a hitelre vonatkozó adataimat a hitelintézet a Biztosítónak átadja, illetve a Biztosító a hitelhez kapcsolódó biztosításomra teljes köréről a vonatkozó adatok hitelintézetet tájékoztassa."]
["biztosítási szerzodés általános adatai"]
["kockázatviselés kezdete :",null,null,{"$f":"Adatfelvétel!Q60","v":"00:00:00"},",de legkorábban az ajánlat aláírását követő nap 0:00 órája."]
["A biztosítás tartama határozatlan. Az évforduló minden évben a kockázatviselés kezdete hónapjának 1. napja."]
["díjfizetés gyakorisága:",null,null,{"$f":"Tarifa!AC8","v":"negyedéves"},null,null,null,"díjfizetés módja:",null,{"$f":"Tarifa!AE8","v":"postai utalás"}]
["Fizetendő éves biztosítási díj:",null,null,null,{"$f":"'1.telephely'!B67","v":12000},"Ft"]
["kedvezmények"]
[{"$f":"IF(Tarifa!AF31<1,\"volumen engedmény\",\" \")","v":" "},null,{"$f":"IF(Tarifa!AF31=1,\" \",Tarifa!AF32)","v":" "},{"$f":"IF(Tarifa!AA15<1,\"lojalitás engedmény\",\" \")","v":" "},null,{"$f":"IF(Tarifa!AA15=1,\" \",Tarifa!AD15)","v":" "},null,{"$f":"IF(Tarifa!AO12<0.5,\"Az összesített kedvezmény mértéke maximálisan 50% lehet, a díjfizetési engedményen és a központi díjeltérítési szorzón kívül.\",\" \")","v":" "}]
[{"$f":"IF(Tarifa!AE15<1,\"csomag engedmény\",\" \")","v":" "},null,{"$f":"IF(Tarifa!AE15=1,\" \",Tarifa!AG15)","v":" "},{"$f":"IF(Tarifa!Z8<1,\"díjfizetési engedmény\",\" \")","v":"díjfizetési engedmény"},null,{"$f":"IF(Tarifa!Z8=1,\" \",Tarifa!AA8)","v":0.02}]
[{"$f":"IF(Tarifa!AB11<1,\"díjeltérítési szorzó\",\" \")","v":" "},null,{"$f":"IF(Tarifa!AB11=1,\" \",Tarifa!AC11)","v":" "},{"$f":"IF(Tarifa!AB12<1,\"központi díjeltérítési szorzó\",\" \")","v":" "},null,{"$f":"IF(Tarifa!AB12=1,\" \",Tarifa!AC12)","v":" "}]
["a helyszíni kockázatelbírálást végzo személy"]
["[ ] biztosításközvetítő [ ] egyéb képviselő:"]
[null,null,null,null,null,null,null,null,"a helyszíni Kockázatelbíráló aláírása"]
[]
["Alulírott szerződő kötelezettséget vállalok arra, hogy a szerződés részét képező szerződési feltételek alapján megállapított, a kötvényben (fedezetet igazoló dokumentumban) előírt díjat a jelen megállapodás szerint megfizetem. A felek az első díj tekintetében a kötvényben (fedezetet igazoló dokumentumban) és a díjesedékességi értesítőben foglalt díjesedékességi határidőig halasztásban állapodnak meg. Tudomásul veszem, hogy a szerződésre a K&H vállalkozói biztosítás (KVB-13) szerződési feltételei vonatkoznak, amelyet az ügyfél-tájékoztatóval együtt az ajánlat aláírása előtt átvettem, és annak tartalmát megértettem. Felhatalmazom a Biztosítót arra, hogy az igényelt biztosítással összefüggő adatokat számítógépen tárolja, és az illetékes viszontbiztosítónak átadja. Kívánságomra megadják annak a címét és adatait, akinek adataimat továbbították. Vállalom, hogy a szerződést érintő adatokban bekövetkező változásokat a Biztosítónak 8 napon belül bejelentem. A \"nyilatkozat nem-életbiztosítási szerződés megkötéséhez\" nyomtatvány a szerződés részét képezi. Nem jön létre a szerződés, ha az ajánlatot a Biztosító annak átadását követően számított 15 napon belül visszautasítja. A Biztosító akkor is jogosult az ajánlat visszautasítására, ha a 15 napos kockázatelbírálási határidő alatt biztosítási esemény következik be. Az arról való tájékoztatást, hogy a K&H Biztosító Zrt. biztosításközvetítői a K&H Biztosító Zrt. nevében biztosítási díj átvételére nem jogosultak, megkaptam."]
[]
[]
[]
[]
[]
[]
[]
[]
[]
[]
["Az előzetes díjkalkuláció ",null,{"$f":"Tarifa!AN3","v":"2017-06-30"},null,"-ig érvényes."]
[]
["Előzetes díjkalkuláció kiállításának dátuma",null,null,null,{"$f":"Adatfelvétel!Q12","v":"2017-03-28"}]
[]
[]
[]
[]
[]
["Kelt:",null,null,null,null,null,null,null,"Szerződő (szervezet képviseletére jogosult) /"]
[null,null,null,null,null,null,null,null,"Biztosított aláírása"]
[]
[]
["telephelyi adatközlő és díjszámítás K&H vállalkozói biztosításhoz",null,null,null,null,null,null,null,null,"K&H Biztosító Zrt."]
[null,null,"adatközlő sorszáma",null,{"$f":"IF(AND('1.telephely'!C55>0,'2.telephely'!C52=0,'3.telephely'!C52=0,'4.telephely'!C52=0,'5.telephely'!C52=0),\"1/1\",IF(AND('1.telephely'!C55>0,'2.telephely'!C52>0,'3.telephely'!C52=0,'4.telephely'!C52=0,'5.telephely'!C52=0),\"1/2\",IF(AND('1.telephely'!C55>0,'2.telephely'!C52>0,'3.telephely'!C52>0,'4.telephely'!C52=0,'5.telephely'!C52=0),\"1/3\",IF(AND('1.telephely'!C55>0,'2.telephely'!C52>0,'3.telephely'!C52>0,'4.telephely'!C52>0,'5.telephely'!C52=0),\"1/4\",IF(AND('1.telephely'!C55>0,'2.telephely'!C52>0,'3.telephely'!C52>0,'4.telephely'!C52>0,'5.telephely'!C52>0),\"1/5\",0)))))","v":0},null,null,null,null,"1095 Budapest, Lechner Ödön fasor 9."]
[]
["telephely megnevezése:",null,{"$f":"'1.telephely'!B4","v":0}]
["telephely és kockázatviselés helye: ",null,null,null,{"$f":"'1.telephely'!F5","v":0},{"$f":"'1.telephely'!F6","v":0}]
["tevékenység kódja és megnevezése:",null,null,null,{"$f":"Tarifa!P3","v":" 310"},{"$f":"Tarifa!Q3","v":"Bútorgyártás"}]
["tárgyi eszközök értékelésének módja:",null,null,null,{"$f":"IF(Tarifa!AB75=1,\"Új értéken\",\"Valós értéken\")","v":"Valós értéken"},"éves árbevétel: ",null,{"$f":"'1.telephely'!B10","v":0},"alkalmazottak száma:",null,{"$f":"'1.telephely'!B11","v":0}]
["alapbiztosítás - tűz és elemi károk, biztosított épületek üvegkárai"]
["biztosított vagyontárgyak, biztosítási összeg",null,null,null,null,null,"Kockázati osztály:",null,{"$f":"'1.telephely'!F24","v":5}]
["épület, építmény:",null,null,{"$f":"'1.telephely'!B19","v":0},"saját készletek:",{"$f":"'1.telephely'!B21","v":0},"idegen készletek:",null,{"$f":"'1.telephely'!B22","v":0},"készpénz:",{"$f":"'1.telephely'!B23","v":0}]
["egyéb tárgyi eszközök:",null,null,{"$f":"'1.telephely'!B20","v":0},"összesen",{"$f":"'1.telephely'!B24","v":0},null,null,null,"díj:",{"$f":"'1.telephely'!C24","v":0}]
["kiegészítő biztosítások"]
["Betöréses lopás és rablás biztosítás",null,null,null,"Vidéki kedvezmény:",null,{"$f":"'1.telephely'!E26","v":"-"},null,"Kockázati osztály:",null,{"$f":"'1.telephely'!F26","v":2}]
["egyéb tárgyi eszközök:",null,{"$f":"IF('1.telephely'!E20=FALSE,\" \",'1.telephely'!B20)","v":" "},null,"készletek (saját + idegen):",null,{"$f":"IF('1.telephely'!E21=FALSE,\" \",SUM('1.telephely'!B21,'1.telephely'!B22))","v":" "},null,"készpénz:",{"$f":"IF('1.telephely'!E23=FALSE,\" \",'1.telephely'!B23)","v":" "}]
[null,null,null,null,null,null,null,null,null,"díj:",{"$f":"IF('1.telephely'!C26>0,'1.telephely'!C26,\"Nem biztosított\")","v":"Nem biztosított"}]
["Irodai és kereskedelmi elektronikus berendezések, eszközök biztosítása"]
["biztosítási összeg:",null,null,{"$f":"IF('1.telephely'!E28=FALSE,\" \",'1.telephely'!B28)","v":" "},null,null,null,null,null,"díj:",{"$f":"IF('1.telephely'!C28>0,'1.telephely'!C28,\"Nem biztosított\")","v":"Nem biztosított"}]
["Üzemszünet biztosítás ",null,null,null,null,null,"Kockázati osztály:",null,{"$f":"'1.telephely'!F30","v":5}]
["éves árbevétel: ",null,null,{"$f":"'1.telephely'!B10","v":0},null,null,null,null,null,"díj:",{"$f":"IF('1.telephely'!C30>0,'1.telephely'!C30,\"Nem biztosított\")","v":"Nem biztosított"}]
["Szállítmány biztosítás "]
["biztosítási összeg:",null,null,{"$f":"IF('1.telephely'!E32=FALSE,\" \",'1.telephely'!B32)","v":" "},null,null,null,null,null,"díj:",{"$f":"IF('1.telephely'!C32>0,'1.telephely'!C32,\"Nem biztosított\")","v":"Nem biztosított"}]
["Vakolat károk biztosítása "]
["biztosítási összeg:",null,null,{"$f":"IF('1.telephely'!E34=FALSE,\" \",'1.telephely'!B19)","v":" "},null,null,null,null,null,"díj:",{"$f":"IF('1.telephely'!C34>0,'1.telephely'!C34,\"Nem biztosított\")","v":"Nem biztosított"}]
["Tetőbeázási károk biztosítása "]
["biztosítási összeg:",null,null,{"$f":"IF('1.telephely'!E36=FALSE,\" \",'1.telephely'!B19)","v":" "},null,null,null,null,null,"díj:",{"$f":"IF('1.telephely'!C36>0,'1.telephely'!C36,\"Nem biztosított\")","v":"Nem biztosított"}]
["Vandalizmus károk biztosítása"]
["biztosítási összeg:",null,null,{"$f":"IF('1.telephely'!E38=FALSE,\" \",'1.telephely'!B38)","v":" "},null,null,null,null,null,"díj:",{"$f":"IF('1.telephely'!C38>0,'1.telephely'!C38,\"Nem biztosított\")","v":"Nem biztosított"}]
["Különleges üvegek üvegtörés biztosítása"]
["biztosítási összeg:",null,null,{"$f":"IF('1.telephely'!E40=FALSE,\" \",'1.telephely'!B40)","v":" "},null,null,null,null,null,"díj:",{"$f":"IF('1.telephely'!C40>0,'1.telephely'!C40,\"Nem biztosított\")","v":"Nem biztosított"}]
["Általános és épülethasználói felelősségbiztosítás",null,null,null,null,null,"Kockázati osztály:",null,{"$f":"'1.telephely'!F42","v":2}]
["alkalmazottak száma (fő):",null,{"$f":"'1.telephely'!B11","v":0},null,"Kártérítési limit:",null,{"$f":"IF('1.telephely'!E42=FALSE,\" \",Tarifa!S26)","v":" "},null,null,"díj:",{"$f":"IF('1.telephely'!C42>0,'1.telephely'!C42,\"Nem biztosított\")","v":"Nem biztosított"}]
["Tanuló baleseti és felelősségbiztosítás",null,null,null,"Kockázati osztály (általános):",null,{"$f":"'1.telephely'!F43","v":2},"Kockázati osztály (munkáltatói):",null,null,{"$f":"'1.telephely'!G43","v":4}]
["tanulók létszáma (fő):",null,{"$f":"'1.telephely'!B43","v":0},null,"Kártérítési limit:",null,{"$f":"IF('1.telephely'!E43=FALSE,\" \",\"5 millió Ft\")","v":" "},null,null,"díj:",{"$f":"IF('1.telephely'!C43>0,'1.telephely'!C43,\"Nem biztosított\")","v":"Nem biztosított"}]
["Munkáltatói felelősségbiztosítás",null,null,null,null,null,"Kockázati osztály:",null,{"$f":"'1.telephely'!F44","v":4}]
["alkalmazottak száma (fő):",null,{"$f":"'1.telephely'!B11","v":0},null,"Kártérítési limit:",null,{"$f":"IF('1.telephely'!E44=FALSE,\" \",Tarifa!S37)","v":" "},null,null,"díj:",{"$f":"IF('1.telephely'!C44>0,'1.telephely'!C44,\"Nem biztosított\")","v":"Nem biztosított"}]
["Termékfelelősség biztosítás ",null,null,null,null,null,"Kockázati osztály:",null,{"$f":"'1.telephely'!F45","v":4}]
["éves forgalom:",null,null,{"$f":"'1.telephely'!B12","v":0},"Kártérítési limit:",null,{"$f":"IF('1.telephely'!E45=FALSE,\" \",Tarifa!S48)","v":" "},null,null,"díj:",{"$f":"IF('1.telephely'!C45>0,'1.telephely'!C45,\"Nem biztosított\")","v":"Nem biztosított"}]
["Bérlői felelősségbiztosítás ",null,null,null,null,null,"Kockázati osztály:",null,{"$f":"'1.telephely'!F46","v":2}]
["éves bérleti díj:",null,null,{"$f":"'1.telephely'!B13","v":0},"Kártérítési limit:",null,{"$f":"IF('1.telephely'!E46=FALSE,\" \",Tarifa!S60)","v":" "},null,null,"díj:",{"$f":"IF('1.telephely'!C46>0,'1.telephely'!C46,\"Nem biztosított\")","v":"Nem biztosított"}]
["Szolgáltatói felelősségbiztosítás ",null,null,null,null,null,"Kockázati osztály:",null,{"$f":"'1.telephely'!F47","v":1}]
["éves forgalom:",null,null,{"$f":"'1.telephely'!B12","v":0},"Kártérítési limit:",null,{"$f":"IF('1.telephely'!E47=FALSE,\" \",Tarifa!S72)","v":" "},null,null,"díj:",{"$f":"IF('1.telephely'!C47>0,'1.telephely'!C47,\"Nem biztosított\")","v":"Nem biztosított"}]
["Szálloda üzemeltetői, szállásadói felelősségbiztosítása"]
[null,null,null,null,"Kártérítési limit:",null,{"$f":"IF('1.telephely'!E48=FALSE,\" \",Tarifa!AA62)","v":" "},null,null,"díj:",{"$f":"IF('1.telephely'!C48>0,'1.telephely'!C48,\"Nem biztosított\")","v":"Nem biztosított"}]
["Gépjárműjavítók felelősségbiztosítása"]
["éves forgalom:",null,null,{"$f":"'1.telephely'!B12","v":0},"Kártérítési limit:",null,{"$f":"IF('1.telephely'!E49=FALSE,\" \",Tarifa!AA53)","v":" "},null,null,"díj:",{"$f":"IF('1.telephely'!C49>0,'1.telephely'!C49,\"Nem biztosított\")","v":"Nem biztosított"}]
["Gépjármű-eredetiségvizsgálatot végzők felelősségbiztosítása"]
[null,null,null,null,"Kártérítési limit:",null,{"$f":"IF('1.telephely'!E50=FALSE,\" \",\"5 millió Ft\")","v":" "},null,null,"díj:",{"$f":"IF('1.telephely'!C50>0,'1.telephely'!C50,\"Nem biztosított\")","v":"Nem biztosított"}]
["Szolgáltatás tárgyában okozott károk biztosítása"]
[null,null,null,null,"Kártérítési limit:",null,{"$f":"IF('1.telephely'!E51=FALSE,\" \",\"5 millió Ft\")","v":" "},null,null,"díj:",{"$f":"IF('1.telephely'!C51>0,'1.telephely'!C51,\"Nem biztosított\")","v":"Nem biztosított"}]
["Bérbeadói felelősségbiztosítás"]
["bérbeadásból származó forgalom:",null,null,{"$f":"'1.telephely'!B14","v":0},"Kártérítési limit:",null,{"$f":"IF('1.telephely'!E52=FALSE,\" \",Tarifa!S84)","v":" "},null,null,"díj:",{"$f":"IF('1.telephely'!C52>0,'1.telephely'!C52,\"Nem biztosított\")","v":"Nem biztosított"}]
["Környezetszennyezési felelősségbiztosítás"]
["éves forgalom:",null,null,{"$f":"'1.telephely'!B12","v":0},"Kártérítési limit:",null,{"$f":"IF('1.telephely'!E53=FALSE,\" \",Tarifa!S96)","v":" "},null,null,"díj:",{"$f":"IF('1.telephely'!C53>0,'1.telephely'!C53,\"Nem biztosított\")","v":"Nem biztosított"}]
[]
[null,null,null,null,null,"éves biztosítási díj a 1. telephelyre:",null,null,null,null,{"$f":"'1.telephely'!C55","v":0}]
[]
["Kelt:",null,null,null,null,null,null,"Szerződő (szervezet képviseletére jogosult) /"]
[null,null,null,null,null,null,null,"Biztosított aláírása"]
[]
[]
[]
[]
[]
["telephelyi adatközlő és díjszámítás K&H vállalkozói biztosításhoz",null,null,null,null,null,null,null,null,"K&H Biztosító Zrt."]
[null,null,"adatközlő sorszáma",null,{"$f":"IF(AND('1.telephely'!C55>0,'2.telephely'!C52>0,'3.telephely'!C52=0,'4.telephely'!C52=0,'5.telephely'!C52=0),\"2/2\",IF(AND('1.telephely'!C55>0,'2.telephely'!C52>0,'3.telephely'!C52>0,'4.telephely'!C52=0,'5.telephely'!C52=0),\"2/3\",IF(AND('1.telephely'!C55>0,'2.telephely'!C52>0,'3.telephely'!C52>0,'4.telephely'!C52>0,'5.telephely'!C52=0),\"2/4\",IF(AND('1.telephely'!C55>0,'2.telephely'!C52>0,'3.telephely'!C52>0,'4.telephely'!C52>0,'5.telephely'!C52>0),\"2/5\",0))))","v":0},null,null,null,null,"1095 Budapest, Lechner Ödön fasor 9."]
[]
["telephely megnevezése:",null,{"$f":"'2.telephely'!$B$1","v":0}]
["telephely és kockázatviselés helye: ",null,null,null,{"$f":"'2.telephely'!$F$2","v":0},{"$f":"'2.telephely'!F3","v":0}]
["tevékenység kódja és megnevezése:",null,null,null,{"$f":"Tarifa!P4","v":477813},{"$f":"Tarifa!Q4","v":"Ajándéktárgy-kiskereskedelem"}]
["tárgyi eszközök értékelésének módja:",null,null,null,{"$f":"IF(Tarifa!AB76=1,\"Új értéken\",\"Valós értéken\")","v":"Új értéken"},"éves árbevétel: ",null,{"$f":"'2.telephely'!$B$7","v":0},"alkalmazottak száma:",null,{"$f":"'2.telephely'!$B$8","v":0}]
["alapbiztosítás - tűz és elemi károk, biztosított épületek üvegkárai"]
["biztosított vagyontárgyak, biztosítási összeg",null,null,null,null,null,"Kockázati osztály:",null,{"$f":"'2.telephely'!$F$21","v":3}]
["épület, építmény:",null,null,{"$f":"'2.telephely'!$B$16","v":0},"saját készletek:",{"$f":"'2.telephely'!$B$18","v":0},"idegen készletek:",null,{"$f":"'2.telephely'!$B$19","v":0},"készpénz:",{"$f":"'2.telephely'!$B$20","v":0}]
["egyéb tárgyi eszközök:",null,null,{"$f":"'2.telephely'!$B$17","v":0},"összesen",{"$f":"'2.telephely'!$B$21","v":0},null,null,null,"díj:",{"$f":"'2.telephely'!$C$21","v":0}]
["kiegészítő biztosítások"]
["Betöréses lopás és rablás biztosítás",null,null,null,"Vidéki kedvezmény:",null,{"$f":"'2.telephely'!E23","v":"-"},null,"Kockázati osztály:",null,{"$f":"'2.telephely'!$F$23","v":2}]
["egyéb tárgyi eszközök:",null,null,{"$f":"IF('2.telephely'!$E$17=FALSE,\" \",'2.telephely'!$B$17)","v":" "},"készletek (saját + idegen):",null,{"$f":"IF('2.telephely'!$E$18=FALSE,\" \",'2.telephely'!$B$18+'2.telephely'!$B$19)","v":" "},null,"készpénz:",{"$f":"IF('2.telephely'!E20=FALSE,\" \",'2.telephely'!$B$20)","v":" "}]
[null,null,null,null,null,null,null,null,null,"díj:",{"$f":"IF('2.telephely'!$C$23>0,'2.telephely'!$C$23,\"Nem biztosított\")","v":"Nem biztosított"}]
["Irodai és kereskedelmi elektronikus berendezések, eszközök biztosítása"]
["biztosítási összeg:",null,null,{"$f":"IF('2.telephely'!$E$25=FALSE,\" \",'2.telephely'!$B$25)","v":" "},null,null,null,null,null,"díj:",{"$f":"IF('2.telephely'!$C$25>0,'2.telephely'!$C$25,\"Nem biztosított\")","v":"Nem biztosított"}]
["Üzemszünet biztosítás ",null,null,null,null,null,"Kockázati osztály:",null,{"$f":"'2.telephely'!$F$27","v":2}]
["éves árbevétel: ",null,null,{"$f":"'2.telephely'!$B$7","v":0},null,null,null,null,null,"díj:",{"$f":"IF('2.telephely'!$C$27>0,'2.telephely'!$C$27,\"Nem biztosított\")","v":"Nem biztosított"}]
["Szállítmány biztosítás "]
["biztosítási összeg:",null,null,{"$f":"IF('2.telephely'!$E$29=FALSE,\" \",'2.telephely'!$B$29)","v":" "},null,null,null,null,null,"díj:",{"$f":"IF('2.telephely'!$C$29>0,'2.telephely'!$C$29,\"Nem biztosított\")","v":"Nem biztosított"}]
["Vakolat károk biztosítása "]
["biztosítási összeg:",null,null,{"$f":"IF('2.telephely'!$E$31=FALSE,\" \",'2.telephely'!$B$16)","v":" "},null,null,null,null,null,"díj:",{"$f":"IF('2.telephely'!$C$31>0,'2.telephely'!$C$31,\"Nem biztosított\")","v":"Nem biztosított"}]
["Tetőbeázási károk biztosítása "]
["biztosítási összeg:",null,null,{"$f":"IF('2.telephely'!$E$33=FALSE,\" \",'2.telephely'!$B$16)","v":" "},null,null,null,null,null,"díj:",{"$f":"IF('2.telephely'!$C$33>0,'2.telephely'!$C$33,\"Nem biztosított\")","v":"Nem biztosított"}]
["Vandalizmus károk biztosítása"]
["biztosítási összeg:",null,null,{"$f":"IF('2.telephely'!$E$35=FALSE,\" \",'2.telephely'!$B$35)","v":" "},null,null,null,null,null,"díj:",{"$f":"IF('2.telephely'!$C$35>0,'2.telephely'!$C$35,\"Nembiztosított\")","v":"Nembiztosított"}]
["Különleges üvegek üvegtörés biztosítása"]
["biztosítási összeg:",null,null,{"$f":"IF('2.telephely'!$E$37=FALSE,\" \",'2.telephely'!$B$37)","v":" "},null,null,null,null,null,"díj:",{"$f":"IF('2.telephely'!$C$37>0,'2.telephely'!$C$37,\"Nem biztosított\")","v":"Nem biztosított"}]
["Általános és épülethasználói felelősségbiztosítás",null,null,null,null,null,"Kockázati osztály:",null,{"$f":"'2.telephely'!$F$39","v":3}]
["alkalmazottak száma (fő):",null,{"$f":"'2.telephely'!$B$8","v":0},null,"Kártérítési limit:",null,{"$f":"IF('2.telephely'!$E$39=FALSE,\" \",Tarifa!T26)","v":" "},null,null,"díj:",{"$f":"IF('2.telephely'!$C$39>0,'2.telephely'!$C$39,\"Nem biztosított\")","v":"Nem biztosított"}]
["Tanuló baleseti és felelősségbiztosítás",null,null,null,"Kockázati osztály (általános):",null,{"$f":"'2.telephely'!$F$40","v":3},"Kockázati osztály (munkáltatói):",null,null,{"$f":"'2.telephely'!$G$40","v":2}]
["tanulók létszáma (fő):",null,{"$f":"'2.telephely'!$B$40","v":0},null,"Kártérítési limit:",null,{"$f":"IF('2.telephely'!$E$40=FALSE,\" \",\"5 millió Ft\")","v":" "},null,null,"díj:",{"$f":"IF('2.telephely'!$C$40>0,'2.telephely'!$C$40,\"Nem biztosított\")","v":"Nem biztosított"}]
["Munkáltatói felelősségbiztosítás",null,null,null,null,null,"Kockázati osztály:",null,{"$f":"'2.telephely'!$F$41","v":2}]
["alkalmazottak száma (fő):",null,{"$f":"'2.telephely'!$B$8","v":0},null,"Kártérítési limit:",null,{"$f":"IF('2.telephely'!$E$41=FALSE,\" \",Tarifa!T37)","v":" "},null,null,"díj:",{"$f":"IF('2.telephely'!$C$41>0,'2.telephely'!$C$41,\"Nem biztosított\")","v":"Nem biztosított"}]
["Termékfelelősség biztosítás ",null,null,null,null,null,"Kockázati osztály:",null,{"$f":"'2.telephely'!$F$42","v":3}]
["éves forgalom:",null,null,{"$f":"'2.telephely'!$B$9","v":0},"Kártérítési limit:",null,{"$f":"IF('2.telephely'!$E$42=FALSE,\" \",Tarifa!T48)","v":" "},null,null,"díj:",{"$f":"IF('2.telephely'!$C$42>0,'2.telephely'!$C$42,\"Nem biztosított\")","v":"Nem biztosított"}]
["Bérlői felelősségbiztosítás ",null,null,null,null,null,"Kockázati osztály:",null,{"$f":"'2.telephely'!$F$43","v":3}]
["éves bérleti díj:",null,null,{"$f":"'2.telephely'!$B$10","v":0},"Kártérítési limit:",null,{"$f":"IF('2.telephely'!$E$43=FALSE,\" \",Tarifa!T60)","v":" "},null,null,"díj:",{"$f":"IF('2.telephely'!$C$43>0,'2.telephely'!$C$43,\"Nem biztosított\")","v":"Nem biztosított"}]
["Szolgáltatói felelősségbiztosítás ",null,null,null,null,null,"Kockázati osztály:",null,{"$f":"'2.telephely'!$F$44","v":0}]
["éves forgalom:",null,null,{"$f":"'2.telephely'!$B$9","v":0},"Kártérítési limit:",null,{"$f":"IF('2.telephely'!$E$44=FALSE,\" \",Tarifa!T72)","v":" "},null,null,"díj:",{"$f":"IF('2.telephely'!$C$44>0,'2.telephely'!$C$44,\"Nem biztosított\")","v":"Nem biztosított"}]
["Szálloda üzemeltetői, szállásadói felelősségbiztosítása"]
[null,null,null,null,"Kártérítési limit:",null,{"$f":"IF('2.telephely'!$E$45=FALSE,\" \",Tarifa!AB62)","v":" "},null,null,"díj:",{"$f":"IF('2.telephely'!$C$45>0,'2.telephely'!$C$45,\"Nem biztosított\")","v":"Nem biztosított"}]
["Gépjárműjavítók felelősségbiztosítása"]
["éves forgalom:",null,null,{"$f":"'2.telephely'!$B$9","v":0},"Kártérítési limit:",null,{"$f":"IF('2.telephely'!$E$46=FALSE,\" \",Tarifa!AB53)","v":" "},null,null,"díj:",{"$f":"IF('2.telephely'!$C$46>0,'2.telephely'!$C$46,\"Nem biztosított\")","v":"Nem biztosított"}]
["Gépjármű-eredetiségvizsgálatot végzők felelősségbiztosítása"]
[null,null,null,null,"Kártérítési limit:",null,{"$f":"IF('2.telephely'!$E$47=FALSE,\" \",\"5 millió Ft\")","v":" "},null,null,"díj:",{"$f":"IF('2.telephely'!$C$47>0,'2.telephely'!$C$47,\"Nem biztosított\")","v":"Nem biztosított"}]
["Szolgáltatás tárgyában okozott károk biztosítása"]
[null,null,null,null,"Kártérítési limit:",null,{"$f":"IF('2.telephely'!$E$48=FALSE,\" \",\"5 millió Ft\")","v":" "},null,null,"díj:",{"$f":"IF('2.telephely'!$C$48>0,'2.telephely'!$C$48,\"Nem biztosított\")","v":"Nem biztosított"}]
["Bérbeadói felelősségbiztosítás"]
["bérbeadásból származó forgalom:",null,null,{"$f":"'2.telephely'!$B$11","v":0},"Kártérítési limit:",null,{"$f":"IF('2.telephely'!$E$49=FALSE,\" \",Tarifa!T84)","v":" "},null,null,"díj:",{"$f":"IF('2.telephely'!$C$49>0,'2.telephely'!$C$49,\"Nem biztosított\")","v":"Nem biztosított"}]
["Környezetszennyezési felelősségbiztosítás"]
["éves forgalom:",null,null,{"$f":"'2.telephely'!$B$9","v":0},"Kártérítési limit:",null,{"$f":"IF('2.telephely'!$E$50=FALSE,\" \",Tarifa!T96)","v":" "},null,null,"díj:",{"$f":"IF('2.telephely'!$C$50>0,'2.telephely'!$C$50,\"Nem biztosított\")","v":"Nem biztosított"}]
[]
[]
[]
[null,null,null,null,null,"éves biztosítási díj a 2. telephelyre:",null,null,null,null,{"$f":"'2.telephely'!$C$52","v":0}]
[]
[]
[]
["Kelt:",null,null,null,null,null,null,"Szerződő (szervezet képviseletére jogosult) /"]
[null,null,null,null,null,null,null,"Biztosított aláírása"]
[]
[]
[]
[]
["telephelyi adatközlő és díjszámítás K&H vállalkozói biztosításhoz",null,null,null,null,null,null,null,null,"K&H Biztosító Zrt."]
[null,null,"adatközlő sorszáma",null,{"$f":"IF(AND('1.telephely'!C55>0,'2.telephely'!C52>0,'3.telephely'!C52>0,'4.telephely'!C52=0,'5.telephely'!C52=0),\"3/3\",IF(AND('1.telephely'!C55>0,'2.telephely'!C52>0,'3.telephely'!C52>0,'4.telephely'!C52>0,'5.telephely'!C52=0),\"3/4\",IF(AND('1.telephely'!C55>0,'2.telephely'!C52>0,'3.telephely'!C52>0,'4.telephely'!C52>0,'5.telephely'!C52>0),\"3/5\",0)))","v":0},null,null,null,null,"1095 Budapest, Lechner Ödön fasor 9."]
[]
["telephely megnevezése:",null,{"$f":"'3.telephely'!$B$1","v":0}]
["telephely és kockázatviselés helye: ",null,null,null,{"$f":"'3.telephely'!$F$2","v":0},{"$f":"'3.telephely'!$E$3:$F$3","v":0}]
["tevékenység kódja és megnevezése:",null,null,null,{"$f":"Tarifa!P5","v":" 182"},{"$f":"Tarifa!Q5","v":"Egyéb sokszorosítás"}]
["tárgyi eszközök értékelésének módja:",null,null,null,{"$f":"IF(Tarifa!AB77=1,\"Új értéken\",\"Valós értéken\")","v":"Valós értéken"},"éves árbevétel: ",null,{"$f":"'3.telephely'!$B$7","v":0},"alkalmazottak száma:",null,{"$f":"'3.telephely'!$B$8","v":0}]
["alapbiztosítás - tűz és elemi károk, biztosított épületek üvegkárai"]
["biztosított vagyontárgyak, biztosítási összeg",null,null,null,null,null,"Kockázati osztály:",null,{"$f":"'3.telephely'!$F$21","v":3}]
["épület, építmény:",null,null,{"$f":"'3.telephely'!$B$16","v":0},"saját készletek:",{"$f":"'3.telephely'!$B$18","v":0},"idegen készletek:",null,{"$f":"'3.telephely'!$B$19","v":0},"készpénz:",{"$f":"'3.telephely'!$B$20","v":0}]
["egyéb tárgyi eszközök:",null,null,{"$f":"'3.telephely'!$B$17","v":0},"összesen",{"$f":"'3.telephely'!$B$21","v":0},null,null,"díj:",{"$f":"'3.telephely'!$C$21","v":0}]
["kiegészítő biztosítások"]
["Betöréses lopás és rablás biztosítás",null,null,null,"Vidéki kedvezmény:",null,{"$f":"'3.telephely'!$E$23","v":"-"},null,"Kockázati osztály:",null,{"$f":"'3.telephely'!$F$23","v":1}]
["egyéb tárgyi eszközök:",null,{"$f":"IF('3.telephely'!$E$17=FALSE,\" \",'3.telephely'!$B$17)","v":" "},null,"készletek (saját + idegen):",null,{"$f":"IF('3.telephely'!$E$18=FALSE,\" \",'3.telephely'!$B$18+'3.telephely'!$B$19)","v":" "},null,"készpénz:",{"$f":"IF('3.telephely'!E20=FALSE,\" \",'3.telephely'!$B$20)","v":" "}]
[null,null,null,null,null,null,null,null,null,"díj:",{"$f":"IF('3.telephely'!$C$23>0,'3.telephely'!$C$23,\"Nem biztosított\")","v":"Nem biztosított"}]
["Irodai és kereskedelmi elektronikus berendezések, eszközök biztosítása"]
["biztosítási összeg:",null,null,{"$f":"IF('3.telephely'!$E$25=FALSE,\" \",'3.telephely'!$B$25)","v":" "},null,null,null,null,null,"díj:",{"$f":"IF('3.telephely'!$C$25>0,'3.telephely'!$C$25,\"Nem biztosított\")","v":"Nem biztosított"}]
["Üzemszünet biztosítás ",null,null,null,null,null,"Kockázati osztály:",null,{"$f":"'3.telephely'!$F$27","v":3}]
["éves árbevétel: ",null,null,{"$f":"'3.telephely'!$B$7","v":0},null,null,null,null,null,"díj:",{"$f":"IF('3.telephely'!$C$27>0,'3.telephely'!$C$27,\"Nem biztosított\")","v":"Nem biztosított"}]
["Szállítmány biztosítás "]
["biztosítási összeg:",null,null,{"$f":"IF('3.telephely'!$E$29=FALSE,\" \",'3.telephely'!$B$29)","v":" "},null,null,null,null,null,"díj:",{"$f":"IF('3.telephely'!$C$29>0,'3.telephely'!$C$29,\"Nem biztosított\")","v":"Nem biztosított"}]
["Vakolat károk biztosítása "]
["biztosítási összeg:",null,null,{"$f":"IF('3.telephely'!$E$31=FALSE,\" \",'3.telephely'!$B$16)","v":" "},null,null,null,null,null,"díj:",{"$f":"IF('3.telephely'!$C$31>0,'3.telephely'!$C$31,\"Nem biztosított\")","v":"Nem biztosított"}]
["Tetőbeázási károk biztosítása "]
["biztosítási összeg:",null,null,{"$f":"IF('3.telephely'!$E$33=FALSE,\" \",'3.telephely'!$B$16)","v":" "},null,null,null,null,null,"díj:",{"$f":"IF('3.telephely'!$C$33>0,'3.telephely'!$C$33,\"Nem biztosított\")","v":"Nem biztosított"}]
["Vandalizmus károk biztosítása"]
["biztosítási összeg:",null,null,{"$f":"IF('3.telephely'!$E$35=FALSE,\" \",'3.telephely'!$B$35)","v":" "},null,null,null,null,null,"díj:",{"$f":"IF('3.telephely'!$C$35>0,'3.telephely'!$C$35,\"Nembiztosított\")","v":"Nembiztosított"}]
["Különleges üvegek üvegtörés biztosítása"]
["biztosítási összeg:",null,null,{"$f":"IF('3.telephely'!$E$37=FALSE,\" \",'3.telephely'!$B$37)","v":" "},null,null,null,null,null,"díj:",{"$f":"IF('3.telephely'!$C$37>0,'3.telephely'!$C$37,\"Nem biztosított\")","v":"Nem biztosított"}]
["Általános és épülethasználói felelősségbiztosítás",null,null,null,null,null,"Kockázati osztály:",null,{"$f":"'3.telephely'!$F$39","v":2}]
["alkalmazottak száma (fő):",null,{"$f":"'3.telephely'!$B$8","v":0},null,"Kártérítési limit:",null,{"$f":"IF('3.telephely'!$E$39=FALSE,\" \",Tarifa!U26)","v":" "},null,null,"díj:",{"$f":"IF('3.telephely'!$C$39>0,'3.telephely'!$C$39,\"Nem biztosított\")","v":"Nem biztosított"}]
["Tanuló baleseti és felelősségbiztosítás",null,null,"Kockázati osztály (általános):",null,null,{"$f":"'3.telephely'!$F$40","v":2},"Kockázati osztály (munkáltatói):",null,null,{"$f":"'3.telephely'!$G$40","v":2}]
["tanulók létszáma (fő):",null,{"$f":"'3.telephely'!$B$40","v":0},null,"Kártérítési limit:",null,{"$f":"IF('3.telephely'!$E$40=FALSE,\" \",\"5 millió Ft\")","v":" "},null,null,"díj:",{"$f":"IF('3.telephely'!$C$40>0,'3.telephely'!$C$40,\"Nem biztosított\")","v":"Nem biztosított"}]
["Munkáltatói felelősségbiztosítás",null,null,null,null,null,"Kockázati osztály:",null,{"$f":"'3.telephely'!$F$41","v":2}]
["alkalmazottak száma (fő):",null,{"$f":"'3.telephely'!$B$8","v":0},null,"Kártérítési limit:",null,{"$f":"IF('3.telephely'!$E$41=FALSE,\" \",Tarifa!U37)","v":" "},null,null,"díj:",{"$f":"IF('3.telephely'!$C$41>0,'3.telephely'!$C$41,\"Nem biztosított\")","v":"Nem biztosított"}]
["Termékfelelősség biztosítás ",null,null,null,null,null,"Kockázati osztály:",null,{"$f":"'3.telephely'!$F$42","v":2}]
["éves forgalom:",null,null,{"$f":"'3.telephely'!$B$9","v":0},"Kártérítési limit:",null,{"$f":"IF('3.telephely'!$E$42=FALSE,\" \",Tarifa!U48)","v":" "},null,null,"díj:",{"$f":"IF('3.telephely'!$C$42>0,'3.telephely'!$C$42,\"Nem biztosított\")","v":"Nem biztosított"}]
["Bérlői felelősségbiztosítás ",null,null,null,null,null,"Kockázati osztály:",null,{"$f":"'3.telephely'!$F$43","v":2}]
["éves bérleti díj:",null,null,{"$f":"'3.telephely'!$B$10","v":0},"Kártérítési limit:",null,{"$f":"IF('3.telephely'!$E$43=FALSE,\" \",Tarifa!U60)","v":" "},null,null,"díj:",{"$f":"IF('3.telephely'!$C$43>0,'3.telephely'!$C$43,\"Nem biztosított\")","v":"Nem biztosított"}]
["Szolgáltatói felelősségbiztosítás ",null,null,null,null,null,"Kockázati osztály:",null,{"$f":"'3.telephely'!$F$44","v":2}]
["éves forgalom:",null,null,{"$f":"'3.telephely'!$B$9","v":0},"Kártérítési limit:",null,{"$f":"IF('3.telephely'!$E$44=FALSE,\" \",Tarifa!U72)","v":" "},null,null,"díj:",{"$f":"IF('3.telephely'!$C$44>0,'3.telephely'!$C$44,\"Nem biztosított\")","v":"Nem biztosított"}]
["Szálloda üzemeltetői, szállásadói felelősségbiztosítása"]
[null,null,null,null,"Kártérítési limit:",null,{"$f":"IF('3.telephely'!$E$45=FALSE,\" \",Tarifa!AC62)","v":" "},null,null,"díj:",{"$f":"IF('3.telephely'!$C$45>0,'3.telephely'!$C$45,\"Nem biztosított\")","v":"Nem biztosított"}]
["Gépjárműjavítók felelősségbiztosítása"]
["éves forgalom:",null,null,{"$f":"'3.telephely'!$B$9","v":0},"Kártérítési limit:",null,{"$f":"IF('3.telephely'!$E$46=FALSE,\" \",Tarifa!AC53)","v":" "},null,null,"díj:",{"$f":"IF('3.telephely'!$C$46>0,'3.telephely'!$C$46,\"Nem biztosított\")","v":"Nem biztosított"}]
["Gépjármű-eredetiségvizsgálatot végzők felelősségbiztosítása"]
[null,null,null,null,"Kártérítési limit:",null,{"$f":"IF('3.telephely'!$E$48=FALSE,\" \",\"5 millió Ft\")","v":" "},null,null,"díj:",{"$f":"IF('3.telephely'!$C$47>0,'3.telephely'!$C$47,\"Nem biztosított\")","v":"Nem biztosított"}]
["Szolgáltatás tárgyában okozott károk biztosítása"]
[null,null,null,null,"Kártérítési limit:",null,{"$f":"IF('3.telephely'!$E$48=FALSE,\" \",\"5 millió Ft\")","v":" "},null,null,"díj:",{"$f":"IF('3.telephely'!$C$48>0,'3.telephely'!$C$48,\"Nem biztosított\")","v":"Nem biztosított"}]
["Bérbeadói felelősségbiztosítás"]
["bérbeadásból származó forgalom:",null,null,{"$f":"'3.telephely'!$B$11","v":0},"Kártérítési limit:",null,{"$f":"IF('3.telephely'!$E$49=FALSE,\" \",Tarifa!U84)","v":" "},null,null,"díj:",{"$f":"IF('3.telephely'!$C$49>0,'3.telephely'!$C$49,\"Nem biztosított\")","v":"Nem biztosított"}]
["Környezetszennyezési felelősségbiztosítás"]
["éves forgalom:",null,null,{"$f":"'3.telephely'!$B$9","v":0},"Kártérítési limit:",null,{"$f":"IF('3.telephely'!$E$50=FALSE,\" \",Tarifa!U96)","v":" "},null,null,"díj:",{"$f":"IF('3.telephely'!$C$50>0,'3.telephely'!$C$50,\"Nem biztosított\")","v":"Nem biztosított"}]
[]
[]
[]
[null,null,null,null,null,"éves biztosítási díj a 3. telephelyre:",null,null,null,null,{"$f":"'3.telephely'!$C$52","v":0}]
[]
[]
[]
[]
["Kelt:",null,null,null,null,null,null,"Szerződő (szervezet képviseletére jogosult) /"]
[null,null,null,null,null,null,null,"Biztosított aláírása"]
[]
[]
[]
["telephelyi adatközlő és díjszámítás K&H vállalkozói biztosításhoz",null,null,null,null,null,null,null,null,"K&H Biztosító Zrt."]
[null,null,"adatközlő sorszáma",null,{"$f":"IF(AND('1.telephely'!C55>0,'2.telephely'!C52>0,'3.telephely'!C52>0,'4.telephely'!C52>0,'5.telephely'!C52=0),\"4/4\",IF(AND('1.telephely'!C55>0,'2.telephely'!C52>0,'3.telephely'!C52>0,'4.telephely'!C52>0,'5.telephely'!C52>0),\"4/5\",0))","v":0},null,null,null,null,"1095 Budapest, Lechner Ödön fasor 9."]
[]
["telephely megnevezése:",null,{"$f":"'4.telephely'!$B$1","v":0}]
["telephely és kockázatviselés helye: ",null,null,null,{"$f":"'4.telephely'!$F$2","v":0},{"$f":"'4.telephely'!F3","v":0}]
["tevékenység kódja és megnevezése:",null,null,null,{"$f":"Tarifa!P6","v":" 182"},{"$f":"Tarifa!Q6","v":"Egyéb sokszorosítás"}]
["tárgyi eszközök értékelésének módja:",null,null,null,{"$f":"IF(Tarifa!AB78=1,\"Új értéken\",\"Valós értéken\")","v":"Valós értéken"},"éves árbevétel: ",null,{"$f":"'4.telephely'!$B$7","v":0},"alkalmazottak száma:",null,{"$f":"'4.telephely'!$B$8","v":0}]
["alapbiztosítás - tűz és elemi károk, biztosított épületek üvegkárai"]
["biztosított vagyontárgyak, biztosítási összeg",null,null,null,null,null,"Kockázati osztály:",null,{"$f":"'4.telephely'!$F$21","v":3}]
["épület, építmény:",null,null,{"$f":"'4.telephely'!$B$16","v":0},"saját készletek:",{"$f":"'4.telephely'!$B$18","v":0},"idegen készletek:",null,{"$f":"'4.telephely'!$B$19","v":0},"készpénz:",{"$f":"'4.telephely'!$B$20","v":0}]
["egyéb tárgyi eszközök:",null,null,{"$f":"'4.telephely'!$B$17","v":0},"összesen",{"$f":"'4.telephely'!$B$21","v":0},null,null,null,"díj:",{"$f":"'4.telephely'!$C$21","v":0}]
["kiegészítő biztosítások"]
["Betöréses lopás és rablás biztosítás",null,null,null,"Vidéki kedvezmény:",null,{"$f":"'4.telephely'!$E$23","v":"-"},null,"Kockázati osztály:",null,{"$f":"'4.telephely'!$F$23","v":1}]
["egyéb tárgyi eszközök:",null,null,{"$f":"IF('4.telephely'!$E$17=FALSE,\" \",'4.telephely'!$B$17)","v":" "},"készletek (saját + idegen):",null,{"$f":"IF('4.telephely'!$E$18=FALSE,\" \",'4.telephely'!$B$18+'4.telephely'!$B$19)","v":" "},null,"készpénz:",{"$f":"IF('4.telephely'!E20=FALSE,\" \",'4.telephely'!$B$20)","v":" "}]
[null,null,null,null,null,null,null,null,null,"díj:",{"$f":"IF('4.telephely'!$C$23>0,'4.telephely'!$C$23,\"Nem biztosított\")","v":"Nem biztosított"}]
["Irodai és kereskedelmi elektronikus berendezések, eszközök biztosítása"]
["biztosítási összeg:",null,null,{"$f":"IF('4.telephely'!$E$25=FALSE,\" \",'4.telephely'!$B$25)","v":" "},null,null,null,null,null,"díj:",{"$f":"IF('4.telephely'!$C$25>0,'4.telephely'!$C$25,\"Nem biztosított\")","v":"Nem biztosított"}]
["Üzemszünet biztosítás ",null,null,null,null,null,"Kockázati osztály:",null,{"$f":"'4.telephely'!$F$27","v":3}]
["éves árbevétel: ",null,null,{"$f":"'4.telephely'!$B$7","v":0},null,null,null,null,null,"díj:",{"$f":"IF('4.telephely'!$C$27>0,'4.telephely'!$C$27,\"Nem biztosított\")","v":"Nem biztosított"}]
["Szállítmány biztosítás "]
["biztosítási összeg:",null,null,{"$f":"IF('4.telephely'!$E$29=FALSE,\" \",'4.telephely'!$B$29)","v":" "},null,null,null,null,null,"díj:",{"$f":"IF('4.telephely'!$C$29>0,'4.telephely'!$C$29,\"Nem biztosított\")","v":"Nem biztosított"}]
["Vakolat károk biztosítása "]
["biztosítási összeg:",null,null,{"$f":"IF('4.telephely'!$E$31=FALSE,\" \",'4.telephely'!$B$16)","v":" "},null,null,null,null,null,"díj:",{"$f":"IF('4.telephely'!$C$31>0,'4.telephely'!$C$31,\"Nem biztosított\")","v":"Nem biztosított"}]
["Tetőbeázási károk biztosítása "]
["biztosítási összeg:",null,null,{"$f":"IF('4.telephely'!$E$33=FALSE,\" \",'4.telephely'!$B$16)","v":" "},null,null,null,null,null,"díj:",{"$f":"IF('4.telephely'!$C$33>0,'4.telephely'!$C$33,\"Nem biztosított\")","v":"Nem biztosított"}]
["Vandalizmus károk biztosítása"]
["biztosítási összeg:",null,null,{"$f":"IF('4.telephely'!$E$35=FALSE,\" \",'4.telephely'!$B$35)","v":" "},null,null,null,null,null,"díj:",{"$f":"IF('4.telephely'!$C$35>0,'4.telephely'!$C$35,\"Nembiztosított\")","v":"Nembiztosított"}]
["Különleges üvegek üvegtörés biztosítása"]
["biztosítási összeg:",null,null,{"$f":"IF('4.telephely'!$E$37=FALSE,\" \",'4.telephely'!$B$37)","v":" "},null,null,null,null,null,"díj:",{"$f":"IF('4.telephely'!$C$37>0,'4.telephely'!$C$37,\"Nem biztosított\")","v":"Nem biztosított"}]
["Általános és épülethasználói felelősségbiztosítás",null,null,null,null,null,"Kockázati osztály:",null,{"$f":"'4.telephely'!$F$39","v":2}]
["alkalmazottak száma (fő):",null,{"$f":"'4.telephely'!$B$8","v":0},null,"Kártérítési limit:",null,{"$f":"IF('4.telephely'!$E$39=FALSE,\" \",Tarifa!V26)","v":" "},null,null,"díj:",{"$f":"IF('4.telephely'!$C$39>0,'4.telephely'!$C$39,\"Nem biztosított\")","v":"Nem biztosított"}]
["Tanuló baleseti és felelősségbiztosítás",null,null,null,"Kockázati osztály (általános):",null,{"$f":"'4.telephely'!$F$40","v":2},"Kockázati osztály (munkáltatói):",null,null,{"$f":"'4.telephely'!$G$40","v":2}]
["tanulók létszáma (fő):",null,{"$f":"'4.telephely'!$B$40","v":0},null,"Kártérítési limit:",null,{"$f":"IF('4.telephely'!$E$40=FALSE,\" \",\"5 millió Ft\")","v":" "},null,null,"díj:",{"$f":"IF('4.telephely'!$C$40>0,'4.telephely'!$C$40,\"Nem biztosított\")","v":"Nem biztosított"}]
["Munkáltatói felelősségbiztosítás",null,null,null,null,null,"Kockázati osztály:",null,{"$f":"'4.telephely'!$F$41","v":2}]
["alkalmazottak száma (fő):",null,{"$f":"'4.telephely'!$B$8","v":0},null,"Kártérítési limit:",null,{"$f":"IF('4.telephely'!E$41=FALSE,\" \",Tarifa!V37)","v":" "},null,null,"díj:",{"$f":"IF('4.telephely'!$C$41>0,'4.telephely'!$C$41,\"Nem biztosított\")","v":"Nem biztosított"}]
["Termékfelelősség biztosítás ",null,null,null,null,null,"Kockázati osztály:",null,{"$f":"'4.telephely'!$F$42","v":2}]
["éves forgalom:",null,null,{"$f":"'4.telephely'!$B$9","v":0},"Kártérítési limit:",null,{"$f":"IF('4.telephely'!$E$42=FALSE,\" \",Tarifa!V48)","v":" "},null,null,"díj:",{"$f":"IF('4.telephely'!$C$42>0,'4.telephely'!$C$42,\"Nem biztosított\")","v":"Nem biztosított"}]
["Bérlői felelősségbiztosítás ",null,null,null,null,null,"Kockázati osztály:",null,{"$f":"'4.telephely'!$F$43","v":2}]
["éves bérleti díj:",null,null,{"$f":"'4.telephely'!$B$10","v":0},"Kártérítési limit:",null,{"$f":"IF('4.telephely'!$E$43=FALSE,\" \",Tarifa!V60)","v":" "},null,null,"díj:",{"$f":"IF('4.telephely'!$C$43>0,'4.telephely'!$C$43,\"Nem biztosított\")","v":"Nem biztosított"}]
["Szolgáltatói felelősségbiztosítás ",null,null,null,null,null,"Kockázati osztály:",null,{"$f":"'4.telephely'!$F$44","v":2}]
["éves forgalom:",null,null,{"$f":"'4.telephely'!$B$9","v":0},"Kártérítési limit:",null,{"$f":"IF('4.telephely'!$E$44=FALSE,\" \",Tarifa!V72)","v":" "},null,null,"díj:",{"$f":"IF('4.telephely'!$C$44>0,'4.telephely'!$C$44,\"Nem biztosított\")","v":"Nem biztosított"}]
["Szálloda üzemeltetői, szállásadói felelősségbiztosítása"]
[null,null,null,null,"Kártérítési limit:",null,{"$f":"IF('4.telephely'!$E$45=FALSE,\" \",Tarifa!AD62)","v":" "},null,null,"díj:",{"$f":"IF('4.telephely'!$C$45>0,'4.telephely'!$C$45,\"Nem biztosított\")","v":"Nem biztosított"}]
["Gépjárműjavítók felelősségbiztosítása"]
["éves forgalom:",null,null,{"$f":"'4.telephely'!$B$9","v":0},"Kártérítési limit:",null,{"$f":"IF('4.telephely'!$E$46=FALSE,\" \",Tarifa!AD53)","v":" "},null,null,"díj:",{"$f":"IF('4.telephely'!$C$46>0,'4.telephely'!$C$46,\"Nem biztosított\")","v":"Nem biztosított"}]
["Gépjármű-eredetiségvizsgálatot végzők felelősségbiztosítása"]
[null,null,null,null,"Kártérítési limit:",null,{"$f":"IF('4.telephely'!$E$48=FALSE,\" \",\"5 millió Ft\")","v":" "},null,null,"díj:",{"$f":"IF('4.telephely'!$C$47>0,'4.telephely'!$C$47,\"Nem biztosított\")","v":"Nem biztosított"}]
["Szolgáltatás tárgyában okozott károk biztosítása"]
[null,null,null,null,"Kártérítési limit:",null,{"$f":"IF('4.telephely'!$E$48=FALSE,\" \",\"5 millió Ft\")","v":" "},null,null,"díj:",{"$f":"IF('4.telephely'!$C$48>0,'4.telephely'!$C$48,\"Nem biztosított\")","v":"Nem biztosított"}]
["Bérbeadói felelősségbiztosítás"]
["bérbeadásból származó forgalom:",null,null,{"$f":"'4.telephely'!$B$11","v":0},"Kártérítési limit:",null,{"$f":"IF('4.telephely'!$E$49=FALSE,\" \",Tarifa!V84)","v":" "},null,null,"díj:",{"$f":"IF('4.telephely'!$C$49>0,'4.telephely'!$C$49,\"Nem biztosított\")","v":"Nem biztosított"}]
["Környezetszennyezési felelősségbiztosítás"]
["éves forgalom:",null,null,{"$f":"'4.telephely'!$B$9","v":0},"Kártérítési limit:",null,{"$f":"IF('4.telephely'!$E$50=FALSE,\" \",Tarifa!V96)","v":" "},null,null,"díj:",{"$f":"IF('4.telephely'!$C$50>0,'4.telephely'!$C$50,\"Nem biztosított\")","v":"Nem biztosított"}]
[]
[]
[]
[null,null,null,null,null,"éves biztosítási díj a 4. telephelyre:",null,null,null,null,{"$f":"'4.telephely'!$C$52","v":0}]
[]
[]
[]
[]
["Kelt:",null,null,null,null,null,null,"Szerződő (szervezet képviseletére jogosult) /"]
[null,null,null,null,null,null,null,"Biztosított aláírása"]
[]
[]
[]
["telephelyi adatközlő és díjszámítás K&H vállalkozói biztosításhoz",null,null,null,null,null,null,null,null,"K&H Biztosító Zrt."]
[null,null,"adatközlő sorszáma",null,{"$f":"IF(AND('1.telephely'!C55>0,'2.telephely'!C52>0,'3.telephely'!C52>0,'4.telephely'!C52>0,'5.telephely'!C52>0),\"5/5\",0)","v":0},null,null,null,null,"1095 Budapest, Lechner Ödön fasor 9."]
[]
["telephely megnevezése:",null,{"$f":"'5.telephely'!$B$1","v":0}]
["telephely és kockázatviselés helye: ",null,null,null,{"$f":"'5.telephely'!$F$2","v":0},{"$f":"'5.telephely'!F3","v":0}]
["tevékenység kódja és megnevezése:",null,null,null,{"$f":"Tarifa!P7","v":" 643"},{"$f":"Tarifa!Q7","v":"Befektetési alapok és hasonlók"}]
["tárgyi eszközök értékelésének módja:",null,null,null,{"$f":"IF(Tarifa!AB79=1,\"Új értéken\",\"Valós értéken\")","v":"Valós értéken"},"éves árbevétel: ",null,{"$f":"'5.telephely'!$B$7","v":0},"alkalmazottak száma:",null,{"$f":"'5.telephely'!$B$8","v":0}]
["alapbiztosítás - tűz és elemi károk, biztosított épületek üvegkárai"]
["biztosított vagyontárgyak, biztosítási összeg",null,null,null,null,null,"Kockázati osztály:",null,{"$f":"'5.telephely'!$F$21","v":2}]
["épület, építmény:",null,null,{"$f":"'5.telephely'!$B$16","v":0},"saját készletek:",{"$f":"'5.telephely'!$B$18","v":0},"idegen készletek:",null,{"$f":"'5.telephely'!$B$19","v":0},"készpénz:",{"$f":"'5.telephely'!$B$20","v":0}]
["egyéb tárgyi eszközök:",null,null,{"$f":"'5.telephely'!$B$17","v":0},"összesen",{"$f":"'5.telephely'!$B$21","v":0},null,null,"díj:",{"$f":"'5.telephely'!$C$21","v":0}]
["kiegészítő biztosítások"]
["Betöréses lopás és rablás biztosítás",null,null,null,"Vidéki kedvezmény:",null,{"$f":"'5.telephely'!$E$23","v":"-"},null,"Kockázati osztály:",null,{"$f":"'5.telephely'!$F$23","v":2}]
["egyéb tárgyi eszközök:",null,null,{"$f":"IF('5.telephely'!$E$17=FALSE,\" \",'5.telephely'!$B$17)","v":" "},"készletek (saját + idegen):",null,{"$f":"IF('5.telephely'!$E$18=FALSE,\" \",'5.telephely'!$B$18+'5.telephely'!$B$19)","v":" "},null,"készpénz:",{"$f":"IF('5.telephely'!E20=FALSE,\" \",'5.telephely'!$B$20)","v":" "}]
[null,null,null,null,null,null,null,null,null,"díj:",{"$f":"IF('5.telephely'!$C$23>0,'5.telephely'!$C$23,\"Nem biztosított\")","v":"Nem biztosított"}]
["Irodai és kereskedelmi elektronikus berendezések, eszközök biztosítása"]
["biztosítási összeg:",null,null,{"$f":"IF('5.telephely'!$E$25=FALSE,\" \",'5.telephely'!$B$25)","v":" "},null,null,null,null,null,"díj:",{"$f":"IF('5.telephely'!$C$25>0,'5.telephely'!$C$25,\"Nem biztosított\")","v":"Nem biztosított"}]
["Üzemszünet biztosítás ",null,null,null,null,null,"Kockázati osztály:",null,{"$f":"'5.telephely'!$F$27","v":1}]
["éves árbevétel: ",null,null,{"$f":"'5.telephely'!$B$7","v":0},null,null,null,null,null,"díj:",{"$f":"IF('5.telephely'!$C$27>0,'5.telephely'!$C$27,\"Nem biztosított\")","v":"Nem biztosított"}]
["Szállítmány biztosítás "]
["biztosítási összeg:",null,null,{"$f":"IF('5.telephely'!$E$29=FALSE,\" \",'5.telephely'!$B$29)","v":" "},null,null,null,null,null,"díj:",{"$f":"IF('5.telephely'!$C$29>0,'5.telephely'!$C$29,\"Nem biztosított\")","v":"Nem biztosított"}]
["Vakolat károk biztosítása "]
["biztosítási összeg:",null,null,{"$f":"IF('5.telephely'!$E$31=FALSE,\" \",'5.telephely'!$B$16)","v":" "},null,null,null,null,null,"díj:",{"$f":"IF('5.telephely'!$C$31>0,'5.telephely'!$C$31,\"Nem biztosított\")","v":"Nem biztosított"}]
["Tetőbeázási károk biztosítása "]
["biztosítási összeg:",null,null,{"$f":"IF('5.telephely'!$E$33=FALSE,\" \",'5.telephely'!$B$16)","v":" "},null,null,null,null,null,"díj:",{"$f":"IF('5.telephely'!$C$33>0,'5.telephely'!$C$33,\"Nem biztosított\")","v":"Nem biztosított"}]
["Vandalizmus károk biztosítása"]
["biztosítási összeg:",null,null,{"$f":"IF('5.telephely'!$E$35=FALSE,\" \",'5.telephely'!$B$35)","v":" "},null,null,null,null,null,"díj:",{"$f":"IF('5.telephely'!$C$35>0,'5.telephely'!$C$35,\"Nembiztosított\")","v":"Nembiztosított"}]
["Különleges üvegek üvegtörés biztosítása"]
["biztosítási összeg:",null,null,{"$f":"IF('5.telephely'!$E$37=FALSE,\" \",'5.telephely'!$B$37)","v":" "},null,null,null,null,null,"díj:",{"$f":"IF('5.telephely'!$C$37>0,'5.telephely'!$C$37,\"Nem biztosított\")","v":"Nem biztosított"}]
["Általános és épülethasználói felelősségbiztosítás",null,null,null,null,null,"Kockázati osztály:",null,{"$f":"'5.telephely'!$F$39","v":2}]
["alkalmazottak száma (fő):",null,{"$f":"'5.telephely'!$B$8","v":0},null,"Kártérítési limit:",null,{"$f":"IF('5.telephely'!$E$39=FALSE,\" \",Tarifa!W26)","v":" "},null,null,"díj:",{"$f":"IF('5.telephely'!$C$39>0,'5.telephely'!$C$39,\"Nem biztosított\")","v":"Nem biztosított"}]
["Tanuló baleseti és felelősségbiztosítás",null,null,"Kockázati osztály (általános):",null,null,{"$f":"'5.telephely'!$F$40","v":2},"Kockázati osztály (munkáltatói):",null,null,{"$f":"'5.telephely'!$G$40","v":2}]
["tanulók létszáma (fő):",null,{"$f":"'5.telephely'!$B$40","v":0},null,"Kártérítési limit:",null,{"$f":"IF('5.telephely'!$E$40=FALSE,\" \",\"5 millió Ft\")","v":" "},null,null,"díj:",{"$f":"IF('5.telephely'!$C$40>0,'5.telephely'!$C$40,\"Nem biztosított\")","v":"Nem biztosított"}]
["Munkáltatói felelősségbiztosítás",null,null,null,null,null,"Kockázati osztály:",null,{"$f":"'5.telephely'!$F$41","v":2}]
["alkalmazottak száma (fő):",null,{"$f":"'5.telephely'!$B$8","v":0},null,"Kártérítési limit:",null,{"$f":"IF('5.telephely'!E$41=FALSE,\" \",Tarifa!W37)","v":" "},null,null,"díj:",{"$f":"IF('5.telephely'!$C$41>0,'5.telephely'!$C$41,\"Nem biztosított\")","v":"Nem biztosított"}]
["Termékfelelősség biztosítás ",null,null,null,null,null,"Kockázati osztály:",null,{"$f":"'5.telephely'!$F$42","v":0}]
["éves forgalom:",null,null,{"$f":"'5.telephely'!$B$9","v":0},"Kártérítési limit:",null,{"$f":"IF('5.telephely'!$E$42=FALSE,\" \",Tarifa!W48)","v":" "},null,null,"díj:",{"$f":"IF('5.telephely'!$C$42>0,'5.telephely'!$C$42,\"Nem biztosított\")","v":"Nem biztosított"}]
["Bérlői felelősségbiztosítás ",null,null,null,null,null,"Kockázati osztály:",null,{"$f":"'5.telephely'!$F$43","v":2}]
["éves bérleti díj:",null,null,{"$f":"'5.telephely'!$B$10","v":0},"Kártérítési limit:",null,{"$f":"IF('5.telephely'!$E$43=FALSE,\" \",Tarifa!W60)","v":" "},null,null,"díj:",{"$f":"IF('5.telephely'!$C$43>0,'5.telephely'!$C$43,\"Nem biztosított\")","v":"Nem biztosított"}]
["Szolgáltatói felelősségbiztosítás ",null,null,null,null,null,"Kockázati osztály:",null,{"$f":"'5.telephely'!$F$44","v":0}]
["éves forgalom:",null,null,{"$f":"'5.telephely'!$B$9","v":0},"Kártérítési limit:",null,{"$f":"IF('5.telephely'!$E$44=FALSE,\" \",Tarifa!W72)","v":" "},null,null,"díj:",{"$f":"IF('5.telephely'!$C$44>0,'5.telephely'!$C$44,\"Nem biztosított\")","v":"Nem biztosított"}]
["Szálloda üzemeltetői, szállásadói felelősségbiztosítása"]
[null,null,null,null,"Kártérítési limit:",null,{"$f":"IF('5.telephely'!$E$45=FALSE,\" \",Tarifa!AE62)","v":" "},null,null,"díj:",{"$f":"IF('5.telephely'!$C$45>0,'5.telephely'!$C$45,\"Nem biztosított\")","v":"Nem biztosított"}]
["Gépjárműjavítók felelősségbiztosítása"]
["éves forgalom:",null,null,{"$f":"'5.telephely'!$B$9","v":0},"Kártérítési limit:",null,{"$f":"IF('5.telephely'!$E$46=FALSE,\" \",Tarifa!AE53)","v":" "},null,null,"díj:",{"$f":"IF('5.telephely'!$C$46>0,'5.telephely'!$C$46,\"Nem biztosított\")","v":"Nem biztosított"}]
["Gépjármű-eredetiségvizsgálatot végzők felelősségbiztosítása"]
[null,null,null,null,"Kártérítési limit:",null,{"$f":"IF('5.telephely'!$E$48=FALSE,\" \",\"5 millió Ft\")","v":" "},null,null,"díj:",{"$f":"IF('5.telephely'!$C$47>0,'5.telephely'!$C$47,\"Nem biztosított\")","v":"Nem biztosított"}]
["Szolgáltatás tárgyában okozott károk biztosítása"]
[null,null,null,null,"Kártérítési limit:",null,{"$f":"IF('5.telephely'!$E$48=FALSE,\" \",\"5 millió Ft\")","v":" "},null,null,"díj:",{"$f":"IF('5.telephely'!$C$48>0,'5.telephely'!$C$48,\"Nem biztosított\")","v":"Nem biztosított"}]
["Bérbeadói felelősségbiztosítás"]
["bérbeadásból származó forgalom:",null,null,{"$f":"'5.telephely'!$B$11","v":0},"Kártérítési limit:",null,{"$f":"IF('5.telephely'!$E$49=FALSE,\" \",Tarifa!W84)","v":" "},null,null,"díj:",{"$f":"IF('5.telephely'!$C$49>0,'5.telephely'!$C$49,\"Nem biztosított\")","v":"Nem biztosított"}]
["Környezetszennyezési felelősségbiztosítás"]
["éves forgalom:",null,null,{"$f":"'5.telephely'!$B$9","v":0},"Kártérítési limit:",null,{"$f":"IF('5.telephely'!$E$50=FALSE,\" \",Tarifa!W96)","v":" "},null,null,"díj:",{"$f":"IF('5.telephely'!$C$50>0,'5.telephely'!$C$50,\"Nem biztosított\")","v":"Nem biztosított"}]
[]
[]
[]
[null,null,null,null,null,"éves biztosítási díj a 5. telephelyre:",null,null,null,null,{"$f":"'5.telephely'!$C$52","v":0}]
[]
[]
[]
[]
["Kelt:",null,null,null,null,null,null,"Szerződő (szervezet képviseletére jogosult) /"]
[null,null,null,null,null,null,null,"Biztosított aláírása"]
[]
[]
["K&H vállalkozói biztosítás ügyfél-tájékoztató\n\nKedves Ügyfelünk!\nEngedje meg, hogy figyelmébe ajánljuk a K&H vállalkozói biztosítást (KVB-13), amely az érdekeltségébe tartozó tárgyi eszközeit és készleteit védi az alábbiakban felsorolt, de részben Ön által kiválasztott veszélynemek ellen, valamint segítséget nyújt az Ön, mint biztosított személy által okozott felelősségi károk esetén.\n\nmegbízhatóság\nA K&H Biztosító Zrt. 1992. február 19-én alakult meg Budapesten. Biztosítótársaságunk Európa egyik vezető pénzügyi csoportjának, a KBC csoportnak a tagja. \nTársaság jogi formája: zártkörű részvénytársaság\nSzékhelyének állama: Magyarország\nSzékhelye: 1095 Budapest, Lechner Ödön fasor 9.\nLevelezési cím: Budapest 1851\nTársaságunk alaptőkéje: 4,78 milliárd Ft\nTulajdonosunk: KBC Insurance NV 100%-ban\nFelügyeleti hatóságunk a Magyar Nemzeti Bank (1013 Budapest, Krisztina krt. 39, levelezési cím: H-1534 Budapest BKKP Pf. 777, telefon: (06 1) 489 9100, fax: (06 1) 489 9102).\nA fegyelmezett adminisztrációs szervezet által támogatott, s az ország egész területén működő biztosításközvetítői hálózat segítségével a K&H Biztosító (továbbiakban: Biztosító) és ügyfeleinek kapcsolata személyes. Önnek elég biztosítási igényével felkeresni a közelében működő K&H Biztosító biztosításközvetítőjét.\nHonlapunkon (kh.hu) lehetőségében áll a székhelyéhez legközelebb található helyi képviselő kikeresése is.\n\nmi a biztosítási szerződés irányadó joga?\nA szerződés irányadó joga a 2014. évi LXXXVIII. törvény a biztosítási tevékenységről és a 2013. évi V. törvény a Polgári Törvénykönyvről. \n\nmely adójogszabályok vonatkoznak a biztosítási szerződésre?\nA 2003. évi XCII. törvény az adózás rendjéről, az 1995. évi CXVII. törvény a személyi jövedelem-adóról és az 1996. évi LXXXI. törvény a társasági adóról és osztalékadóról vonatkozik a biztosítási szerződésre.\n\nmilyen vagyontárgyakra terjed ki a biztosítás?\nA K&H vállalkozói biztosítás fedezetet nyújt a biztosított személyek érdekeltségébe tartozó, a szerződésben meghatározott mindazon vagyontárgyakra, tárgyi eszközökre (épületekre, építményekre, műszaki berendezésekre, gépekre, egyéb berendezésekre, befejezetlen beruházásokra, stb.) készletekre és készpénzre, amelyek a vállalkozási tevékenységet szolgálják, illetve a tevékenységi folyamatban részt vesznek.\nA vagyonbiztosítási alapfedezeteken túlmenően a különböző kiegészítő kockázatokat Ön határozza meg, így a biztosítási szerződés garantáltan a vállalkozása által kívánt fedezeteket tartalmazza. \n\nmire nem terjed ki a K&H vállalkozói biztosítás?\nNem biztosítható vagyontárgyak az állatok, a lábonálló növényi kultúrák és a gépjármű-felelősségbiztosítási kötési kötelezettség alá tartozó járművek, valamint az értékpapír, értékcikk. Kérjük, figyelmesen olvassa el a K&H vállalkozói biztosítás szerződési feltételeit, amelyek részletezik azokat az eseményeket (kizárásokat és korlátozásokat), amelyekre nem terjed ki a biztosítás. Nem minősül biztosítási eseménynek, tehát kizárásra kerül például: \n– a nukleáris eseményekkel és radioaktív szennyezéssel összefüggésben keletkezett károk,\n– környezetszennyezéssel összefüggésben keletkezett károk,\n– a polgárháborúval, katonai gyakorlattal, terrorcselekménnyel, felkeléssel, lázadással, zavargással, tüntetéssel, sztrájkkal, tömegmegmozdulással, háborúval és harci cselekményekkel összefüggésben keletkezett károk,\n– hatósági rendelkezésekkel összefüggésben keletkezett károk,\n– a bírság, a kötbér, a késedelmi kamat vagy egyéb büntető jellegű költségek,\n– a jogszabály, vagy más biztosítási szerződés alapján térülő károk,\n– tűzkárok esetében a rendeltetésszerűen tűznek, hőhatásnak kitett vagyontárgyakban, elhasználódás folytán, \n– magukban az öngyulladt anyagokban, kivéve az abból átterjedő tűzkárt\n– kizárólag erjedés, befülledés, biológiai égés, korrózió, vegyi folyamat, \n– elektromos gépekben, berendezésekben természetes elhasználódás, vagy az előírt védelem hiánya vagy kiiktatása következtében, \n– az elektromos áram hatására tűzkár nélkül történő sérülés vagy megsemmisülés miatt keletkezett károk,\n– bármely anyag feldolgozása közben rendeltetésszerűen használt energia hőhatására a feldolgozás alatt lévő anyagban égés, pörkölés, elszíneződés, vagy alakváltozás miatt keletkezett károk,\n– tervszerű robbantás, hasadó anyagok robbanása, repülőgépek hangrobbanása miatt előálló robbanáskárok,\n– az előírt villámvédelmi rendszer hiánya miatt keletkezett károk,  \n– ismeretlen közlekedési eszköz ütközése és légijármű ütközése során a felelősségbiztosítással rendelkező, illetőleg arra kötelezett azonosítható járművek által okozott károk. \n\nmilyen káreseményekre terjed ki a biztosítási fedezet?\nAlapbiztosítási káresemények: tűz, elektromos tűz, robbanás, összeroppanás, közvetlen és közvetett villámcsapás, ismeretlen közlekedési eszköz ütközése és légijármű ütközése, füst, hő és kororm, földrengés, földcsuszamlás, föld- és kőomlás, ismeretlen üreg beomlása, 54 km/óra szélsebességet elérő és meghaladó vihar, jégeső, hónyomás, árvíz, felhőszakadás, vezetéktörés, technológiai csővezetéktörés és az automata tűzoltó berendezés (sprinkler) törés okozta károk.\n",null,null,null,null,null,"Az üvegtörés károk esetében az alapfedezet a biztosított épület szerkezetileg beépített és a nyílászárók üvegezésére valamint az ezeken lévő betörésvédő fóliára terjed ki.\n\nmilyen kiegészítő biztosítások köthetők hozzá?\nAz Ön választása alapján, külön díj ellenében kiegészíthető a fedezet:\n– betöréses lopás- és rablás kiegészítő biztosítással, amely betöréses lopás, rablás során keletkezett károkat, valamint legfeljebb 200.000, forintig a rongálással okozott károkat téríti meg.\n– üzemszünet kiegészítő biztosítással, amely a vállalkozás kényszerű tűz-, földmozgás-, vihar-, jégeső és hónyomás vagy vízkárok miatt bekövetkezett szünetelése esetén nyújt térítést,\n– szállítmánybiztosítással, amely tűz-, földmozgás-, viharkárok és közlekedési baleset miatt bekövetkező szállítmány-károkra nyújt fedezetet,  \n– irodai és kereskedelmi elektronikus berendezések, eszközök kiegészítő biztosításával, amely az alapbiztosítás keretében is biztosított irodai és kereskedelmi elektronikus berendezésekben és eszközökben rövidzárlat és a kezelési hibák esetén is fedezetet nyújt,\n– vakolat károk biztosításával\n– tetőbeázási károk biztosításával\n– vandalizmus károk biztosításával\n– különleges üvegek üvegtörés biztosításával\n– általános és épülethasználói felelősségbiztosítással, a szerződésen kívüli harmadik személynek okozott károk megtérítése alól mentesít,\n– gyógyszertári felelősségbiztosítási záradékkal, amely a gyógyszertári munkavégzés közben a foglalkozási szabályok megsértésével/megszegésével, szerződésen belül okozott személyi sérüléses károkra nyújt fedezetet\n– tanuló baleseti és felelősségbiztosítási záradékkal, amely a szakképzésben részt vevő tanulót a munkavégzés során, idegen harmadik személynek vagy az ott dolgozóknak vagy az oktatóknak okozott károk alól mentesíti illetve azon káreseményekre nyújt fedezetet amelyeket üzemi baleset folytán a tanuló elszenved,\n– munkáltatói felelősségbiztosítással, amely a munkáltatói minőségben a magyar polgári jog szabályai szerint kártérítési kötelezettség alól mentesít,\n– bérlői felelősségbiztosítással, amely tűz, robbanás, összeroppanás, vezetékből kiömlő víz vagy gőz által, a bérleményben okozott dologi károkért a bérlőt terhelő kártérítési kötelezettség alapján nyújt fedezetet, \n– termékfelelősség-biztosítással, amely azokra a személyi sérüléses vagy dologi károkra nyújt fedezetet, amelyekért a Biztosított, mint a termék gyártója, importálója, forgalmazója kártérítési kötelezettséggel tartozik,\n– bérbeadói felelősségbiztosítással, amely érvényes bérleti szerződés alapján a bérbe adott épületben, az épület helyiségeit használó bérlő vagyontárgyaiban tűz, robbanás, csőtörés káresemény által okozott – bérbeadót terhelő - felelősségi károkat téríti meg, \n– környezetszennyezési felelősségbiztosítással, amely előreláthatatlan, hirtelen, véletlen, váratlan, balesetszerű, normális üzemi folyamattól eltérő eseménnyel történő környezetszennyezéses (pl.: talaj, levegő, víz, élővilág) károkra nyújt fedezetet,\n– szolgáltatói felelősségbiztosítással, amely azokra a szolgáltatás teljesítése során okozott dologi (tárgyrongálási) károkra nyújt fedezetet, amelyekért a Biztosított szerződéses partnerével, illetve annak képviselőjével szemben a magyar polgári jog szabályai szerint kártérítési kötelezettséggel tartozik,\n– szálloda üzemeltetői, szállásadói felelősségbiztosítási záradékkal, amely a szálloda üzemeltetése, szállásadói tevékenység során - az üzemeltetéssel, szállásadással összefüggésben - a vendégnek okozott dologi károkra terjed ki,\n– gépjárműjavítók felelősségbiztosítási záradékával, a Biztosított tevékenységi körébe eső cselekedetekre, mulasztásra visszavezethető olyan károkra nyújt fedezetet, amelyek a javítás során, telephelyen belüli mozgatás alkalmával, valamint telephelyen kívül, kipróbálásból eredően a kipróbált gépjárműben keletkeztek,\n– gépjármű-eredetiségvizsgálatot végzők felelősségbiztosítási záradékával, amely a gépjármű eredetiségére vonatkozó vizsgálat eredményét tanúsító téves szakvélemény kiállításával okozott károk alól mentesít,\n– szolgáltatás tárgyában okozott károk biztosítása záradékkal, amely azon vagyontárgyakban bekövetkezett közvetlen dologi károkra terjed ki, amelyek a szolgáltatás tárgyát képezik, illetve amelyekre a biztosított által nyújtott szolgáltatás irányul.\nA kiegészítő felelősségbiztosítások megkötésének feltétele az alapvagyonbiztosítás, valamint az általános és épülethasználói kiegészítő felelősségbiztosítás egyidejű megkötése. \nA maximális biztosítási összegeket, valamint a társaságunk által téríthető maximális kártérítési összegeket a szerződési feltételek tartalmazzák.\n\nmikor kezdődik a kockázatviselés?\nA biztosítási szerződés legkorábban a biztosítási ajánlat aláírását követő nap nulla órájakor lép hatályba. Ettől eltérő későbbi időpontban a felek megállapodhatnak. \n\nmilyen időtartamra köthető a biztosítás?\nA biztosítási szerződés határozatlan időtartamra köthető. A biztosítási időszak egy év, a biztosítási évforduló minden évben a kockázatviselés kezdete hónapjának első napja. \n\nmilyen lehetőségek vannak a díjfizetésre?\nA biztosítás díja fizethető online díjfizetéssel (bankkártyával), csoportos beszedési megbízással, banki átutalással, vagy készpénz-átutalási megbízáson (postai csekken). A díjfizetés gyakorisága lehet éves (egy összegben egész évre), "]
[]
[]
[]
[]
[]
[]
[]
[]
[]
[]
[]
[]
[]
[]
[]
[]
[]
[]
[]
[]
[]
[]
[]
[]
[]
[]
[]
[]
[]
[]
[]
[]
[]
[]
[]
[]
[]
[]
[]
[]
[]
[]
[]
[]
[]
[]
[]
[]
[]
[]
[]
[]
[]
[]
[]
[]
[]
[]
[]
[]
[]
[]
[]
[]
[]
[]
["féléves és negyedéves és havi, amely alapján társaságunk a következő díjengedményeket nyújtja: negyedéves díjfizetés esetén 2%\n féléves díjfizetés esetén 6%\n éves díjfizetés esetén 10%\nA K&H Banknál vezetett számláról indított csoportos beszedési megbízás fizetési mód választása esetén a fentieken túlmenően 5%, míg az egyéb pénzintézetnél vezetett számláról indított csoportos beszedési megbízás illetve banki átutalás esetén 3% díjengedményt nyújtunk (kivéve havi díjfizetés). A díjfizetés módja bármikor, a gyakorisága a biztosítási szerződés évfordulójakor módosítható. A biztosítási ajánlat aláírásával a felek az első díj tekintetében a kötvényben és a díjesedékességi értesítőben foglalt díjesedékességi határidőig halasztásban állapodnak meg.\n\nhogyan szűnhet meg a biztosítási szerződés?\nA biztosítási szerződés megszűnhet érdekmúlással, közös megegyezéssel, díjnemfizetés miatt vagy évfordulóra írásban történő felmondással. Határozatlan idejű szerződés a biztosítási időszak végére bármikor felmondható, de a felmondó nyilatkozatnak legalább 30 nappal a biztosítási évforduló előtt be kell érkeznie a Biztosító székhelyére.\n\nmi az értékkövetés módja, mértéke és a biztosítási összeg módosításának lehetősége?\nAz újérték biztosítás fenntartása érdekében a Biztosító a tárgyi eszközök és készletek vagyonbiztosítási összegeit a Központi Statisztikai Hivatal adatai alapján a biztosítási évfordulót megelőzően a következő biztosítási időszakra automatikusan (azaz külön jognyilatkozat tétele nélkül) indexálja (értékkövetés) az alábbiak szerint:\nA módosított (új biztosítási időszakra érvényes) biztosítási összeg az előző évi biztosítási összeg és a KSH-index szorzata. A biztosítási összeg indexálásának alapja a KSH által az indexálás alkalmazását megelőzően utoljára közzétett, 12 hónapos tartamra vonatkozó számított árindex. Az indexáláshoz alkalmazott árindex az építőipari és a fogyasztói árindexből képzett súlyozott átlag árindex. A fenti lehetőségeken túl a szerződő ügyfél az év folyamán bármikor kezdeményezheti a biztosítási összegek módosítását. A biztosítási összegek változását a biztosítási díj követi. \n\nmilyen adatok megváltozását kell bejelenteni?\nA Szerződő illetve a Biztosított a szerződés szempontjából minden lényeges körülményt köteles írásban közölni a Biztosítóval haladéktalanul, de legfeljebb nyolc napon belül. Ez vonatkozik a változásjelentésre is. Abban az esetben, ha a biztosítási szerződés bármely adatában (amely adatokat a Szerződő az ajánlaton vagy az annak részét képező díjszámítási adatlapon közölt) változás történik, értesítse biztosításközvetítőjét, aki segít elintézni a szükséges módosítások elvégzését. Mely adatok ezek? Pl. név, cím, tulajdon, tevékenység, biztosítási összeg, stb. A változásról írásban közvetlenül központunkat is értesítheti. \n\nmilyen védelemben részesülnek rendelkezésre bocsátott adatai?\nFelhívjuk szíves figyelmét arra is, hogy közölt adatai a biztosítási titok körébe tartoznak, azokat csak akkor lehet kiadni harmadik személynek, ha ahhoz Ön vagy törvényes képviselője írásban hozzájárul. \nA titoktartási kötelezettség azonban nem áll fenn (egyes esetekben meghatározott feltételek mellett) az alábbi szervezetek, személyek vonatkozásában: a feladatkörében eljáró Felügyelet, folyamatban lévő büntetőeljárás keretében eljáró nyomozó hatóság és ügyészség, továbbá az általuk kirendelt szakértő, ügyészség, büntetőügyben, polgári ügyben, valamint a csődeljárás, illetve a felszámolási eljárás ügyében eljáró bíróság, a bíróság által kirendelt szakértő, a végrehajtási ügyben eljáró önálló bírósági végrehajtó, a hagyatéki ügyben eljáró közjegyző, továbbá az általa kirendelt szakértő, adóhatóság, gyámhatóság, egészségügyi hatóság, nemzetbiztonsági szolgálat, Gazdasági Versenyhivatal, Titkosszolgálat, viszontbiztosító, átvevő biztosító, alapvető jogok biztosa, Nemzeti Adatvédelmi és Információszabadság Hatóság, kárrendezési megbízott, kiszervezett tevékenységet végző, magyar bűnüldöző szerv, illetve külföldi bűnüldöző szerv és külföldi Pénzügyi Információs Egység. \nNem jelenti a biztosítási titok sérelmét az olyan összesített adatok szolgáltatása, amelyből az egyes ügyfelek személye vagy üzleti adata nem állapítható meg, valamint a jogalkotás megalapozása és a hatásvizsgálatok elvégzése céljából a Pénzügy-minisztérium részére személyes adatnak nem minősülő adatok átadása. \nA személyes adatok kezelésére vonatkozó elvi és gyakorlati tudnivalókat a „Nyilatkozat nem-életbiztosítási szerződés megkötéséhez” elnevezésű nyomtatvány tartalmazza, amely a biztosítási szerződés részét képezi.\n\nmi a tennivaló, ha káresemény történik?\nHa káresemény történik, hívja haladéktalanul biztosításközvetítőjét, akinek telefonszáma a kötvényen (fedezetet igazoló dokumentumon) található meg. \n A bekövetkezett kárt bejelentheti online kárbejelentési felületünkön is a https://ugyfelportal.kh.hu/karbejelentes/ címen, ahol biztosítási kötvényszámának megadásával gyorsan, egyszerűen intézheti ügyét.\nKárseseményét bejelentheti továbbá:\n– a kar@kh.hu email címen,\n– a (+36 1/20/30/70) 335 3355-ös központi telefonszámon, valamint\n– a (+36 1) 461 5235-ös faxszámon.\nA biztosítási eseményt legkésőbb két munkanapon belül be kell jelentenie a Biztosító felé, illetve felelősségbiztosítási eseményt legkésőbb 30 napon belül kell bejelenteni.\n\nSpeciális teendők adott káresemények bekövetkezésekor:\nTűz esetén a káreseményt be kell jelenteni a tűzoltóságnak is. Betöréses lopás- vagy rablás esetén a káreseményt be kell jelenteni a rendőrségnek is. A Biztosított köteles a kárt tőle telhetően megelőzni és enyhíteni, különösen: köteles az épület alkotó részei és tartozékai folyamatos karbantartásáról, a biztonságtechnikai berendezések üzemképes állapotban tartásáról gondoskodni, valamint az érvényes hatósági és építészeti előírásokat betartani. \nKáresemény észlelése esetén meg kell tenni minden olyan szükséges intézkedést, amellyel meg lehet akadályozni a további károk keletkezését. A károk megelőzésére és elhárítására a jó gazda gondosságán túl a hatályos jogszabályok, óvórendszabályok, hatósági határozatok, szabványok az irányadók.\n",null,null,null,null,null,"mikor nem tudunk kárt fizetni?\nA Biztosító kárkifizetési kötelezettsége nem áll fenn abban az esetben, ha nem biztosított káresemény történt. A tételes mentesülési okokat és a kizárásokat a biztosítás szerződési feltételei tartalmazzák. Mentesül továbbá a Biztosító, ha pl. a kárt a Biztosított vagy a vele közös háztartásban élő hozzátartozó, avagy a Biztosított - vezető munkakört vagy a biztosított vagyontárgyak kezelésével együtt járó munkakört betöltő - alkalmazottja, megbízottja, tisztviselője, tagja vagy szerve szándékosan vagy súlyosan gondatlanul okozta. \nMentesül továbbá a Biztosító szolgáltatási kötelezettsége alól a Szerződőt és a Biztosítottat terhelő kármegelőzési és kárenyhítési kötelezettség megszegése esetén is.\n\nhogyan történik a kárkifizetés?\nA Biztosító a kárösszeget a kárrendezéshez szükséges utolsó okirat beérkezését követő 15 napon belül fizeti ki. \nAz aránylagos kártérítés mértékét a Biztosító vagyoncsoportonként külön-külön állapítja meg. Nem alkalmaz aránylagos kártérítést a Biztosító akkor, ha a vagyoncsoport kár időpontjában fennálló teljes értéke és a biztosítási összeg közötti eltérés nem haladja meg a 10%-ot. Az értékesíthető, illetve hasznosítható maradványérték a biztosítási összegből levonásra kerül. Attól függően, hogy a Szerződő milyen értéken határozta meg a biztosítási összeget, a vagyontárgyakban bekövetkezett teljes kár térítése (legfeljebb a biztosítási összeg erejéig) új érték biztosítás esetében új értéken, valóságos érték biztosítás esetén káridőponti tényleges (avult) értéken történik. Részleges kárnál új érték biztosítás esetén a javítási (helyreállítási) költség erejéig térítjük meg a kárt, valóságos érték biztosítás esetén az értékemelkedés a helyreállítási költségből levonásra kerül (kivéve, ha a kár összege nem éri el a vagyontárgy értékének 25%-át!). A saját készletek kára esetén a térítés előállítási vagy beszerzési áron történik. Idegen vagyontárgyakban bekövetkezett károk a káridőponti valóságos értéken kerülnek térítésre.\nA biztosítási események folytán ténylegesen felmerült és igazolható költségeket mentés, oltás, romeltakarítás) legfeljebb 200.000 forint erejéig, de legfeljebb a biztosítási összeg 5%-ig térítjük meg.\nAbban az esetben, ha a biztosított vagyoncsoportok összesített biztosítási összege nem haladja meg a 100.000.000 forintot, a biztosított káreseményenként a bekövetkezett kár 10%-át, de legalább 10.000 forintot és legfeljebb 200.000 forintot maga viseli (önrészesedés). Abban az esetben, ha a biztosított vagyoncsoportok összesített biztosítási összege meghaladja a 100.000.000 forintot, a biztosított káreseményenként a bekövetkezett kár 10%-át, de legalább 10.000 forintot és legfeljebb 500.000 forintot maga viseli.\nA biztosított káreseményenként a bekövetkezett üvegtörés kár 10%-át maga viseli. Kiegészítő üzemszünet biztosítás esetén az alapbiztosítási eseménytől számított első négy napra jutó üzemszüneti veszteségeket a Biztosított maga viseli, azt önrészesedésként a kárkifizetésből a Biztosító levonja. Kiegészítő szállítmány biztosítás esetén a biztosított káreseményenként a bekövetkezett kár 10%-át, de legalább 10.000 forintot és legfeljebb 50.000 forintot önrészesedésként maga viseli.\nFelelősségbiztosítási kár megtérítése a károsultat illeti. Felelősségbiztosítás alapján kártérítésből a Biztosító nem von önrészesedést kivéve, ha a kiegészítő feltételekben az önrészesedés alkalmazása előírásra kerül. Ha a Szerződő által, a biztosítási díj számításának alapjául közölt adat (pl.: bérköltség, forgalom, bérleti díj) értéke kevesebb, mint a tényleges érték, a Biztosító alkalmazhatja az alulbiztosítás jogkövetkezményét. Ilyen esetben a Biztosító a kárt csak olyan arányban téríti meg, ahogy a biztosítási díj számításának alapjául közölt adat értéke, a kár időpontjában fennálló értékéhez aránylik (aránylagos kártérítés).  \n\nhová forduljon panaszával?\nA szerződéssel kapcsolatban felmerült panaszát bejelentheti:\n– a (+36 1/20/30/70) 335 3355, vagy (+36 1) 328 9000 telefonszámon,\n– a biztosito@kh.hu e-mail címen,\n– a (+36 1) 461 5276 faxszámon,\n– írásban a K&H Biztosító Zrt., Budapest 1851 postacímre küldött levélben, vagy\n– személyesen a Központi Ügyfélszolgálat ügyintézőinél vagy vezetőjénél, a \n   1095 Budapest, Lechner Ödön fasor 9. címen.\n\nFogyasztóvédelmi rendelkezések megsértése esetén az önálló foglalkozásán és gazdasági tevékenységén kívül eső célok érdekében eljáró természetes személy (fogyasztó) a Magyar Nemzeti Banknál (1013 Budapest, Krisztina krt. 39.) fogyasztóvédelmi eljárást kezdeményezhet. A biztosítási jogviszony létrejöttével és teljesítésével kapcsolatos (pénzügyi fogyasztói) jogvita esetén a fogyasztó álláspontját alátámasztó bizonyítékaival a Pénzügyi Békéltető Testület (1013 Budapest, Krisztina krt. 39., levelezési cím: 1525 Budapest BKKP Pf.:172) eljárását kezdeményezheti, vagy bírósághoz fordulhat. Az egyéni vállalkozó, egyéni cég, gazdasági társaság, jogi személyek, jogi személyiség nélküli szervezetek, társasházak stb. igényüket bírósági úton érvényesíthetik.\n\nFigyelem!\nEz a tájékoztató nem pótolja a biztosítás szerződési feltételeit, ezért kérjük, hogy azt gondosan tanulmányozza át. Jogvita esetén a szerződési feltételekben foglaltak az irányadók. \n\n\nközponti Iroda\n1095 Budapest, Lechner Ödön fasor 9.\ntelefon: (+36 1) 328 9000\nfax:        (+36 1) 461 5276\n\nLátogassa meg honlapunkat: kh.hu\n"]
[]
[]
[]
[]
[]
[]
[]
[]
[]
[]
[]
[]
[]
[]
[]
[]
[]
[]
[]
[]
[]
[]
[]
[]
[]
[]
[]
[]
[]
[]
[]
[]
[]
[]
[]
[]
[]
[]
[]
[]
[]
[]
[]
[]
[]
[]
[]
[]
[]
[]
[]
[]
[]
[]
[]
[]
[]
[]
[]
[]
[]
[]
[]
[]
[]
[]
[]
[]
["biztosításközvetítői tájékoztató"]
[]
[]
["Tisztelt ügyfelünk!"]
[]
[]
["A biztosítókról és a biztosítási tevékenységről szóló 2003. évi LX. törvény 37.§. alapján a biztosításközvetítő a biztosítási szerződés megkötését megelőzően és bármely, a tájékoztatóban szereplő adat változása esetén a szerződés módosításakor és megújításakor köteles tájékoztatást adni a biztosított vagy a biztosítóval szerződő fél részére a rá vonatkozó főbb adatokról."]
[]
[]
["Az alábbiakban az Ön biztosításközvetítőjéről talál tájékoztatást."]
[]
[null,null,null,null,null,"biztosításközvetítő neve:",null,{"$f":"Adatfelvétel!Q6","v":0}]
[null,null,null,null,null,"biztosításközvetítő képviselője (cég esetén):",null,{"$f":"Adatfelvétel!Q7","v":0}]
[null,null,null,null,null,"jogi forma:",null,{"$f":"Adatfelvétel!Q9","v":0}]
[null,null,null,null,null,"állandó lakóhely/székhely:",null,{"$f":"Adatfelvétel!Q10","v":0}]
[null,null,null,null,null,"székhely állama:",null,"Magyarország"]
[null,null,null,null,null,"székhely felügyeleti hatósága:",null,"Magyar Nemzeti Bank"]
[null,null,null,null,null,"biztosításközvetítő típusa:",null,"függő biztosításközvetítő, biztosítási ügynök"]
[]
["A Magyar Nemzeti Bank honlapján (www.mnb.hu) részletes nyilvántartás található valamennyi magyarországi biztosítás-közvetítőről."]
[]
["Az Ön biztosításközvetítőjének nyilvántartási száma:",null,null,null,null,{"$f":"Adatfelvétel!Q5","v":0}]
[]
["A ",{"$f":"Adatfelvétel!Q6","v":0},null,null,null,"függő biztosításközveítő"]
["• tevékenysége során a K&H Biztosító Zrt. nevében jár el,"]
["• biztosításközvetítői szakmai tevékenysége során esetlegesen okozott kárért a K&H Biztosító Zrt. áll helyt,"]
["• nem rendelkezik befolyásoló részesedéssel a K&H Biztosító Zrt-ben,"]
["• sem a K&H Biztosító Zrt., sem az anyavállalata, a KBC Insurance NV nem rendelkezik befolyásoló részesedéssel a biztosításközvetítésben,"]
["• a K&H Biztosító Zrt. nevében díj átvételére semmilyen formában nem jogosult."]
[]
["A biztosításközvetítő által értékesíthető termékek (csak a megjelölt termékek értékesíthetők):"]
[null,"K&H kötelező gépjármű-felelősségbiztosítás"]
[null,"K&H lakásbiztosítás"]
[null,"K&H vállalkozói biztosítás"]
[null,"K&H vállalkozói vagyonbiztosítás"]
[null,"K&H all risks vagyonbiztosítás"]
[null,"K&H vállalkozói felelősségbiztosítás"]
[null,"K&H casco biztosítások"]
[null,"K&H géptörés biztosítás"]
[null,"K&H fészek társasház biztosítás"]
[null,"K&H csoportos kockázati biztosítás"]
[null,"K&H élet-társ 2 életbiztosítás"]
[null,"K&H gyarapodó életbiztosítás"]
[]
["Kérjük, hogy panasz esetén észrevételét a következő címek egyikére juttassa el:"]
["• írásban (K&H Biztosító Zrt, Budapest 1851),"]
["• személyesen a Központi Ügyfélszolgálat (1095 Budapest, Lechner Ödön fasor 9.) ügyintézőinél vagy vezetőjénél,"]
["• faxon: (06 1) 461 5276,"]
["• e-mailben: biztosito@kh.hu,"]
["• telefonos ügyfélszolgálatunknál a 06 (1/20/30/70) 335 3355-ös, vagy 06 (1) 328 9000-es telefonszámokon lehet bejelenteni."]
[]
["Fogyasztóvédelmi rendelkezések megsértése esetén az önálló foglalkozásán és gazdasági tevékenységén kívül eső célok érdekében eljáró természetes személy (fogyasztó) a Magyar Nemzeti Banknál (1013 Budapest, Krisztina krt. 39.) fogyasztóvédelmi eljárást kezdeményezhet. A biztosítási szerződés megkötésével és teljesítésével kapcsolatos (pénzügyi fogyasztói) jogvita esetén a fogyasztó álláspontját alátámasztó bizonyítékaival a Pénzügyi Békéltető Testület (1013 Budapest, Krisztina krt. 99., levelezési cím: 1525 Budapest BKKP Pf.:172) eljárását kezdeményezheti, vagy bírósághoz fordulhat. A Károsult felelősségbiztosításon alapuló kárigényét kizárólag bírósági úton érvényesítheti, arra a Pénzügyi Békéltető Testület nem illetékes. Gazdálkodó szervezetek (ideértve az egyéni vállalkozót is), jogi személyek, jogi személyiséggel nem rendelkező szervezetek, társasházak stb. igényüket bírósági úton érvényesíthetik."]